Workbook

Sheet Form Instructions
A38: Full instructions are available on the website.

Sheet Form
A1: Budget Adjustment Form - BD2
A2: Date: | D2: Fiscal Yr: | F2: Prepared By:
A3: Purpose:
A4: Fund | C4: Org | E4: Account | G4: AMOUNT
A5: # | B5: Name | C5: # | D5: Name | E5: Code | F5: Name | G5: Decrease | H5: Increase | AA5: RU & Account | AB5: "1" Identifies Entered RU Entry
A6: Salaries/Personnel Section
B7: =IFERROR(IF(A7="","",VLOOKUP(A7,Funds!B:C,2,FALSE)),"") ->  | D7: =IFERROR(IF(C7="","",VLOOKUP(C7,Orgs!A:J,9,FALSE)),"") ->  | F7: =IFERROR(IF(E7="","",VLOOKUP(E7,Account!B:I,6,FALSE)),"") ->  | AA7: =IF(OR(A7="A0003",A7="A2000"),"GU","RU "&E7) -> RU | AB7: =IF(A7="","",IF(OR(A7="A0003",A7="A2000"),0,1)) -> 
B8: =IFERROR(IF(A8="","",VLOOKUP(A8,Funds!B:C,2,FALSE)),"") ->  | D8: =IFERROR(IF(C8="","",VLOOKUP(C8,Orgs!A:J,9,FALSE)),"") ->  | F8: =IFERROR(IF(E8="","",VLOOKUP(E8,Account!B:I,6,FALSE)),"") ->  | AA8: =IF(OR(A8="A0003",A8="A2000"),"GU","RU "&E8) -> RU | AB8: =IF(A8="","",IF(OR(A8="A0003",A8="A2000"),0,1)) -> 
B9: =IFERROR(IF(A9="","",VLOOKUP(A9,Funds!B:C,2,FALSE)),"") ->  | D9: =IFERROR(IF(C9="","",VLOOKUP(C9,Orgs!A:J,9,FALSE)),"") ->  | F9: =IFERROR(IF(E9="","",VLOOKUP(E9,Account!B:I,6,FALSE)),"") ->  | AA9: RU
B10: =IFERROR(IF(A10="","",VLOOKUP(A10,Funds!B:C,2,FALSE)),"") ->  | D10: =IFERROR(IF(C10="","",VLOOKUP(C10,Orgs!A:J,9,FALSE)),"") ->  | F10: =IFERROR(IF(E10="","",VLOOKUP(E10,Account!B:I,6,FALSE)),"") ->  | AA10: RU
B11: =IFERROR(IF(A11="","",VLOOKUP(A11,Funds!B:C,2,FALSE)),"") ->  | D11: =IFERROR(IF(C11="","",VLOOKUP(C11,Orgs!A:J,9,FALSE)),"") ->  | F11: =IFERROR(IF(E11="","",VLOOKUP(E11,Account!B:I,6,FALSE)),"") ->  | AA11: RU
B12: =IFERROR(IF(A12="","",VLOOKUP(A12,Funds!B:C,2,FALSE)),"") ->  | D12: =IFERROR(IF(C12="","",VLOOKUP(C12,Orgs!A:J,9,FALSE)),"") ->  | F12: =IFERROR(IF(E12="","",VLOOKUP(E12,Account!B:I,6,FALSE)),"") ->  | AA12: RU
B13: =IFERROR(IF(A13="","",VLOOKUP(A13,Funds!B:C,2,FALSE)),"") ->  | D13: =IFERROR(IF(C13="","",VLOOKUP(C13,Orgs!A:J,9,FALSE)),"") ->  | F13: =IFERROR(IF(E13="","",VLOOKUP(E13,Account!B:I,6,FALSE)),"") ->  | AA13: RU
B14: =IFERROR(IF(A14="","",VLOOKUP(A14,Funds!B:C,2,FALSE)),"") ->  | D14: =IFERROR(IF(C14="","",VLOOKUP(C14,Orgs!A:J,9,FALSE)),"") ->  | F14: =IFERROR(IF(E14="","",VLOOKUP(E14,Account!B:I,6,FALSE)),"") ->  | AA14: RU
B15: =IFERROR(IF(A15="","",VLOOKUP(A15,Funds!B:C,2,FALSE)),"") ->  | D15: =IFERROR(IF(C15="","",VLOOKUP(C15,Orgs!A:J,9,FALSE)),"") ->  | F15: =IFERROR(IF(E15="","",VLOOKUP(E15,Account!B:I,6,FALSE)),"") ->  | AA15: RU
B16: =IFERROR(IF(A16="","",VLOOKUP(A16,Funds!B:C,2,FALSE)),"") ->  | D16: =IFERROR(IF(C16="","",VLOOKUP(C16,Orgs!A:J,9,FALSE)),"") ->  | F16: =IFERROR(IF(E16="","",VLOOKUP(E16,Account!B:I,6,FALSE)),"") ->  | AA16: RU
B17: =IFERROR(IF(A17="","",VLOOKUP(A17,Funds!B:C,2,FALSE)),"") ->  | D17: =IFERROR(IF(C17="","",VLOOKUP(C17,Orgs!A:J,9,FALSE)),"") ->  | F17: =IFERROR(IF(E17="","",VLOOKUP(E17,Account!B:I,6,FALSE)),"") ->  | AA17: RU
B18: =IFERROR(IF(A18="","",VLOOKUP(A18,Funds!B:C,2,FALSE)),"") ->  | D18: =IFERROR(IF(C18="","",VLOOKUP(C18,Orgs!A:J,9,FALSE)),"") ->  | F18: =IFERROR(IF(E18="","",VLOOKUP(E18,Account!B:I,6,FALSE)),"") ->  | AA18: RU
B19: =IFERROR(IF(A19="","",VLOOKUP(A19,Funds!B:C,2,FALSE)),"") ->  | D19: =IFERROR(IF(C19="","",VLOOKUP(C19,Orgs!A:J,9,FALSE)),"") ->  | F19: =IFERROR(IF(E19="","",VLOOKUP(E19,Account!B:I,6,FALSE)),"") ->  | AA19: RU
B20: =IFERROR(IF(A20="","",VLOOKUP(A20,Funds!B:C,2,FALSE)),"") ->  | D20: =IFERROR(IF(C20="","",VLOOKUP(C20,Orgs!A:J,9,FALSE)),"") ->  | F20: =IFERROR(IF(E20="","",VLOOKUP(E20,Account!B:I,6,FALSE)),"") ->  | AA20: RU
B21: =IFERROR(IF(A21="","",VLOOKUP(A21,Funds!B:C,2,FALSE)),"") ->  | D21: =IFERROR(IF(C21="","",VLOOKUP(C21,Orgs!A:J,9,FALSE)),"") ->  | F21: =IFERROR(IF(E21="","",VLOOKUP(E21,Account!B:I,6,FALSE)),"") ->  | AA21: RU
B22: =IFERROR(IF(A22="","",VLOOKUP(A22,Funds!B:C,2,FALSE)),"") ->  | D22: =IFERROR(IF(C22="","",VLOOKUP(C22,Orgs!A:J,9,FALSE)),"") ->  | F22: =IFERROR(IF(E22="","",VLOOKUP(E22,Account!B:I,6,FALSE)),"") ->  | AA22: RU
B23: =IFERROR(IF(A23="","",VLOOKUP(A23,Funds!B:C,2,FALSE)),"") ->  | D23: =IFERROR(IF(C23="","",VLOOKUP(C23,Orgs!A:J,9,FALSE)),"") ->  | F23: =IFERROR(IF(E23="","",VLOOKUP(E23,Account!B:I,6,FALSE)),"") ->  | AA23: RU
B24: =IFERROR(IF(A24="","",VLOOKUP(A24,Funds!B:C,2,FALSE)),"") ->  | D24: =IFERROR(IF(C24="","",VLOOKUP(C24,Orgs!A:J,9,FALSE)),"") ->  | F24: =IFERROR(IF(E24="","",VLOOKUP(E24,Account!B:I,6,FALSE)),"") ->  | AA24: RU
A25: Benefits Impact Section - Restricted Use Only (Automatically calculated, except health ins. Assumes retirement at Regent rate). | AB25: =SUM(AB7:AB24) -> 0
E26: =IF($AB$25>0,1760,"") ->  | F26: =IFERROR(IF(E26="","",VLOOKUP(E26,Account!B:I,6,FALSE)),"") ->  | G26: =IF($AB$25>0,ROUNDUP(SUMIF(BenefitCalcs!B:B,E26,BenefitCalcs!E:E),0),"") ->  | H26: =IF($AB$25>0,ROUNDUP(SUMIF(BenefitCalcs!B:B,E26,BenefitCalcs!F:F),0),"") ->  | AB26: 1
E27: =IF($AB$25>0,1830,"") ->  | F27: =IFERROR(IF(E27="","",VLOOKUP(E27,Account!B:I,6,FALSE)),"") ->  | G27: =IF($AB$25>0,ROUNDUP(SUMIF(BenefitCalcs!B:B,E27,BenefitCalcs!E:E),0),"") ->  | H27: =IF($AB$25>0,ROUNDUP(SUMIF(BenefitCalcs!B:B,E27,BenefitCalcs!F:F),0),"") ->  | AB27: 1
E28: =IF($AB$25>0,1850,"") ->  | F28: =IF(E28="","","Death & Disability") ->  | G28: =IF($AB$25>0,ROUNDUP(SUMIF(BenefitCalcs!B:B,E28,BenefitCalcs!E:E),0),"") ->  | H28: =IF($AB$25>0,ROUNDUP(SUMIF(BenefitCalcs!B:B,E28,BenefitCalcs!F:F),0),"") ->  | AB28: 1
E29: =IF($AB$25>0,1911,"") ->  | F29: =IFERROR(IF(E29="","",VLOOKUP(E29,Account!B:I,6,FALSE)),"") ->  | G29: =IF($AB$25>0,ROUNDUP(SUMIF(BenefitCalcs!B:B,E29,BenefitCalcs!E:E),0),"") ->  | H29: =IF($AB$25>0,ROUNDUP(SUMIF(BenefitCalcs!B:B,E29,BenefitCalcs!F:F),0),"") ->  | AB29: 1
E30: =IF($AB$25>0,1912,"") ->  | F30: =IFERROR(IF(E30="","",VLOOKUP(E30,Account!B:I,6,FALSE)),"") ->  | G30: =IF($AB$25>0,ROUNDUP(SUMIF(BenefitCalcs!B:B,E30,BenefitCalcs!E:E),0),"") ->  | H30: =IF($AB$25>0,ROUNDUP(SUMIF(BenefitCalcs!B:B,E30,BenefitCalcs!F:F),0),"") ->  | AB30: 1
E31: =IF($AB$25>0,1970,"") ->  | F31: =IFERROR(IF(E31="","",VLOOKUP(E31,Account!B:I,6,FALSE)),"") ->  | G31: =IF($AB$25>0,ROUNDUP(SUMIF(BenefitCalcs!B:B,E31,BenefitCalcs!E:E),0),"") ->  | H31: =IF($AB$25>0,ROUNDUP(SUMIF(BenefitCalcs!B:B,E31,BenefitCalcs!F:F),0),"") ->  | AB31: 1
E32: =IF($AB$25>0,1980,"") ->  | F32: =IFERROR(IF(E32="","",VLOOKUP(E32,Account!B:I,6,FALSE)),"") ->  | G32: =IF($AB$25>0,ROUNDUP(SUMIF(BenefitCalcs!B:B,E32,BenefitCalcs!E:E),0),"") ->  | H32: =IF($AB$25>0,ROUNDUP(SUMIF(BenefitCalcs!B:B,E32,BenefitCalcs!F:F),0),"") ->  | AB32: 1
E33: =IF($AB$25>0,1950,"") ->  | F33: =IFERROR(IF(E33="","",VLOOKUP(E33,Account!B:I,6,FALSE)),"") ->  | G33: =IF(AB25>0,"manual entry","") ->  | H33: =IF(AB25>0,"manual entry","") ->  | AB33: 1
A34: OOE Section
B35: =IFERROR(IF(A35="","",VLOOKUP(A35,Funds!B:C,2,FALSE)),"") ->  | D35: =IFERROR(IF(C35="","",VLOOKUP(C35,Orgs!A:J,9,FALSE)),"") ->  | F35: =IFERROR(IF(E35="","",VLOOKUP(E35,Account!B:I,6,FALSE)),"") ->  | AA35: =IF(OR(A35="A0003",A35="A2000"),"GU","RU "&E35) -> RU | AB35: =IF(A35="","",IF(OR(A35="A0003",A35="A2000"),0,1)) -> 
B36: =IFERROR(IF(A36="","",VLOOKUP(A36,Funds!B:C,2,FALSE)),"") ->  | D36: =IFERROR(IF(C36="","",VLOOKUP(C36,Orgs!A:J,9,FALSE)),"") ->  | F36: =IFERROR(IF(E36="","",VLOOKUP(E36,Account!B:I,6,FALSE)),"") ->  | AA36: =IF(OR(A36="A0003",A36="A2000"),"GU","RU "&E36) -> RU | AB36: =IF(A36="","",IF(OR(A36="A0003",A36="A2000"),0,1)) -> 
B37: =IFERROR(IF(A37="","",VLOOKUP(A37,Funds!B:C,2,FALSE)),"") ->  | D37: =IFERROR(IF(C37="","",VLOOKUP(C37,Orgs!A:J,9,FALSE)),"") ->  | F37: =IFERROR(IF(E37="","",VLOOKUP(E37,Account!B:I,6,FALSE)),"") ->  | AA37: RU
B38: =IFERROR(IF(A38="","",VLOOKUP(A38,Funds!B:C,2,FALSE)),"") ->  | D38: =IFERROR(IF(C38="","",VLOOKUP(C38,Orgs!A:J,9,FALSE)),"") ->  | F38: =IFERROR(IF(E38="","",VLOOKUP(E38,Account!B:I,6,FALSE)),"") ->  | AA38: RU
B39: =IFERROR(IF(A39="","",VLOOKUP(A39,Funds!B:C,2,FALSE)),"") ->  | D39: =IFERROR(IF(C39="","",VLOOKUP(C39,Orgs!A:J,9,FALSE)),"") ->  | F39: =IFERROR(IF(E39="","",VLOOKUP(E39,Account!B:I,6,FALSE)),"") ->  | AA39: RU
B40: =IFERROR(IF(A40="","",VLOOKUP(A40,Funds!B:C,2,FALSE)),"") ->  | D40: =IFERROR(IF(C40="","",VLOOKUP(C40,Orgs!A:J,9,FALSE)),"") ->  | F40: =IFERROR(IF(E40="","",VLOOKUP(E40,Account!B:I,6,FALSE)),"") ->  | AA40: RU
B41: =IFERROR(IF(A41="","",VLOOKUP(A41,Funds!B:C,2,FALSE)),"") ->  | D41: =IFERROR(IF(C41="","",VLOOKUP(C41,Orgs!A:J,9,FALSE)),"") ->  | F41: =IFERROR(IF(E41="","",VLOOKUP(E41,Account!B:I,6,FALSE)),"") ->  | AA41: RU
B42: =IFERROR(IF(A42="","",VLOOKUP(A42,Funds!B:C,2,FALSE)),"") ->  | D42: =IFERROR(IF(C42="","",VLOOKUP(C42,Orgs!A:J,9,FALSE)),"") ->  | F42: =IFERROR(IF(E42="","",VLOOKUP(E42,Account!B:I,6,FALSE)),"") ->  | AA42: RU
B43: =IFERROR(IF(A43="","",VLOOKUP(A43,Funds!B:C,2,FALSE)),"") ->  | D43: =IFERROR(IF(C43="","",VLOOKUP(C43,Orgs!A:J,9,FALSE)),"") ->  | F43: =IFERROR(IF(E43="","",VLOOKUP(E43,Account!B:I,6,FALSE)),"") ->  | AA43: RU
B44: =IFERROR(IF(A44="","",VLOOKUP(A44,Funds!B:C,2,FALSE)),"") ->  | D44: =IFERROR(IF(C44="","",VLOOKUP(C44,Orgs!A:J,9,FALSE)),"") ->  | F44: =IFERROR(IF(E44="","",VLOOKUP(E44,Account!B:I,6,FALSE)),"") ->  | AA44: RU
B45: =IFERROR(IF(A45="","",VLOOKUP(A45,Funds!B:C,2,FALSE)),"") ->  | D45: =IFERROR(IF(C45="","",VLOOKUP(C45,Orgs!A:J,9,FALSE)),"") ->  | F45: =IFERROR(IF(E45="","",VLOOKUP(E45,Account!B:I,6,FALSE)),"") ->  | AA45: RU
B46: =IFERROR(IF(A46="","",VLOOKUP(A46,Funds!B:C,2,FALSE)),"") ->  | D46: =IFERROR(IF(C46="","",VLOOKUP(C46,Orgs!A:J,9,FALSE)),"") ->  | F46: =IFERROR(IF(E46="","",VLOOKUP(E46,Account!B:I,6,FALSE)),"") ->  | AA46: RU
B47: =IFERROR(IF(A47="","",VLOOKUP(A47,Funds!B:C,2,FALSE)),"") ->  | D47: =IFERROR(IF(C47="","",VLOOKUP(C47,Orgs!A:J,9,FALSE)),"") ->  | F47: =IFERROR(IF(E47="","",VLOOKUP(E47,Account!B:I,6,FALSE)),"") ->  | AA47: RU
B48: =IFERROR(IF(A48="","",VLOOKUP(A48,Funds!B:C,2,FALSE)),"") ->  | D48: =IFERROR(IF(C48="","",VLOOKUP(C48,Orgs!A:J,9,FALSE)),"") ->  | F48: =IFERROR(IF(E48="","",VLOOKUP(E48,Account!B:I,6,FALSE)),"") ->  | AA48: RU
B49: =IFERROR(IF(A49="","",VLOOKUP(A49,Funds!B:C,2,FALSE)),"") ->  | D49: =IFERROR(IF(C49="","",VLOOKUP(C49,Orgs!A:J,9,FALSE)),"") ->  | F49: =IFERROR(IF(E49="","",VLOOKUP(E49,Account!B:I,6,FALSE)),"") ->  | AA49: RU
B50: =IFERROR(IF(A50="","",VLOOKUP(A50,Funds!B:C,2,FALSE)),"") ->  | D50: =IFERROR(IF(C50="","",VLOOKUP(C50,Orgs!A:J,9,FALSE)),"") ->  | F50: =IFERROR(IF(E50="","",VLOOKUP(E50,Account!B:I,6,FALSE)),"") ->  | AA50: RU
B51: =IFERROR(IF(A51="","",VLOOKUP(A51,Funds!B:C,2,FALSE)),"") ->  | D51: =IFERROR(IF(C51="","",VLOOKUP(C51,Orgs!A:J,9,FALSE)),"") ->  | F51: =IFERROR(IF(E51="","",VLOOKUP(E51,Account!B:I,6,FALSE)),"") ->  | AA51: RU
B52: =IFERROR(IF(A52="","",VLOOKUP(A52,Funds!B:C,2,FALSE)),"") ->  | D52: =IFERROR(IF(C52="","",VLOOKUP(C52,Orgs!A:J,9,FALSE)),"") ->  | F52: =IFERROR(IF(E52="","",VLOOKUP(E52,Account!B:I,6,FALSE)),"") ->  | AA52: RU
B53: =IFERROR(IF(A53="","",VLOOKUP(A53,Funds!B:C,2,FALSE)),"") ->  | D53: =IFERROR(IF(C53="","",VLOOKUP(C53,Orgs!A:J,9,FALSE)),"") ->  | F53: =IFERROR(IF(E53="","",VLOOKUP(E53,Account!B:I,6,FALSE)),"") ->  | AA53: RU
B54: =IFERROR(IF(A54="","",VLOOKUP(A54,Funds!B:C,2,FALSE)),"") ->  | D54: =IFERROR(IF(C54="","",VLOOKUP(C54,Orgs!A:J,9,FALSE)),"") ->  | F54: =IFERROR(IF(E54="","",VLOOKUP(E54,Account!B:I,6,FALSE)),"") ->  | AA54: RU
B55: =IFERROR(IF(A55="","",VLOOKUP(A55,Funds!B:C,2,FALSE)),"") ->  | D55: =IFERROR(IF(C55="","",VLOOKUP(C55,Orgs!A:J,9,FALSE)),"") ->  | F55: =IFERROR(IF(E55="","",VLOOKUP(E55,Account!B:I,6,FALSE)),"") ->  | AA55: RU
B56: =IFERROR(IF(A56="","",VLOOKUP(A56,Funds!B:C,2,FALSE)),"") ->  | D56: =IFERROR(IF(C56="","",VLOOKUP(C56,Orgs!A:J,9,FALSE)),"") ->  | F56: =IFERROR(IF(E56="","",VLOOKUP(E56,Account!B:I,6,FALSE)),"") ->  | AA56: RU
B57: =IFERROR(IF(A57="","",VLOOKUP(A57,Funds!B:C,2,FALSE)),"") ->  | D57: =IFERROR(IF(C57="","",VLOOKUP(C57,Orgs!A:J,9,FALSE)),"") ->  | F57: =IFERROR(IF(E57="","",VLOOKUP(E57,Account!B:I,6,FALSE)),"") ->  | AA57: RU
B58: =IFERROR(IF(A58="","",VLOOKUP(A58,Funds!B:C,2,FALSE)),"") ->  | D58: =IFERROR(IF(C58="","",VLOOKUP(C58,Orgs!A:J,9,FALSE)),"") ->  | F58: =IFERROR(IF(E58="","",VLOOKUP(E58,Account!B:I,6,FALSE)),"") ->  | AA58: RU
B59: =IFERROR(IF(A59="","",VLOOKUP(A59,Funds!B:C,2,FALSE)),"") ->  | D59: =IFERROR(IF(C59="","",VLOOKUP(C59,Orgs!A:J,9,FALSE)),"") ->  | F59: =IFERROR(IF(E59="","",VLOOKUP(E59,Account!B:I,6,FALSE)),"") ->  | AA59: RU
B60: =IFERROR(IF(A60="","",VLOOKUP(A60,Funds!B:C,2,FALSE)),"") ->  | D60: =IFERROR(IF(C60="","",VLOOKUP(C60,Orgs!A:J,9,FALSE)),"") ->  | F60: =IFERROR(IF(E60="","",VLOOKUP(E60,Account!B:I,6,FALSE)),"") ->  | AA60: RU
B61: =IFERROR(IF(A61="","",VLOOKUP(A61,Funds!B:C,2,FALSE)),"") ->  | D61: =IFERROR(IF(C61="","",VLOOKUP(C61,Orgs!A:J,9,FALSE)),"") ->  | F61: =IFERROR(IF(E61="","",VLOOKUP(E61,Account!B:I,6,FALSE)),"") ->  | AA61: RU
B62: =IFERROR(IF(A62="","",VLOOKUP(A62,Funds!B:C,2,FALSE)),"") ->  | D62: =IFERROR(IF(C62="","",VLOOKUP(C62,Orgs!A:J,9,FALSE)),"") ->  | F62: =IFERROR(IF(E62="","",VLOOKUP(E62,Account!B:I,6,FALSE)),"") ->  | AA62: RU
B63: =IFERROR(IF(A63="","",VLOOKUP(A63,Funds!B:C,2,FALSE)),"") ->  | D63: =IFERROR(IF(C63="","",VLOOKUP(C63,Orgs!A:J,9,FALSE)),"") ->  | F63: =IFERROR(IF(E63="","",VLOOKUP(E63,Account!B:I,6,FALSE)),"") ->  | AA63: RU
A64: Total Expense Accounts | G64: =SUM(G7:G63) -> 0 | H64: =SUM(H7:H63) -> 0 | AA64: Total RU Expenses | AB64: =SUMIF($AB$7:$AB$63,1,$G$7:$G$63)+SUMIF($AB$7:$AB$63,1,$H$7:$H$63) -> 0
A66: Revenue Section - Restricted Use Only
B67: =IFERROR(IF(A67="","",VLOOKUP(A67,Funds!B:C,2,FALSE)),"") ->  | D67: =IFERROR(IF(C67="","",VLOOKUP(C67,Orgs!A:J,9,FALSE)),"") ->  | F67: =IFERROR(IF(E67="","",VLOOKUP(E67,Account!B:I,6,FALSE)),"") ->  | AB67: =IF(A67="","",IF(OR(A67="A0003",A67="A2000"),0,1)) -> 
B68: =IFERROR(IF(A68="","",VLOOKUP(A68,Funds!B:C,2,FALSE)),"") ->  | D68: =IFERROR(IF(C68="","",VLOOKUP(C68,Orgs!A:J,9,FALSE)),"") ->  | F68: =IFERROR(IF(E68="","",VLOOKUP(E68,Account!B:I,6,FALSE)),"") ->  | AB68: =IF(A68="","",IF(OR(A68="A0003",A68="A2000"),0,1)) -> 
B69: =IFERROR(IF(A69="","",VLOOKUP(A69,Funds!B:C,2,FALSE)),"") ->  | D69: =IFERROR(IF(C69="","",VLOOKUP(C69,Orgs!A:J,9,FALSE)),"") ->  | F69: =IFERROR(IF(E69="","",VLOOKUP(E69,Account!B:I,6,FALSE)),"") -> 
B70: =IFERROR(IF(A70="","",VLOOKUP(A70,Funds!B:C,2,FALSE)),"") ->  | D70: =IFERROR(IF(C70="","",VLOOKUP(C70,Orgs!A:J,9,FALSE)),"") ->  | F70: =IFERROR(IF(E70="","",VLOOKUP(E70,Account!B:I,6,FALSE)),"") -> 
B71: =IFERROR(IF(A71="","",VLOOKUP(A71,Funds!B:C,2,FALSE)),"") ->  | D71: =IFERROR(IF(C71="","",VLOOKUP(C71,Orgs!A:J,9,FALSE)),"") ->  | F71: =IFERROR(IF(E71="","",VLOOKUP(E71,Account!B:I,6,FALSE)),"") -> 
B72: =IFERROR(IF(A72="","",VLOOKUP(A72,Funds!B:C,2,FALSE)),"") ->  | D72: =IFERROR(IF(C72="","",VLOOKUP(C72,Orgs!A:J,9,FALSE)),"") ->  | F72: =IFERROR(IF(E72="","",VLOOKUP(E72,Account!B:I,6,FALSE)),"") -> 
B73: =IFERROR(IF(A73="","",VLOOKUP(A73,Funds!B:C,2,FALSE)),"") ->  | D73: =IFERROR(IF(C73="","",VLOOKUP(C73,Orgs!A:J,9,FALSE)),"") ->  | F73: =IFERROR(IF(E73="","",VLOOKUP(E73,Account!B:I,6,FALSE)),"") -> 
B74: =IFERROR(IF(A74="","",VLOOKUP(A74,Funds!B:C,2,FALSE)),"") ->  | D74: =IFERROR(IF(C74="","",VLOOKUP(C74,Orgs!A:J,9,FALSE)),"") ->  | F74: =IFERROR(IF(E74="","",VLOOKUP(E74,Account!B:I,6,FALSE)),"") -> 
B75: =IFERROR(IF(A75="","",VLOOKUP(A75,Funds!B:C,2,FALSE)),"") ->  | D75: =IFERROR(IF(C75="","",VLOOKUP(C75,Orgs!A:J,9,FALSE)),"") ->  | F75: =IFERROR(IF(E75="","",VLOOKUP(E75,Account!B:I,6,FALSE)),"") -> 
B76: =IFERROR(IF(A76="","",VLOOKUP(A76,Funds!B:C,2,FALSE)),"") ->  | D76: =IFERROR(IF(C76="","",VLOOKUP(C76,Orgs!A:J,9,FALSE)),"") ->  | F76: =IFERROR(IF(E76="","",VLOOKUP(E76,Account!B:I,6,FALSE)),"") -> 
B77: =IFERROR(IF(A77="","",VLOOKUP(A77,Funds!B:C,2,FALSE)),"") ->  | D77: =IFERROR(IF(C77="","",VLOOKUP(C77,Orgs!A:J,9,FALSE)),"") ->  | F77: =IFERROR(IF(E77="","",VLOOKUP(E77,Account!B:I,6,FALSE)),"") -> 
B78: =IFERROR(IF(A78="","",VLOOKUP(A78,Funds!B:C,2,FALSE)),"") ->  | D78: =IFERROR(IF(C78="","",VLOOKUP(C78,Orgs!A:J,9,FALSE)),"") ->  | F78: =IFERROR(IF(E78="","",VLOOKUP(E78,Account!B:I,6,FALSE)),"") -> 
B79: =IFERROR(IF(A79="","",VLOOKUP(A79,Funds!B:C,2,FALSE)),"") ->  | D79: =IFERROR(IF(C79="","",VLOOKUP(C79,Orgs!A:J,9,FALSE)),"") ->  | F79: =IFERROR(IF(E79="","",VLOOKUP(E79,Account!B:I,6,FALSE)),"") -> 
B80: =IFERROR(IF(A80="","",VLOOKUP(A80,Funds!B:C,2,FALSE)),"") ->  | D80: =IFERROR(IF(C80="","",VLOOKUP(C80,Orgs!A:J,9,FALSE)),"") ->  | F80: =IFERROR(IF(E80="","",VLOOKUP(E80,Account!B:I,6,FALSE)),"") -> 
B81: =IFERROR(IF(A81="","",VLOOKUP(A81,Funds!B:C,2,FALSE)),"") ->  | D81: =IFERROR(IF(C81="","",VLOOKUP(C81,Orgs!A:J,9,FALSE)),"") ->  | F81: =IFERROR(IF(E81="","",VLOOKUP(E81,Account!B:I,6,FALSE)),"") -> 
B82: =IFERROR(IF(A82="","",VLOOKUP(A82,Funds!B:C,2,FALSE)),"") ->  | D82: =IFERROR(IF(C82="","",VLOOKUP(C82,Orgs!A:J,9,FALSE)),"") ->  | F82: =IFERROR(IF(E82="","",VLOOKUP(E82,Account!B:I,6,FALSE)),"") -> 
B83: =IFERROR(IF(A83="","",VLOOKUP(A83,Funds!B:C,2,FALSE)),"") ->  | D83: =IFERROR(IF(C83="","",VLOOKUP(C83,Orgs!A:J,9,FALSE)),"") ->  | F83: =IFERROR(IF(E83="","",VLOOKUP(E83,Account!B:I,6,FALSE)),"") -> 
B84: =IFERROR(IF(A84="","",VLOOKUP(A84,Funds!B:C,2,FALSE)),"") ->  | D84: =IFERROR(IF(C84="","",VLOOKUP(C84,Orgs!A:J,9,FALSE)),"") ->  | F84: =IFERROR(IF(E84="","",VLOOKUP(E84,Account!B:I,6,FALSE)),"") -> 
B85: =IFERROR(IF(A85="","",VLOOKUP(A85,Funds!B:C,2,FALSE)),"") ->  | D85: =IFERROR(IF(C85="","",VLOOKUP(C85,Orgs!A:J,9,FALSE)),"") ->  | F85: =IFERROR(IF(E85="","",VLOOKUP(E85,Account!B:I,6,FALSE)),"") -> 
A86: Total Restricted Use Revenue Accounts | G86: =SUM(G67:G85) -> 0 | H86: =SUM(H67:H85) -> 0 | AA86: Total RU Revenue | AB86: =SUM(G86:H86) -> 0
E87: =IF(AB88="","",IF(AB88=0,"",IF(AB64=AB86,"","Potential Error - RU Revenue Does Not Match RU Expenses"))) ->  | AA87: Total RU Increases | AB87: =SUMIF($AB$7:$AB$63,1,$H$7:$H$63)+H86 -> 0
F88: Budget Office Use - Document Total | G88: =SUM(G64:H64)+SUM(G86:H86) -> 0 | AA88: Total RU Expense Increases/Decreases | AB88: =SUM(AB86:AB87) -> 0
F90: Email form to your Budget Analyst (if excel VBA macros enabled)
C92: Budget Office Use Only
C95: JV# | F95: Process Date | H95: Initials
A97: Budget adjustments are processed in the order received, ordinarily within two or three business days. Year-end requests must be received before the deadline established by Financial Operations and the University Budget Office.

Sheet Common Account Search
A1: Account Level1 | B1: Account Level 3 | C1: Account Code | D1: Account Code Name
A2: Revenue
B3: Accrued Interest on Revenue
C4: R80210 | D4: Accrued Interest on Revenue Bonds
B5: Admission Charges
C6: R80094 | D6: Ticket Revenue
C7: R80308 | D7: Festival Income (Music)
C8: R80095 | D8: Music Department-Opera
C9: R80096 | D9: Drama
C10: R80242 | D10: Admissions to Events/Facilities
C11: R80320 | D11: KMUW Media Circus Ticket Revenue
C12: R80478 | D12: Vendini Admissions Net Income
B13: ARRA Fed Stimulus Funding (Tran In)
C14: R80335 | D14: ARRA Federal Stimulus Funding
B15: Bond Proceeds-Premium & Discount
C16: R80211 | D16: Bond Proceeds-Premium & Discount
B17: Capital Gifts
C18: R80301 | D18: Capital Gifts-WSU Board of Trustees
C19: R80302 | D19: Capital Gifts-WSU Foundation
C20: R80303 | D20: Capital Gifts-WSU Athletics
C21: R80319 | D21: Capital Gifts-Ind State Tax Credits
B22: Childcare Fees
C23: R80120 | D23: University Preschool Program
C24: R80436 | D24: Univ Preschool-Fluctuating Revenue
B25: Clinic Fees
C26: R80117 | D26: CSD Speech & Hearing Clinic
C27: R80118 | D27: Audiology Clinic - CSD Clinic
C28: R80156 | D28: Charges for Treatment
C29: R80351 | D29: AEGD -Dentist Clinic Charges & Fees
C30: R80364 | D30: AEGD - SMILES Payments
C31: R80369 | D31: AEGD - Ins Payments Delta Dental
C32: R80370 | D32: AEGD - Other Insurance Payments
C33: R80415 | D33: Campus Recreation Massage
C34: R80417 | D34: Campus Recreation Pumpkin Run
C35: R80434 | D35: Charges for Treatment-PNC
C36: R80119 | D36: Campus Recreation Clinic Fees
C37: R80394 | D37: AEGD - Kan Care Insurance Pymt
C38: R80410 | D38: Medicare Payments
C39: R80411 | D39: Campus Recreation Aquatics
C40: R80412 | D40: Campus Recreation Camp WU
C41: R80413 | D41: Campus Recreation Health Fair
C42: R80414 | D42: Campus Recreation Intramurels
C43: R80416 | D43: Campus Recreation Personal Training
C44: R80418 | D44: Campus Recreation Shocker Fit
C45: R80440 | D45: Campus Recreation Expired Gift Cert
B46: Community Services
C47: R80270 | D47: Conference Registration Fees
C48: R80372 | D48: Stats Software Fee
C49: R80386 | D49: KSBDC Workshop Revenue
C50: R80409 | D50: Other Misc Revenue
C51: R80445 | D51: CEDBR - Market Research
C52: R80451 | D52: CEDBR - Impact Studies
C53: R80452 | D53: CEDBR - Other Research
C54: R80109 | D54: CMD Income
C55: R80110 | D55: Income from Southside Partners
C56: R80395 | D56: Fine Arts Music Associates Dinner
C57: R80116 | D57: Ctr for Business & Econ Research
C58: R80387 | D58: KSBDC Trade Show Revenue
C59: R80473 | D59: Ulrich Museum Fundraising
C60: R80474 | D60: Ulrich Museum Programming
B61: Credit By Examination
C62: R80044 | D62: Credit by Examination
C63: R80306 | D63: MCLL - Retroactive Credit
C64: R80341 | D64: Retroactive Credit Fee
B65: Dormitory Revenue
C66: R80147 | D66: Conf Room & Camps - Housing
C67: R80150 | D67: Housing Equipment Rental
C68: R80151 | D68: Concessions - Housing
C69: R80153 | D69: Dorm Deposit Forfeiture
C70: R80155 | D70: Housing Dormitory Application Fee
C71: R80200 | D71: Miscellaneous Income - Housing
C72: R80250 | D72: Housing Cancellation Fee
C73: R80251 | D73: Food Service Residence Halls
C74: R80312 | D74: Academic Year Room Contract - BH/FT
C75: R80326 | D75: Academic Year Room Contract
C76: R80381 | D76: Income from Food Serv-Enhancements
C77: R80397 | D77: SPARKS Housing
C78: R80314 | D78: Internal Income - Other - Housing
C79: R80129 | D79: Housing Non-Student Conf. Food Svc
C80: R80130 | D80: Food Service-Summer Wheatshocker
C81: R80131 | D81: Academic Yr Food Serv Contract-Ft
C82: R80132 | D82: Academic Yr Food Serv Contract-Bh
C83: R80133 | D83: Food Service-Fairmount
C84: R80134 | D84: Food Service-Brennan
C85: R80135 | D85: Food Service-Wheatshocker
C86: R80136 | D86: Food Service-Summer Fairmount
C87: R80137 | D87: Food Service-Summer Camps
C88: R80245 | D88: Guest Meal Sales
C89: R80248 | D89: Food Service Summer Revenue Brennan
C90: R80139 | D90: Housing Brennen Hall Rental
C91: R80140 | D91: Parking Lot Rental - Housing
C92: R80197 | D92: Housing Wheatshocker Parking Lot
C93: R80141 | D93: Academic Year Room Contract
C94: R80142 | D94: PY Room Contract
C95: R80143 | D95: Guest Room Rental
C96: R80145 | D96: Furnished Room Charge
C97: R80146 | D97: University Apartment Rental
C98: R80198 | D98: Housing-Fairmount Towers Conf Rm
C99: R80243 | D99: Facility Rental - Taxable
C100: R80247 | D100: WSU Rental Payments
C101: R80313 | D101: Academic Year Room Contract - WS
C102: R80322 | D102: Summer School Room Contract - BH/FT
C103: R80323 | D103: Summer School Room Contract - SH
C104: R80382 | D104: Conf Room & Camps - Housing - Indiv
C105: R80148 | D105: Campus Parking-Visitor
C106: R80149 | D106: Mobil Electronics
C107: R80203 | D107: Housing Concessions/Vending Comm
C108: R80152 | D108: Income from Sodexho-Cleaning
C109: R80246 | D109: Controllers Office Revenue Clearing
C110: R80249 | D110: Miscellaneous Income - Housing
C111: R80252 | D111: Misc Housing Meeting Room Rental
C112: R80253 | D112: Misc Breakage Housing Room Charge
C113: R80254 | D113: Misc Housing Improper Check-out
C114: R80383 | D114: Income from Care Package Commission
C115: R80489 | D115: Dormitory Programming Fees
B116: Duplicating Services
C117: R80099 | D117: Duplicating, Repro & Copy Charges
C118: R80098 | D118: Fax Charges
C119: R80100 | D119: Microfilm Copying
C120: R80101 | D120: Library Duplication Services
C121: R80340 | D121: Course Packets
B122: Extension Fees
C123: R80049 | D123: EMBA Income
C124: R80310 | D124: Accelerated Nursing Prg Tuition Inc
C125: R80050 | D125: Income from WATC
B126: Federal HEERF Institutional Award
C127: R80510 | D127: Federal HEERF Institutional Award
B128: Federal Pymt On Cancellations
C129: R80212 | D129: Government NDSL Grants
C130: R80213 | D130: Federal Pymt on Cancellations
B131: Federal Research Grants
C132: R80062 | D132: Federal Government Research
C133: R80304 | D133: PHEAA Federal Revenue for Tuition
B134: Federal Sponsored Prgm Grants
C135: R80060 | D135: Federal Government Research
B136: Gifts For Education and General
C137: R80074 | D137: Federal SRS-Title 4A
B138: GoCreate
C139: R80458 | D139: GoCreate Consumables 3-D Print Scan
C140: R80459 | D140: GoCreate Consumables Design
C141: R80462 | D141: GoCreate Consum Wide Format/Vinyl
C142: R80463 | D142: GoCreate Consumables Metals Welding
C143: R80464 | D143: GoCreate Consumables Textiles
C144: R80466 | D144: GoCreate Consumables Miscellaneous
C145: R80469 | D145: GoCreate Rental Suites
C146: R80470 | D146: GoCreate Memberships
C147: R80460 | D147: GoCreate Consumables Electronics
C148: R80461 | D148: GoCreate Tech Time
C149: R80465 | D149: GoCreate Consumables Wood Foam
C150: R80467 | D150: GoCreate Classes
C151: R80468 | D151: GoCreate Rental Storage
B152: Incidental Fees Regular Term
C153: R80218 | D153: Direct Loans Drawdown
C154: R80220 | D154: United Student Aid Fund Spr-Sallie
C155: R80222 | D155: United Student Aid Fund Sum-Sallie
C156: R80269 | D156: Paper Loan Check Susp Rev
C157: R80316 | D157: Direct Loans
C158: R80268 | D158: Plus Loans
C159: R80294 | D159: Plus Loans - Graduate Students
C160: R80000 | D160: Tuition - TAP Teacher Appr Program
C161: R80001 | D161: Fall Semester Tuition
C162: R80002 | D162: Spring Semester Tuition
C163: R80003 | D163: Tuition - Market Based Rates-CATIA
C164: R80004 | D164: Tuition - Badges
C165: R80005 | D165: Prior Term Tuition
C166: R80006 | D166: Tuition - Market Based Rates
C167: R80008 | D167: Tuition - EMBA
C168: R8000W | D168: Collected Written Off Tuition
C169: R81001 | D169: Fall Semester Tuition-Fed Stimulus
C170: R81002 | D170: Spring Semester Tuit - Fed Stimulus
C171: R81005 | D171: Prior Term Tuition - Fed Stimulus
C172: R8100S | D172: Tuition Refund Reimb SPARK
B173: Incidental Fees Summer Term
C174: R80007 | D174: Summer School Tuition
C175: R81007 | D175: Summer School Tuition-Fed Stimulus
B176: Interest on Investments
C177: R80173 | D177: Interest
C178: R80175 | D178: Interest Income
C179: R80297 | D179: Interest On Investments
C180: R80172 | D180: Interest Income
C181: R80188 | D181: Gain or Loss on Investments
C182: R80174 | D182: Interest On Investments
B183: Labor and Professional Charges
C184: R80077 | D184: Professional Charges and Fees
C185: R80078 | D185: Business Office Accounting Services
C186: R80079 | D186: Labor Charges
C187: R80084 | D187: Maintenance and Repair
C188: R80085 | D188: New Installation
C189: R80275 | D189: Non Ref Install Plan Down Pymt
C190: R80457 | D190: Distribution Market Based Tuition
C191: R80503 | D191: Cost Match Lab-Prof Charges & Fees
C192: R80504 | D192: Center/Lab IDC Revenue
C193: R80508 | D193: Gateway to IP Services
C194: R80511 | D194: MDL State Services
C195: R80513 | D195: MDL Wichita State Services
C196: R80514 | D196: MDL Other Services
C197: R80080 | D197: Architectural and Engineering
C198: R80081 | D198: University Auxiliaries
C199: R80082 | D199: University Affiliates
C200: R80368 | D200: Training Services Revenue
... 858 more rows

Sheet Benefit Rates
B1: Budget Year Benefit Rates
B2: 1760 | C2: State Leave Pymt Assessment | D2: 0.0056
B3: 1810 | C3: KPERS Retirement | D3: 0.1154
B4: 1830 | C4: Regents Retirement | D4: 0.085
B5: 1850 | C5: Death & Disability | D5: 0.01
B6: 1880 | C6: KS Police & Fire Retirement Sys | D6: 0.2286
B7: 1911 | C7: Medicare | D7: 0.0145
B8: 1912 | C8: OASDI | D8: 0.062
B9: 1970 | C9: Workers Compensation | D9: 0.00273
B10: 1980 | C10: Unemployment Compensation | D10: 0
B12: Annual Health Insurance Employer Contribution Rates
B13: Single Full-Time | D13: 9436
B14: Single Part-Time | D14: 7656
B15: Family (Single + Dependent) Full-Time | D15: =D13+4375 -> 13811
B16: Family (Single + Dependent) Part-Time | D16: =D14+3457 -> 11113

Sheet General Notes
A3: Fund Transfers
B4: - | C4: Absent a specifically related account, transfers between WSU funds (regardless if between different colleges/departments or within the same college/department) use the following accounts:
C5: - Revenue: R80236 - Transfer from Other Funds
C6: - Expense: 7340 - Intra-Agency Transfer
B7: - | C7: Other transfer accounts incldue:

Sheet BenefitCalcs (hidden)
C2: Salary Costs From Form | E2: Decrease | F2: Increase
B3: RU 1100 | C3: 1100 - Unclassified Salaries-Permanent | E3: =SUMIF(Form!AA:AA,B3,Form!G:G) -> 0 | F3: =SUMIF(Form!AA:AA,B3,Form!H:H) -> 0
B4: RU 1105 | C4: 1105 - Unclassified Salaries-Stipend | E4: =SUMIF(Form!AA:AA,B4,Form!G:G) -> 0 | F4: =SUMIF(Form!AA:AA,B4,Form!H:H) -> 0
B5: RU 1115 | C5: 1115 - Unclassified Salaries-Add'l Comp | E5: =SUMIF(Form!AA:AA,B5,Form!G:G) -> 0 | F5: =SUMIF(Form!AA:AA,B5,Form!H:H) -> 0
B6: RU 1116 | C6: 1116 - VSIP Unclassified Sal | E6: =SUMIF(Form!AA:AA,B6,Form!G:G) -> 0 | F6: =SUMIF(Form!AA:AA,B6,Form!H:H) -> 0
B7: RU 1160 | C7: 1160 - Unclassified Sal-Overtime/Comp/AHR | E7: =SUMIF(Form!AA:AA,B7,Form!G:G) -> 0 | F7: =SUMIF(Form!AA:AA,B7,Form!H:H) -> 0
B8: RU 1190 | C8: 1190 - Unclassified Salaries-Vacation | E8: =SUMIF(Form!AA:AA,B8,Form!G:G) -> 0 | F8: =SUMIF(Form!AA:AA,B8,Form!H:H) -> 0
B9: RU 1170 | C9: 1170 - Unclassified Sal-Summer Lecturer | E9: =SUMIF(Form!AA:AA,B9,Form!G:G) -> 0 | F9: =SUMIF(Form!AA:AA,B9,Form!H:H) -> 0
B10: RU 1180 | C10: 1180 - Unclassified Salaries-Lecturer | E10: =SUMIF(Form!AA:AA,B10,Form!G:G) -> 0 | F10: =SUMIF(Form!AA:AA,B10,Form!H:H) -> 0
B11: RU 1110 | C11: 1110 - Uncl-Salaries-Seasonal and Temp | E11: =SUMIF(Form!AA:AA,B11,Form!G:G) -> 0 | F11: =SUMIF(Form!AA:AA,B11,Form!H:H) -> 0
B13: RU 1000 | C13: 1000 - USS Salaries-Permanent | E13: =SUMIF(Form!AA:AA,B13,Form!G:G) -> 0 | F13: =SUMIF(Form!AA:AA,B13,Form!H:H) -> 0
B14: RU 1020 | C14: 1020 - USS Salaries-Overtime | E14: =SUMIF(Form!AA:AA,B14,Form!G:G) -> 0 | F14: =SUMIF(Form!AA:AA,B14,Form!H:H) -> 0
B15: RU 1030 | C15: 1030 - USS Salaries-Stand-by Pay | E15: =SUMIF(Form!AA:AA,B15,Form!G:G) -> 0 | F15: =SUMIF(Form!AA:AA,B15,Form!H:H) -> 0
B16: RU 1060 | C16: 1060 - VSIP USS Salaries | E16: =SUMIF(Form!AA:AA,B16,Form!G:G) -> 0 | F16: =SUMIF(Form!AA:AA,B16,Form!H:H) -> 0
B17: RU 1090 | C17: 1090 - USS Salaries-Vacation | E17: =SUMIF(Form!AA:AA,B17,Form!G:G) -> 0 | F17: =SUMIF(Form!AA:AA,B17,Form!H:H) -> 0
B18: RU 1010 | C18: 1010 - USS Salaries-Temporary | E18: =SUMIF(Form!AA:AA,B18,Form!G:G) -> 0 | F18: =SUMIF(Form!AA:AA,B18,Form!H:H) -> 0
B20: RU 1120 | C20: 1120 - Grad Assistants-Indirect Instruct | E20: =SUMIF(Form!AA:AA,B20,Form!G:G) -> 0 | F20: =SUMIF(Form!AA:AA,B20,Form!H:H) -> 0
B21: RU 1130 | C21: 1130 - Grad Assistants-Research | E21: =SUMIF(Form!AA:AA,B21,Form!G:G) -> 0 | F21: =SUMIF(Form!AA:AA,B21,Form!H:H) -> 0
B22: RU 1131 | C22: 1131 - Grad Assistants-UGRA | E22: =SUMIF(Form!AA:AA,B22,Form!G:G) -> 0 | F22: =SUMIF(Form!AA:AA,B22,Form!H:H) -> 0
B23: RU 1140 | C23: 1140 - Grad Assistants-Other | E23: =SUMIF(Form!AA:AA,B23,Form!G:G) -> 0 | F23: =SUMIF(Form!AA:AA,B23,Form!H:H) -> 0
B24: RU 1150 | C24: 1150 - Grad Assistants-Direct Instruction | E24: =SUMIF(Form!AA:AA,B24,Form!G:G) -> 0 | F24: =SUMIF(Form!AA:AA,B24,Form!H:H) -> 0
B25: RU 1200 | C25: 1200 - Student Salaries-Regular | E25: =SUMIF(Form!AA:AA,B25,Form!G:G) -> 0 | F25: =SUMIF(Form!AA:AA,B25,Form!H:H) -> 0
B26: RU 1210 | C26: 1210 - Student Salaries-WS-WSU Match | E26: =SUMIF(Form!AA:AA,B26,Form!G:G) -> 0 | F26: =SUMIF(Form!AA:AA,B26,Form!H:H) -> 0
B27: RU 1211 | C27: 1211 - Student Salaries-JLD 25% | E27: =SUMIF(Form!AA:AA,B27,Form!G:G) -> 0 | F27: =SUMIF(Form!AA:AA,B27,Form!H:H) -> 0
B28: RU 1220 | C28: 1220 - Student Salaries-Workstudy Federal | E28: =SUMIF(Form!AA:AA,B28,Form!G:G) -> 0 | F28: =SUMIF(Form!AA:AA,B28,Form!H:H) -> 0
B29: RU 1221 | C29: 1221 - Student Salaries-WS-JLD/Am Rds 100% | E29: =SUMIF(Form!AA:AA,B29,Form!G:G) -> 0 | F29: =SUMIF(Form!AA:AA,B29,Form!H:H) -> 0
C35: Cacluated Benefit Costs To Form | D35: Rate | E35: Decrease | F35: Increase
B36: 1760 | C36: State Leave Pymt Assessment | D36: ='Benefit Rates'!D2 -> 0.0056 | E36: =ROUND(SUM($E$3:$E$33)*D36,2) -> 0 | F36: =ROUND(SUM($F$3:$F$33)*D36,2) -> 0
B37: 1810 | C37: KPERS Retirement | D37: ='Benefit Rates'!D3 -> 0.1154
B38: 1830 | C38: Regents Retirement | D38: ='Benefit Rates'!D4 -> 0.085 | E38: =ROUND((SUM($E$3:$E$8)+SUM($E$13:$E$17))*$D38,2) -> 0 | F38: =ROUND((SUM($F$3:$F$8)+SUM($F$13:$F$17))*$D38,2) -> 0
B39: 1850 | C39: Death & Disability | D39: ='Benefit Rates'!D5 -> 0.01 | E39: =ROUND((SUM($E$3:$E$8)+SUM($E$13:$E$17))*$D39,2) -> 0 | F39: =ROUND((SUM($F$3:$F$8)+SUM($F$13:$F$17))*$D39,2) -> 0
B40: 1880 | C40: KS Police & Fire Retirement Sys | D40: ='Benefit Rates'!D6 -> 0.2286
B41: 1911 | C41: Medicare | D41: ='Benefit Rates'!D7 -> 0.0145 | E41: =ROUND(SUM($E$3:$E$18)*$D41,2) -> 0 | F41: =ROUND(SUM($F$3:$F$18)*$D41,2) -> 0
B42: 1912 | C42: OASDI | D42: ='Benefit Rates'!D8 -> 0.062 | E42: =ROUND(SUM($E$3:$E$18)*$D42,2) -> 0 | F42: =ROUND(SUM($F$3:$F$18)*$D42,2) -> 0
B43: 1970 | C43: Workers Compensation | D43: ='Benefit Rates'!D9 -> 0.00273 | E43: =ROUND(SUM($E$3:$E$33)*D43,2) -> 0 | F43: =ROUND(SUM($F$3:$F$33)*D43,2) -> 0
B44: 1980 | C44: Unemployment Compensation | D44: ='Benefit Rates'!D10 -> 0 | E44: =ROUND(SUM($E$3:$E$18)*$D44,2) -> 0 | F44: =ROUND(SUM($F$3:$F$18)*$D44,2) -> 0

Sheet Orgs (hidden)
L1: REPORT FGRORGH Wichita State University RUN DATE: 10/02/2024
L2: CHART: 1 Organization Hierarchy Report TIME: 01:22 PM
L3: AS OF 02-OCT-2024 PAGE: 1
A5: =H5*1 -> 0 | B5: =IF(ISNUMBER(MID(L5,3,1)*1)=TRUE,"Division",IF(ISNUMBER(MID(L5,5,1)*1)=TRUE,"College",IF(ISNUMBER(MID(L5,7,1)*1)=TRUE,"College2",IF(ISNUMBER(MID(L5,9,6)*1)=TRUE,"Org",IF(ISNUMBER(MID(L5,9,1)*1)=TRUE,"College3","No"))))) -> No | C5: =IF(B5="Division",MID(L5,3,4),C4) -> 0 | D5: =IF(B5="Division",MID(L5,3,4),IF(B5="College",MID(L5,5,5),D4)) -> 0 | E5: =IF(B5="Division",0,IF(B5="College",0,IF(B5="College2",E4,IF(B5="College3",E4,IF(B5="No",E4,IF(B5="Org",E4+1)))))) -> 0 | F5: =IF(E5>0,D5&" "&E5) -> FALSE | G5: =IF(B5="Division",0,IF(B5="College3",3,IF(B5="College2",2,IF(B5="College",1,IF(B5="No",G4,IF(B5="Org",G4)))))) -> 0 | H5: =IF(B5="Org",IF(G5=1,MID(L5,7,6),IF(G5=2,MID(L5,9,6),IF(G5=3,MID(L5,11,6))))) -> FALSE | I5: =IF(B5="Org",IF(G5=1,MID(L5,29,42),IF(G5=2,MID(L5,30,40),IF(G5=3,MID(L5,32,40))))) -> FALSE | J5: =IF(B5="Division",MID(L5,24,45),IF(B5="College",MID(L5,26,45),J4)) -> 0 | L5: DATA CNTL ********* DATES *********
L6: ORGANIZATION DESCRIPTION ENTRY STATUS ORGN CMB EFF TERM NEXT CHANGE
A7: Org. # | C7: Division | D7: College | E7: Index | F7: Index Match | G7: Org. Placement | H7: Org. | I7: Org. Name | J7: College/Division Name | L7: WSU Wichita State University N A 01-OCT-1988 31-DEC-2099
A8: =H8*1 -> 0 | B8: =IF(ISNUMBER(MID(L8,3,1)*1)=TRUE,"Division",IF(ISNUMBER(MID(L8,5,1)*1)=TRUE,"College",IF(ISNUMBER(MID(L8,7,1)*1)=TRUE,"College2",IF(ISNUMBER(MID(L8,9,6)*1)=TRUE,"Org",IF(ISNUMBER(MID(L8,9,1)*1)=TRUE,"College3","No"))))) -> Division | C8: =IF(B8="Division",MID(L8,3,4),C7) -> 1PRB | D8: =IF(B8="Division",MID(L8,3,4),IF(B8="College",MID(L8,5,5),D7)) -> 1PRB | E8: =IF(B8="Division",0,IF(B8="College",0,IF(B8="College2",E7,IF(B8="College3",E7,IF(B8="No",E7,IF(B8="Org",E7+1)))))) -> 0 | F8: =IF(E8>0,D8&" "&E8) -> FALSE | G8: =IF(B8="Division",0,IF(B8="College3",3,IF(B8="College2",2,IF(B8="College",1,IF(B8="No",G7,IF(B8="Org",G7)))))) -> 0 | H8: =IF(B8="Org",IF(G8=1,MID(L8,7,6),IF(G8=2,MID(L8,9,6),IF(G8=3,MID(L8,11,6))))) -> FALSE | I8: =IF(B8="Org",IF(G8=1,MID(L8,29,42),IF(G8=2,MID(L8,30,40),IF(G8=3,MID(L8,32,40))))) -> FALSE | J8: =IF(B8="Division",MID(L8,24,45),IF(B8="College",MID(L8,26,45),J7)) -> Division of the President | L8: 1PRB Division of the President N A 21-OCT-2005 31-DEC-2099
A9: =H9*1 -> 0 | B9: =IF(ISNUMBER(MID(L9,3,1)*1)=TRUE,"Division",IF(ISNUMBER(MID(L9,5,1)*1)=TRUE,"College",IF(ISNUMBER(MID(L9,7,1)*1)=TRUE,"College2",IF(ISNUMBER(MID(L9,9,6)*1)=TRUE,"Org",IF(ISNUMBER(MID(L9,9,1)*1)=TRUE,"College3","No"))))) -> College | C9: =IF(B9="Division",MID(L9,3,4),C8) -> 1PRB | D9: =IF(B9="Division",MID(L9,3,4),IF(B9="College",MID(L9,5,5),D8)) -> 1GCBD | E9: =IF(B9="Division",0,IF(B9="College",0,IF(B9="College2",E8,IF(B9="College3",E8,IF(B9="No",E8,IF(B9="Org",E8+1)))))) -> 0 | F9: =IF(E9>0,D9&" "&E9) -> FALSE | G9: =IF(B9="Division",0,IF(B9="College3",3,IF(B9="College2",2,IF(B9="College",1,IF(B9="No",G8,IF(B9="Org",G8)))))) -> 1 | H9: =IF(B9="Org",IF(G9=1,MID(L9,7,6),IF(G9=2,MID(L9,9,6),IF(G9=3,MID(L9,11,6))))) -> FALSE | I9: =IF(B9="Org",IF(G9=1,MID(L9,29,42),IF(G9=2,MID(L9,30,40),IF(G9=3,MID(L9,32,40))))) -> FALSE | J9: =IF(B9="Division",MID(L9,24,45),IF(B9="College",MID(L9,26,45),J8)) -> General Counsel (College) | L9: 1GCBD General Counsel (College) N A 01-JUL-2020 31-DEC-2099
A10: 0 | B10: College2 | C10: 1PRB | D10: 1GCBD | E10: 0 | F10: FALSE | G10: 2 | H10: FALSE | I10: FALSE | J10: General Counsel (College) | L10: 8GCBDA General Counsel N A 01-JUL-2020 31-DEC-2099
A11: 101512 | B11: Org | C11: 1PRB | D11: 1GCBD | E11: 1 | F11: 1GCBD 1 | G11: 2 | H11: 101512 | I11: Transition to Respect | J11: General Counsel (College) | L11: 101512 Transition to Respect Y A 30-AUG-2007 31-DEC-2099
A12: 101535 | B12: Org | C12: 1PRB | D12: 1GCBD | E12: 2 | F12: 1GCBD 2 | G12: 2 | H12: 101535 | I12: General Counsel | J12: General Counsel (College) | L12: 101535 General Counsel Y A 29-JUN-2015 31-DEC-2099
A13: 101545 | B13: Org | C13: 1PRB | D13: 1GCBD | E13: 3 | F13: 1GCBD 3 | G13: 2 | H13: 101545 | I13: Crisis Management | J13: General Counsel (College) | L13: 101545 Crisis Management Y A 04-FEB-2010 31-DEC-2099
A14: 101557 | B14: Org | C14: 1PRB | D14: 1GCBD | E14: 4 | F14: 1GCBD 4 | G14: 2 | H14: 101557 | I14: General Counsel - Shrinkage Vacant | J14: General Counsel (College) | L14: 101557 General Counsel - Shrinkage Vacant Y A 14-JUL-2020 14-JUL-2020 31-DEC-2099
A15: 101586 | B15: Org | C15: 1PRB | D15: 1GCBD | E15: 5 | F15: 1GCBD 5 | G15: 2 | H15: 101586 | I15: General Counsel - Shrinkage Filled | J15: General Counsel (College) | L15: 101586 General Counsel - Shrinkage Filled Y A 14-JUL-2020 14-JUL-2020 31-DEC-2099
A16: 101639 | B16: Org | C16: 1PRB | D16: 1GCBD | E16: 6 | F16: 1GCBD 6 | G16: 2 | H16: 101639 | I16: VP & Gen Couns-Out of State Travel | J16: General Counsel (College) | L16: 101639 VP & Gen Couns-Out of State Travel Y A 05-AUG-2015 05-AUG-2015 31-DEC-2099
A17: 102397 | B17: Org | C17: 1PRB | D17: 1GCBD | E17: 7 | F17: 1GCBD 7 | G17: 2 | H17: 102397 | I17: Outside Counsel | J17: General Counsel (College) | L17: 102397 Outside Counsel Y A 01-MAY-2017 31-DEC-2099
A18: 0 | B18: College | C18: 1PRB | D18: 1HRBD | E18: 0 | F18: FALSE | G18: 1 | H18: FALSE | I18: FALSE | J18: Workforce Diversity, HR & Prof Dev | L18: 1HRBD Workforce Diversity, HR & Prof Dev N A 01-JUL-2020 31-DEC-2099
A19: 0 | B19: College | C19: 1PRB | D19: 1ICAD | E19: 0 | F19: FALSE | G19: 1 | H19: FALSE | I19: FALSE | J19: Intercollegiate Athletics | L19: 1ICAD Intercollegiate Athletics N A 01-JUL-2020 31-DEC-2099
A20: 0 | B20: College2 | C20: 1PRB | D20: 1ICAD | E20: 0 | F20: FALSE | G20: 2 | H20: FALSE | I20: FALSE | J20: Intercollegiate Athletics | L20: 1ICADA Intercollegiate Athletics N A 01-JUL-2020 31-DEC-2099
A21: 102120 | B21: Org | C21: 1PRB | D21: 1ICAD | E21: 1 | F21: 1ICAD 1 | G21: 2 | H21: 102120 | I21: Intercollegiate Athletics | J21: Intercollegiate Athletics | L21: 102120 Intercollegiate Athletics Y A 01-JUL-2020 31-DEC-2099
A22: 0 | B22: College | C22: 1PRB | D22: 1IECD | E22: 0 | F22: FALSE | G22: 1 | H22: FALSE | I22: FALSE | J22: Office of CivilRights,TitleIX & ADA | L22: 1IECD Office of CivilRights,TitleIX & ADA N A 05-APR-2023 31-DEC-2099
A23: 0 | B23: College2 | C23: 1PRB | D23: 1IECD | E23: 0 | F23: FALSE | G23: 2 | H23: FALSE | I23: FALSE | J23: Office of CivilRights,TitleIX & ADA | L23: 1IECDA Office of CivilRights,TitleIX & ADA N A 05-APR-2023 31-DEC-2099
A24: 101619 | B24: Org | C24: 1PRB | D24: 1IECD | E24: 1 | F24: 1IECD 1 | G24: 2 | H24: 101619 | I24: Office of CivilRights,TitleIX & ADA | J24: Office of CivilRights,TitleIX & ADA | L24: 101619 Office of CivilRights,TitleIX & ADA Y A 05-APR-2023 31-DEC-2099
A25: 0 | B25: College | C25: 1PRB | D25: 1PRBD | E25: 0 | F25: FALSE | G25: 1 | H25: FALSE | I25: FALSE | J25: President's Organizations | L25: 1PRBD President's Organizations N A 21-OCT-2005 31-DEC-2099
A26: 0 | B26: College2 | C26: 1PRB | D26: 1PRBD | E26: 0 | F26: FALSE | G26: 2 | H26: FALSE | I26: FALSE | J26: President's Organizations | L26: 1PRBDA President's Office N A 01-OCT-1988 31-DEC-2099
A27: 101500 | B27: Org | C27: 1PRB | D27: 1PRBD | E27: 1 | F27: 1PRBD 1 | G27: 2 | H27: 101500 | I27: President's Office | J27: President's Organizations | L27: 101500 President's Office Y A 01-OCT-1988 31-DEC-2099
A28: =H28*1 -> 101524 | B28: =IF(ISNUMBER(MID(L28,3,1)*1)=TRUE,"Division",IF(ISNUMBER(MID(L28,5,1)*1)=TRUE,"College",IF(ISNUMBER(MID(L28,7,1)*1)=TRUE,"College2",IF(ISNUMBER(MID(L28,9,6)*1)=TRUE,"Org",IF(ISNUMBER(MID(L28,9,1)*1)=TRUE,"College3","No"))))) -> Org | C28: =IF(B28="Division",MID(L28,3,4),C27) -> 1PRB | D28: =IF(B28="Division",MID(L28,3,4),IF(B28="College",MID(L28,5,5),D27)) -> 1PRBD | E28: =IF(B28="Division",0,IF(B28="College",0,IF(B28="College2",E27,IF(B28="College3",E27,IF(B28="No",E27,IF(B28="Org",E27+1)))))) -> 2 | F28: =IF(E28>0,D28&" "&E28) -> 1PRBD 2 | G28: =IF(B28="Division",0,IF(B28="College3",3,IF(B28="College2",2,IF(B28="College",1,IF(B28="No",G27,IF(B28="Org",G27)))))) -> 2 | H28: =IF(B28="Org",IF(G28=1,MID(L28,7,6),IF(G28=2,MID(L28,9,6),IF(G28=3,MID(L28,11,6))))) -> 101524 | I28: =IF(B28="Org",IF(G28=1,MID(L28,29,42),IF(G28=2,MID(L28,30,40),IF(G28=3,MID(L28,32,40))))) -> VP for University Advancement | J28: =IF(B28="Division",MID(L28,24,45),IF(B28="College",MID(L28,26,45),J27)) -> President's Organizations | L28: 101524 VP for University Advancement Y A 09-JUN-2011 09-JUN-2011 31-DEC-2099
A29: 101539 | B29: Org | C29: 1PRB | D29: 1PRBD | E29: 3 | F29: 1PRBD 3 | G29: 2 | H29: 101539 | I29: VPAA Search | J29: President's Organizations | L29: 101539 VPAA Search Y A 09-FEB-2018 31-DEC-2099
A30: 101544 | B30: Org | C30: 1PRB | D30: 1PRBD | E30: 4 | F30: 1PRBD 4 | G30: 2 | H30: 101544 | I30: VPCLUR Search | J30: President's Organizations | L30: 101544 VPCLUR Search Y A 11-MAR-2011 11-MAR-2011 31-DEC-2099
A31: 101550 | B31: Org | C31: 1PRB | D31: 1PRBD | E31: 5 | F31: 1PRBD 5 | G31: 2 | H31: 101550 | I31: President Emeritus | J31: President's Organizations | L31: 101550 President Emeritus Y A 10-JUL-2013 10-JUL-2013 31-DEC-2099
A32: 101551 | B32: Org | C32: 1PRB | D32: 1PRBD | E32: 6 | F32: 1PRBD 6 | G32: 2 | H32: 101551 | I32: President - Shrinkage Filled | J32: President's Organizations | L32: 101551 President - Shrinkage Filled Y A 11-JUL-2019 31-DEC-2099
A33: 101556 | B33: Org | C33: 1PRB | D33: 1PRBD | E33: 7 | F33: 1PRBD 7 | G33: 2 | H33: 101556 | I33: Univ Adv Shrinkage Requirement | J33: President's Organizations | L33: 101556 Univ Adv Shrinkage Requirement Y A 04-FEB-2011 04-FEB-2011 31-DEC-2099
A34: 101569 | B34: Org | C34: 1PRB | D34: 1PRBD | E34: 8 | F34: 1PRBD 8 | G34: 2 | H34: 101569 | I34: President's Off - Shrinkage Res Rel | J34: President's Organizations | L34: 101569 President's Off - Shrinkage Res Rel Y A 14-JUL-2020 31-DEC-2099
A35: 101583 | B35: Org | C35: 1PRB | D35: 1PRBD | E35: 9 | F35: 1PRBD 9 | G35: 2 | H35: 101583 | I35: Equal Opportunity and Title IX | J35: President's Organizations | L35: 101583 Equal Opportunity and Title IX Y A 08-SEP-2021 08-SEP-2021 31-DEC-2099
A36: 101584 | B36: Org | C36: 1PRB | D36: 1PRBD | E36: 10 | F36: 1PRBD 10 | G36: 2 | H36: 101584 | I36: Special Advisor for the President | J36: President's Organizations | L36: 101584 Special Advisor for the President Y A 07-MAR-2023 31-DEC-2099
A37: 101588 | B37: Org | C37: 1PRB | D37: 1PRBD | E37: 11 | F37: 1PRBD 11 | G37: 2 | H37: 101588 | I37: Internal Audit | J37: President's Organizations | L37: 101588 Internal Audit Y A 18-MAY-2015 31-DEC-2099
A38: 101593 | B38: Org | C38: 1PRB | D38: 1PRBD | E38: 12 | F38: 1PRBD 12 | G38: 2 | H38: 101593 | I38: President - Shrinkage Vacant | J38: President's Organizations | L38: 101593 President - Shrinkage Vacant Y A 21-OCT-2019 31-DEC-2099
A39: 101631 | B39: Org | C39: 1PRB | D39: 1PRBD | E39: 13 | F39: 1PRBD 13 | G39: 2 | H39: 101631 | I39: President-Out of State Travel | J39: President's Organizations | L39: 101631 President-Out of State Travel Y A 01-OCT-1988 31-DEC-2099
A40: 101635 | B40: Org | C40: 1PRB | D40: 1PRBD | E40: 14 | F40: 1PRBD 14 | G40: 2 | H40: 101635 | I40: VPUA-Out of State Travel | J40: President's Organizations | L40: 101635 VPUA-Out of State Travel Y A 04-FEB-2011 04-FEB-2011 31-DEC-2099
A41: 101640 | B41: Org | C41: 1PRB | D41: 1PRBD | E41: 15 | F41: 1PRBD 15 | G41: 2 | H41: 101640 | I41: WSU Tech | J41: President's Organizations | L41: 101640 WSU Tech Y A 01-JUN-2018 31-DEC-2099
A42: 102126 | B42: Org | C42: 1PRB | D42: 1PRBD | E42: 16 | F42: 1PRBD 16 | G42: 2 | H42: 102126 | I42: Mission Related Enhancements | J42: President's Organizations | L42: 102126 Mission Related Enhancements Y A 01-OCT-1988 31-DEC-2099
A43: 0 | B43: College | C43: 1PRB | D43: 1REED | E43: 0 | F43: FALSE | G43: 1 | H43: FALSE | I43: FALSE | J43: Strategic Engagement & Planning | L43: 1REED Strategic Engagement & Planning N A 18-DEC-2020 31-DEC-2099
A44: 0 | B44: College | C44: 1PRB | D44: 1URBD | E44: 0 | F44: FALSE | G44: 1 | H44: FALSE | I44: FALSE | J44: Strategic Communications | L44: 1URBD Strategic Communications N A 01-JUL-2020 31-DEC-2099
A45: 0 | B45: College2 | C45: 1PRB | D45: 1URBD | E45: 0 | F45: FALSE | G45: 2 | H45: FALSE | I45: FALSE | J45: Strategic Communications | L45: 6URBDA Strategic Communications N A 01-JUL-2020 31-DEC-2099
A46: 101553 | B46: Org | C46: 1PRB | D46: 1URBD | E46: 1 | F46: 1URBD 1 | G46: 2 | H46: 101553 | I46: Strategic Com - Shrinkage Vacant | J46: Strategic Communications | L46: 101553 Strategic Com - Shrinkage Vacant Y A 14-JUL-2020 14-JUL-2020 31-DEC-2099
A47: 101575 | B47: Org | C47: 1PRB | D47: 1URBD | E47: 2 | F47: 1URBD 2 | G47: 2 | H47: 101575 | I47: Strategic Com - Shrinkage Filled | J47: Strategic Communications | L47: 101575 Strategic Com - Shrinkage Filled Y A 14-JUL-2020 14-JUL-2020 31-DEC-2099
A48: 101601 | B48: Org | C48: 1PRB | D48: 1URBD | E48: 3 | F48: 1URBD 3 | G48: 2 | H48: 101601 | I48: Interactive Communications | J48: Strategic Communications | L48: 101601 Interactive Communications Y A 04-FEB-2011 04-FEB-2011 31-DEC-2099
A49: 101606 | B49: Org | C49: 1PRB | D49: 1URBD | E49: 4 | F49: 1URBD 4 | G49: 2 | H49: 101606 | I49: Inside WSU News | J49: Strategic Communications | L49: 101606 Inside WSU News Y A 04-FEB-2011 04-FEB-2011 31-DEC-2099
A50: 101610 | B50: Org | C50: 1PRB | D50: 1URBD | E50: 5 | F50: 1URBD 5 | G50: 2 | H50: 101610 | I50: Strategic Communications | J50: Strategic Communications | L50: 101610 Strategic Communications Y A 22-JUL-2014 31-DEC-2099
A51: 101611 | B51: Org | C51: 1PRB | D51: 1URBD | E51: 6 | F51: 1URBD 6 | G51: 2 | H51: 101611 | I51: Univ Relations-Out of State Travel | J51: Strategic Communications | L51: 101611 Univ Relations-Out of State Travel Y A 04-FEB-2011 04-FEB-2011 31-DEC-2099
A52: 101612 | B52: Org | C52: 1PRB | D52: 1URBD | E52: 7 | F52: 1URBD 7 | G52: 2 | H52: 101612 | I52: Creative Services | J52: Strategic Communications | L52: 101612 Creative Services Y A 13-MAR-2024 13-MAR-2024 31-DEC-2099
A53: 101618 | B53: Org | C53: 1PRB | D53: 1URBD | E53: 8 | F53: 1URBD 8 | G53: 2 | H53: 101618 | I53: Memorial '70 Observance | J53: Strategic Communications | L53: 101618 Memorial '70 Observance Y A 29-JUL-2014 29-JUL-2014 31-DEC-2099
A54: 101625 | B54: Org | C54: 1PRB | D54: 1URBD | E54: 9 | F54: 1URBD 9 | G54: 2 | H54: 101625 | I54: Special Events | J54: Strategic Communications | L54: 101625 Special Events Y A 04-FEB-2011 04-FEB-2011 31-DEC-2099
A55: 0 | B55: No | C55: 1PRB | D55: 1URBD | E55: 9 | F55: 1URBD 9 | G55: 2 | H55: FALSE | I55: FALSE | J55: Strategic Communications
A56: 0 | B56: No | C56: 1PRB | D56: 1URBD | E56: 9 | F56: 1URBD 9 | G56: 2 | H56: FALSE | I56: FALSE | J56: Strategic Communications | L56: REPORT FGRORGH Wichita State University RUN DATE: 10/02/2024
A57: 0 | B57: No | C57: 1PRB | D57: 1URBD | E57: 9 | F57: 1URBD 9 | G57: 2 | H57: FALSE | I57: FALSE | J57: Strategic Communications | L57: CHART: 1 Organization Hierarchy Report TIME: 01:22 PM
A58: 0 | B58: No | C58: 1PRB | D58: 1URBD | E58: 9 | F58: 1URBD 9 | G58: 2 | H58: FALSE | I58: FALSE | J58: Strategic Communications | L58: AS OF 02-OCT-2024 PAGE: 2
A59: 0 | B59: No | C59: 1PRB | D59: 1URBD | E59: 9 | F59: 1URBD 9 | G59: 2 | H59: FALSE | I59: FALSE | J59: Strategic Communications
A60: 0 | B60: No | C60: 1PRB | D60: 1URBD | E60: 9 | F60: 1URBD 9 | G60: 2 | H60: FALSE | I60: FALSE | J60: Strategic Communications | L60: DATA CNTL ********* DATES *********
A61: 0 | B61: No | C61: 1PRB | D61: 1URBD | E61: 9 | F61: 1URBD 9 | G61: 2 | H61: FALSE | I61: FALSE | J61: Strategic Communications | L61: ORGANIZATION DESCRIPTION ENTRY STATUS ORGN CMB EFF TERM NEXT CHANGE
A62: 101920 | B62: Org | C62: 1PRB | D62: 1URBD | E62: 10 | F62: 1URBD 10 | G62: 2 | H62: 101920 | I62: University Marketing | J62: Strategic Communications | L62: 101920 University Marketing Y A 01-OCT-1988 31-DEC-2099
A63: 0 | B63: Division | C63: 2AAB | D63: 2AAB | E63: 0 | F63: FALSE | G63: 0 | H63: FALSE | I63: FALSE | J63: Division of Academic Affairs | L63: 2AAB Division of Academic Affairs N A 14-AUG-2013 31-DEC-2099
A64: 0 | B64: College | C64: 2AAB | D64: 2AABD | E64: 0 | F64: FALSE | G64: 1 | H64: FALSE | I64: FALSE | J64: Academic Affairs Direct | L64: 2AABD Academic Affairs Direct N A 19-JUL-2017 31-DEC-2099
A65: 0 | B65: College2 | C65: 2AAB | D65: 2AABD | E65: 0 | F65: FALSE | G65: 2 | H65: FALSE | I65: FALSE | J65: Academic Affairs Direct | L65: 2AABDA Academic Affairs Direct N A 19-JUL-2017 31-DEC-2099
A66: 102121 | B66: Org | C66: 2AAB | D66: 2AABD | E66: 1 | F66: 2AABD 1 | G66: 2 | H66: 102121 | I66: Hispanic Serving Initiatives | J66: Academic Affairs Direct | L66: 102121 Hispanic Serving Initiatives Y A N 04-SEP-2024 31-DEC-2099
A67: 0 | B67: College3 | C67: 2AAB | D67: 2AABD | E67: 1 | F67: 2AABD 1 | G67: 3 | H67: FALSE | I67: FALSE | J67: Academic Affairs Direct | L67: 2AAB10 KMUW N A 01-JUL-2017 31-DEC-2099
A68: 102073 | B68: Org | C68: 2AAB | D68: 2AABD | E68: 2 | F68: 2AABD 2 | G68: 3 | H68: 102073 | I68: KMUW | J68: Academic Affairs Direct | L68: 102073 KMUW Y A 19-JUL-2017 31-DEC-2099
A69: 0 | B69: College3 | C69: 2AAB | D69: 2AABD | E69: 2 | F69: 2AABD 2 | G69: 3 | H69: FALSE | I69: FALSE | J69: Academic Affairs Direct | L69: 2AABD5 Academic Affairs Admin N A 19-JUL-2017 31-DEC-2099
A70: 101509 | B70: Org | C70: 2AAB | D70: 2AABD | E70: 3 | F70: 2AABD 3 | G70: 3 | H70: 101509 | I70: Office of Academic Affairs | J70: Academic Affairs Direct | L70: 101509 Office of Academic Affairs Y A 13-JUL-2021 31-DEC-2099
A71: 101513 | B71: Org | C71: 2AAB | D71: 2AABD | E71: 4 | F71: 2AABD 4 | G71: 3 | H71: 101513 | I71: Institutional Research | J71: Academic Affairs Direct | L71: 101513 Institutional Research Y A 25-MAR-2014 25-MAR-2014 31-DEC-2099
A72: 101515 | B72: Org | C72: 2AAB | D72: 2AABD | E72: 5 | F72: 2AABD 5 | G72: 3 | H72: 101515 | I72: Higher Learning Commission | J72: Academic Affairs Direct | L72: 101515 Higher Learning Commission Y A 01-APR-2012 11-FEB-2010 31-DEC-2099
A73: 101516 | B73: Org | C73: 2AAB | D73: 2AABD | E73: 6 | F73: 2AABD 6 | G73: 3 | H73: 101516 | I73: VPAAR Budget Reduction | J73: Academic Affairs Direct | L73: 101516 VPAAR Budget Reduction Y A 06-AUG-2015 06-AUG-2015 31-DEC-2099
A74: 101519 | B74: Org | C74: 2AAB | D74: 2AABD | E74: 7 | F74: 2AABD 7 | G74: 3 | H74: 101519 | I74: Faculty of Distinction Match Fund | J74: Academic Affairs Direct | L74: 101519 Faculty of Distinction Match Fund Y A 01-APR-2012 31-DEC-2099
A75: 101520 | B75: Org | C75: 2AAB | D75: 2AABD | E75: 8 | F75: 2AABD 8 | G75: 3 | H75: 101520 | I75: Faculty Development Center | J75: Academic Affairs Direct | L75: 101520 Faculty Development Center Y A 01-APR-2012 31-DEC-2099
A76: 101526 | B76: Org | C76: 2AAB | D76: 2AABD | E76: 9 | F76: 2AABD 9 | G76: 3 | H76: 101526 | I76: General Education | J76: Academic Affairs Direct | L76: 101526 General Education Y A 19-JUL-2017 31-DEC-2099
A77: 101538 | B77: Org | C77: 2AAB | D77: 2AABD | E77: 10 | F77: 2AABD 10 | G77: 3 | H77: 101538 | I77: Budget Reduction Academic Affairs | J77: Academic Affairs Direct | L77: 101538 Budget Reduction Academic Affairs Y A 14-APR-2016 31-DEC-2099
A78: 101552 | B78: Org | C78: 2AAB | D78: 2AABD | E78: 11 | F78: 2AABD 11 | G78: 3 | H78: 101552 | I78: Academic Affairs - Shrinkage Filled | J78: Academic Affairs Direct | L78: 101552 Academic Affairs - Shrinkage Filled Y A 21-OCT-2019 31-DEC-2099
A79: 101560 | B79: Org | C79: 2AAB | D79: 2AABD | E79: 12 | F79: 2AABD 12 | G79: 3 | H79: 101560 | I79: Acad Affairs - Shrinkage Res Rel | J79: Academic Affairs Direct | L79: 101560 Acad Affairs - Shrinkage Res Rel Y A 21-OCT-2019 31-DEC-2099
A80: 101576 | B80: Org | C80: 2AAB | D80: 2AABD | E80: 13 | F80: 2AABD 13 | G80: 3 | H80: 101576 | I80: Shrinkage Req-Information Services | J80: Academic Affairs Direct | L80: 101576 Shrinkage Req-Information Services Y A 20-JUL-2017 20-JUL-2017 31-DEC-2099
A81: 101589 | B81: Org | C81: 2AAB | D81: 2AABD | E81: 14 | F81: 2AABD 14 | G81: 3 | H81: 101589 | I81: Leadership Academy | J81: Academic Affairs Direct | L81: 101589 Leadership Academy Y A N 12-SEP-2024 12-SEP-2024 31-DEC-2099
A82: 101591 | B82: Org | C82: 2AAB | D82: 2AABD | E82: 15 | F82: 2AABD 15 | G82: 3 | H82: 101591 | I82: Academic Affairs - Shrinkage Vacant | J82: Academic Affairs Direct | L82: 101591 Academic Affairs - Shrinkage Vacant Y A 21-OCT-2019 31-DEC-2099
A83: 101599 | B83: Org | C83: 2AAB | D83: 2AABD | E83: 16 | F83: 2AABD 16 | G83: 3 | H83: 101599 | I83: Academic Affairs Shrinkage Capture | J83: Academic Affairs Direct | L83: 101599 Academic Affairs Shrinkage Capture Y A 22-SEP-2016 31-DEC-2099
A84: 101609 | B84: Org | C84: 2AAB | D84: 2AABD | E84: 17 | F84: 2AABD 17 | G84: 3 | H84: 101609 | I84: Recruitment-Academic Affairs | J84: Academic Affairs Direct | L84: 101609 Recruitment-Academic Affairs Y A 01-APR-2012 31-DEC-2099
A85: 101613 | B85: Org | C85: 2AAB | D85: 2AABD | E85: 18 | F85: 2AABD 18 | G85: 3 | H85: 101613 | I85: Academic Affairs DE&I | J85: Academic Affairs Direct | L85: 101613 Academic Affairs DE&I Y A 01-JAN-2022 31-DEC-2099
A86: 101614 | B86: Org | C86: 2AAB | D86: 2AABD | E86: 19 | F86: 2AABD 19 | G86: 3 | H86: 101614 | I86: Regents Press of Kansas | J86: Academic Affairs Direct | L86: 101614 Regents Press of Kansas Y A 01-APR-2012 31-DEC-2099
A87: 101633 | B87: Org | C87: 2AAB | D87: 2AABD | E87: 20 | F87: 2AABD 20 | G87: 3 | H87: 101633 | I87: VP Acad Affairs-Out of State Travel | J87: Academic Affairs Direct | L87: 101633 VP Acad Affairs-Out of State Travel Y A 03-JUN-2013 31-DEC-2099
A88: 101636 | B88: Org | C88: 2AAB | D88: 2AABD | E88: 21 | F88: 2AABD 21 | G88: 3 | H88: 101636 | I88: Faculty Senate-Out of State Travel | J88: Academic Affairs Direct | L88: 101636 Faculty Senate-Out of State Travel Y A 01-APR-2012 31-DEC-2099
A89: 101914 | B89: Org | C89: 2AAB | D89: 2AABD | E89: 22 | F89: 2AABD 22 | G89: 3 | H89: 101914 | I89: Registration System | J89: Academic Affairs Direct | L89: 101914 Registration System Y A 20-JUL-2017 20-JUL-2017 31-DEC-2099
A90: 101937 | B90: Org | C90: 2AAB | D90: 2AABD | E90: 23 | F90: 2AABD 23 | G90: 3 | H90: 101937 | I90: Supplemental Instr | J90: Academic Affairs Direct | L90: 101937 Supplemental Instr Y A 20-JUL-2017 20-JUL-2017 31-DEC-2099
A91: 102072 | B91: Org | C91: 2AAB | D91: 2AABD | E91: 24 | F91: 2AABD 24 | G91: 3 | H91: 102072 | I91: Social Science Research Laboratory | J91: Academic Affairs Direct | L91: 102072 Social Science Research Laboratory Y A 06-JUL-2020 31-DEC-2099
A92: =H92*1 -> 102079 | B92: =IF(ISNUMBER(MID(L92,3,1)*1)=TRUE,"Division",IF(ISNUMBER(MID(L92,5,1)*1)=TRUE,"College",IF(ISNUMBER(MID(L92,7,1)*1)=TRUE,"College2",IF(ISNUMBER(MID(L92,9,6)*1)=TRUE,"Org",IF(ISNUMBER(MID(L92,9,1)*1)=TRUE,"College3","No"))))) -> Org | C92: =IF(B92="Division",MID(L92,3,4),C91) -> 2AAB | D92: =IF(B92="Division",MID(L92,3,4),IF(B92="College",MID(L92,5,5),D91)) -> 2AABD | E92: =IF(B92="Division",0,IF(B92="College",0,IF(B92="College2",E91,IF(B92="College3",E91,IF(B92="No",E91,IF(B92="Org",E91+1)))))) -> 25 | F92: =IF(E92>0,D92&" "&E92) -> 2AABD 25 | G92: =IF(B92="Division",0,IF(B92="College3",3,IF(B92="College2",2,IF(B92="College",1,IF(B92="No",G91,IF(B92="Org",G91)))))) -> 3 | H92: =IF(B92="Org",IF(G92=1,MID(L92,7,6),IF(G92=2,MID(L92,9,6),IF(G92=3,MID(L92,11,6))))) -> 102079 | I92: =IF(B92="Org",IF(G92=1,MID(L92,29,42),IF(G92=2,MID(L92,30,40),IF(G92=3,MID(L92,32,40))))) -> Office of Planning and Analysis | J92: =IF(B92="Division",MID(L92,24,45),IF(B92="College",MID(L92,26,45),J91)) -> Academic Affairs Direct | L92: 102079 Office of Planning and Analysis Y A 29-MAY-2012 31-DEC-2099
A93: 102081 | B93: Org | C93: 2AAB | D93: 2AABD | E93: 26 | F93: 2AABD 26 | G93: 3 | H93: 102081 | I93: Academic Programs | J93: Academic Affairs Direct | L93: 102081 Academic Programs Y A 27-OCT-2016 31-DEC-2099
A94: 102082 | B94: Org | C94: 2AAB | D94: 2AABD | E94: 27 | F94: 2AABD 27 | G94: 3 | H94: 102082 | I94: Academic Affairs Contingency | J94: Academic Affairs Direct | L94: 102082 Academic Affairs Contingency Y A 01-APR-2012 31-DEC-2099
A95: 102130 | B95: Org | C95: 2AAB | D95: 2AABD | E95: 28 | F95: 2AABD 28 | G95: 3 | H95: 102130 | I95: Academic Affairs Instruction | J95: Academic Affairs Direct | L95: 102130 Academic Affairs Instruction Y A 01-APR-2012 31-DEC-2099
A96: 102136 | B96: Org | C96: 2AAB | D96: 2AABD | E96: 29 | F96: 2AABD 29 | G96: 3 | H96: 102136 | I96: VPAAR CISCO Overhead | J96: Academic Affairs Direct | L96: 102136 VPAAR CISCO Overhead Y A 07-MAR-2023 08-MAR-2023 31-DEC-2099
A97: 102138 | B97: Org | C97: 2AAB | D97: 2AABD | E97: 30 | F97: 2AABD 30 | G97: 3 | H97: 102138 | I97: Assessment | J97: Academic Affairs Direct | L97: 102138 Assessment Y A 01-APR-2012 31-DEC-2099
A98: 102219 | B98: Org | C98: 2AAB | D98: 2AABD | E98: 31 | F98: 2AABD 31 | G98: 3 | H98: 102219 | I98: Strategic Enrollment Management | J98: Academic Affairs Direct | L98: 102219 Strategic Enrollment Management Y A 02-AUG-2021 31-DEC-2099
A99: 102225 | B99: Org | C99: 2AAB | D99: 2AABD | E99: 32 | F99: 2AABD 32 | G99: 3 | H99: 102225 | I99: Office of Data Governance | J99: Academic Affairs Direct | L99: 102225 Office of Data Governance Y A 16-JUN-2022 31-DEC-2099
A100: 102232 | B100: Org | C100: 2AAB | D100: 2AABD | E100: 33 | F100: 2AABD 33 | G100: 3 | H100: 102232 | I100: NISS AVP of StudSuccess&Persistence | J100: Academic Affairs Direct | L100: 102232 NISS AVP of StudSuccess&Persistence Y A 01-MAY-2023 31-DEC-2099
A101: 102239 | B101: Org | C101: 2AAB | D101: 2AABD | E101: 34 | F101: 2AABD 34 | G101: 3 | H101: 102239 | I101: Wichita Center Biomed Humanities | J101: Academic Affairs Direct | L101: 102239 Wichita Center Biomed Humanities Y A 15-JUN-2023 31-DEC-2099
A102: 102248 | B102: Org | C102: 2AAB | D102: 2AABD | E102: 35 | F102: 2AABD 35 | G102: 3 | H102: 102248 | I102: NISS - Academic Affairs Initiatives | J102: Academic Affairs Direct | L102: 102248 NISS - Academic Affairs Initiatives Y A 01-NOV-2023 31-DEC-2099
A103: 102249 | B103: Org | C103: 2AAB | D103: 2AABD | E103: 36 | F103: 2AABD 36 | G103: 3 | H103: 102249 | I103: Wichita State Connect | J103: Academic Affairs Direct | L103: 102249 Wichita State Connect Y A 01-NOV-2023 31-DEC-2099
A104: 102254 | B104: Org | C104: 2AAB | D104: 2AABD | E104: 37 | F104: 2AABD 37 | G104: 3 | H104: 102254 | I104: Faculty Athletic Representative | J104: Academic Affairs Direct | L104: 102254 Faculty Athletic Representative Y A 01-MAY-2024 31-DEC-2099
A105: 102301 | B105: Org | C105: 2AAB | D105: 2AABD | E105: 38 | F105: 2AABD 38 | G105: 3 | H105: 102301 | I105: WSU-LINK | J105: Academic Affairs Direct | L105: 102301 WSU-LINK Y A 20-JUL-2017 20-JUL-2017 31-DEC-2099
A106: 102398 | B106: Org | C106: 2AAB | D106: 2AABD | E106: 39 | F106: 2AABD 39 | G106: 3 | H106: 102398 | I106: Market Based Tuition | J106: Academic Affairs Direct | L106: 102398 Market Based Tuition Y A 12-JUN-2017 31-DEC-2099
A107: 102404 | B107: Org | C107: 2AAB | D107: 2AABD | E107: 40 | F107: 2AABD 40 | G107: 3 | H107: 102404 | I107: Teacher Apprentice Program (TAP) | J107: Academic Affairs Direct | L107: 102404 Teacher Apprentice Program (TAP) Y A 01-JAN-2018 31-DEC-2099
A108: 102405 | B108: Org | C108: 2AAB | D108: 2AABD | E108: 41 | F108: 2AABD 41 | G108: 3 | H108: 102405 | I108: Badges Tuition | J108: Academic Affairs Direct | L108: 102405 Badges Tuition Y A 01-JAN-2018 31-DEC-2099
A109: 102415 | B109: Org | C109: 2AAB | D109: 2AABD | E109: 42 | F109: 2AABD 42 | G109: 3 | H109: 102415 | I109: OPA Technology Org | J109: Academic Affairs Direct | L109: 102415 OPA Technology Org Y A 01-JAN-2019 31-DEC-2099
A110: 0 | B110: No | C110: 2AAB | D110: 2AABD | E110: 42 | F110: 2AABD 42 | G110: 3 | H110: FALSE | I110: FALSE | J110: Academic Affairs Direct
A111: 0 | B111: No | C111: 2AAB | D111: 2AABD | E111: 42 | F111: 2AABD 42 | G111: 3 | H111: FALSE | I111: FALSE | J111: Academic Affairs Direct | L111: REPORT FGRORGH Wichita State University RUN DATE: 10/02/2024
A112: 0 | B112: No | C112: 2AAB | D112: 2AABD | E112: 42 | F112: 2AABD 42 | G112: 3 | H112: FALSE | I112: FALSE | J112: Academic Affairs Direct | L112: CHART: 1 Organization Hierarchy Report TIME: 01:22 PM
A113: 0 | B113: No | C113: 2AAB | D113: 2AABD | E113: 42 | F113: 2AABD 42 | G113: 3 | H113: FALSE | I113: FALSE | J113: Academic Affairs Direct | L113: AS OF 02-OCT-2024 PAGE: 3
A114: 0 | B114: No | C114: 2AAB | D114: 2AABD | E114: 42 | F114: 2AABD 42 | G114: 3 | H114: FALSE | I114: FALSE | J114: Academic Affairs Direct
A115: 0 | B115: No | C115: 2AAB | D115: 2AABD | E115: 42 | F115: 2AABD 42 | G115: 3 | H115: FALSE | I115: FALSE | J115: Academic Affairs Direct | L115: DATA CNTL ********* DATES *********
A116: 0 | B116: No | C116: 2AAB | D116: 2AABD | E116: 42 | F116: 2AABD 42 | G116: 3 | H116: FALSE | I116: FALSE | J116: Academic Affairs Direct | L116: ORGANIZATION DESCRIPTION ENTRY STATUS ORGN CMB EFF TERM NEXT CHANGE
A117: 102448 | B117: Org | C117: 2AAB | D117: 2AABD | E117: 43 | F117: 2AABD 43 | G117: 3 | H117: 102448 | I117: FacultyAdvanceRetention&Excellence | J117: Academic Affairs Direct | L117: 102448 FacultyAdvanceRetention&Excellence Y A 17-SEP-2024 31-DEC-2099
A118: 102533 | B118: Org | C118: 2AAB | D118: 2AABD | E118: 44 | F118: 2AABD 44 | G118: 3 | H118: 102533 | I118: Summer Incentive | J118: Academic Affairs Direct | L118: 102533 Summer Incentive Y A 01-APR-2020 31-DEC-2099
A119: 102544 | B119: Org | C119: 2AAB | D119: 2AABD | E119: 45 | F119: 2AABD 45 | G119: 3 | H119: 102544 | I119: Shocker Pathways | J119: Academic Affairs Direct | L119: 102544 Shocker Pathways Y A 13-JUL-2021 31-DEC-2099
A120: 102610 | B120: Org | C120: 2AAB | D120: 2AABD | E120: 46 | F120: 2AABD 46 | G120: 3 | H120: 102610 | I120: Academic Outreach Credit Courses | J120: Academic Affairs Direct | L120: 102610 Academic Outreach Credit Courses Y A 01-APR-2012 31-DEC-2099
A121: 102661 | B121: Org | C121: 2AAB | D121: 2AABD | E121: 47 | F121: 2AABD 47 | G121: 3 | H121: 102661 | I121: NISS HSI | J121: Academic Affairs Direct | L121: 102661 NISS HSI Y A 03-SEP-2024 31-DEC-2099
A122: 103041 | B122: Org | C122: 2AAB | D122: 2AABD | E122: 48 | F122: 2AABD 48 | G122: 3 | H122: 103041 | I122: Spec Proj - Acad Affairs Reserve | J122: Academic Affairs Direct | L122: 103041 Spec Proj - Acad Affairs Reserve Y A 01-APR-2012 11-MAR-2011 31-DEC-2099
A123: 108102 | B123: Org | C123: 2AAB | D123: 2AABD | E123: 49 | F123: 2AABD 49 | G123: 3 | H123: 108102 | I123: Scholarships - Academic Affairs | J123: Academic Affairs Direct | L123: 108102 Scholarships - Academic Affairs Y A 01-APR-2012 31-DEC-2099
A124: 108205 | B124: Org | C124: 2AAB | D124: 2AABD | E124: 50 | F124: 2AABD 50 | G124: 3 | H124: 108205 | I124: WSU Foundation - Work Study | J124: Academic Affairs Direct | L124: 108205 WSU Foundation - Work Study Y A 19-JUL-2017 31-DEC-2099
A125: 0 | B125: College3 | C125: 2AAB | D125: 2AABD | E125: 50 | F125: 2AABD 50 | G125: 3 | H125: FALSE | I125: FALSE | J125: Academic Affairs Direct | L125: 2AABD7 ITS N A 01-JUL-2017 31-DEC-2099
A126: 101546 | B126: Org | C126: 2AAB | D126: 2AABD | E126: 51 | F126: 2AABD 51 | G126: 3 | H126: 101546 | I126: Chief Information Officer | J126: Academic Affairs Direct | L126: 101546 Chief Information Officer Y A 20-JUL-2017 20-JUL-2017 31-DEC-2099
A127: 101638 | B127: Org | C127: 2AAB | D127: 2AABD | E127: 52 | F127: 2AABD 52 | G127: 3 | H127: 101638 | I127: ITS-Out of State Travel | J127: Academic Affairs Direct | L127: 101638 ITS-Out of State Travel Y A 20-JUL-2017 20-JUL-2017 31-DEC-2099
A128: 102338 | B128: Org | C128: 2AAB | D128: 2AABD | E128: 53 | F128: 2AABD 53 | G128: 3 | H128: 102338 | I128: ITS-Server Infrastructure | J128: Academic Affairs Direct | L128: 102338 ITS-Server Infrastructure Y A 03-APR-2018 03-APR-2018 31-DEC-2099
A129: 102341 | B129: Org | C129: 2AAB | D129: 2AABD | E129: 54 | F129: 2AABD 54 | G129: 3 | H129: 102341 | I129: ITS-Networking and Operations | J129: Academic Affairs Direct | L129: 102341 ITS-Networking and Operations Y A 03-APR-2018 03-APR-2018 31-DEC-2099
A130: 102342 | B130: Org | C130: 2AAB | D130: 2AABD | E130: 55 | F130: 2AABD 55 | G130: 3 | H130: 102342 | I130: ITS-Shocker Technical Assist Ctr | J130: Academic Affairs Direct | L130: 102342 ITS-Shocker Technical Assist Ctr Y A 20-JUL-2017 20-JUL-2017 31-DEC-2099
A131: 102345 | B131: Org | C131: 2AAB | D131: 2AABD | E131: 56 | F131: 2AABD 56 | G131: 3 | H131: 102345 | I131: ITS-Applications and Development | J131: Academic Affairs Direct | L131: 102345 ITS-Applications and Development Y A 03-APR-2018 03-APR-2018 31-DEC-2099
A132: 102347 | B132: Org | C132: 2AAB | D132: 2AABD | E132: 57 | F132: 2AABD 57 | G132: 3 | H132: 102347 | I132: Technology Innovation | J132: Academic Affairs Direct | L132: 102347 Technology Innovation Y A 03-APR-2018 03-APR-2018 31-DEC-2099
A133: 0 | B133: College3 | C133: 2AAB | D133: 2AABD | E133: 57 | F133: 2AABD 57 | G133: 3 | H133: FALSE | I133: FALSE | J133: Academic Affairs Direct | L133: 2AABD8 Ulrich Museum N A 01-JUL-2017 31-DEC-2099
A134: 102134 | B134: Org | C134: 2AAB | D134: 2AABD | E134: 58 | F134: 2AABD 58 | G134: 3 | H134: 102134 | I134: Ulrich Museum of Art | J134: Academic Affairs Direct | L134: 102134 Ulrich Museum of Art Y A 19-JUL-2017 31-DEC-2099
A135: 102135 | B135: Org | C135: 2AAB | D135: 2AABD | E135: 59 | F135: 2AABD 59 | G135: 3 | H135: 102135 | I135: Ulrich Museum-Out of State Travel | J135: Academic Affairs Direct | L135: 102135 Ulrich Museum-Out of State Travel Y A 11-JUL-2018 11-JUL-2018 31-DEC-2099
A136: 0 | B136: College3 | C136: 2AAB | D136: 2AABD | E136: 59 | F136: 2AABD 59 | G136: 3 | H136: FALSE | I136: FALSE | J136: Academic Affairs Direct | L136: 2AABD9 Faculty Senate N A 01-JUL-2017 31-DEC-2099
A137: 101521 | B137: Org | C137: 2AAB | D137: 2AABD | E137: 60 | F137: 2AABD 60 | G137: 3 | H137: 101521 | I137: Faculty Senate | J137: Academic Affairs Direct | L137: 101521 Faculty Senate Y A 19-JUL-2017 31-DEC-2099
A138: 0 | B138: College3 | C138: 2AAB | D138: 2AABD | E138: 60 | F138: 2AABD 60 | G138: 3 | H138: FALSE | I138: FALSE | J138: Academic Affairs Direct | L138: 2SEB13 Regional Inst On Aging N A 02-AUG-2021 31-DEC-2099
A139: 102358 | B139: Org | C139: 2AAB | D139: 2AABD | E139: 61 | F139: 2AABD 61 | G139: 3 | H139: 102358 | I139: Regional Institute on Aging | J139: Academic Affairs Direct | L139: 102358 Regional Institute on Aging Y A 19-JUL-2017 31-DEC-2099
A140: 0 | B140: College3 | C140: 2AAB | D140: 2AABD | E140: 61 | F140: 2AABD 61 | G140: 3 | H140: FALSE | I140: FALSE | J140: Academic Affairs Direct | L140: 2SEBD5 Community Education N A 29-AUG-2018 31-DEC-2099
A141: 101637 | B141: Org | C141: 2AAB | D141: 2AABD | E141: 62 | F141: 2AABD 62 | G141: 3 | H141: 101637 | I141: Continuing Ed-Out of State Travel | J141: Academic Affairs Direct | L141: 101637 Continuing Ed-Out of State Travel Y A 20-JUL-2017 20-JUL-2017 31-DEC-2099
A142: 101901 | B142: Org | C142: 2AAB | D142: 2AABD | E142: 63 | F142: 2AABD 63 | G142: 3 | H142: 101901 | I142: Commencement | J142: Academic Affairs Direct | L142: 101901 Commencement Y A 19-JUL-2017 31-DEC-2099
A143: 102055 | B143: Org | C143: 2AAB | D143: 2AABD | E143: 64 | F143: 2AABD 64 | G143: 3 | H143: 102055 | I143: University Event & Meeting Services | J143: Academic Affairs Direct | L143: 102055 University Event & Meeting Services Y A 26-JAN-2023 27-JAN-2023 31-DEC-2099
A144: 102226 | B144: Org | C144: 2AAB | D144: 2AABD | E144: 65 | F144: 2AABD 65 | G144: 3 | H144: 102226 | I144: University Event Mgmt Services | J144: Academic Affairs Direct | L144: 102226 University Event Mgmt Services Y A 26-AUG-2022 31-DEC-2099
A145: 102542 | B145: Org | C145: 2AAB | D145: 2AABD | E145: 66 | F145: 2AABD 66 | G145: 3 | H145: 102542 | I145: Badge/Life Long Learning | J145: Academic Affairs Direct | L145: 102542 Badge/Life Long Learning Y A 13-MAY-2021 31-DEC-2099
A146: 102630 | B146: Org | C146: 2AAB | D146: 2AABD | E146: 67 | F146: 2AABD 67 | G146: 3 | H146: 102630 | I146: Conference Support | J146: Academic Affairs Direct | L146: 102630 Conference Support Y A 19-JUL-2017 31-DEC-2099
A147: 102633 | B147: Org | C147: 2AAB | D147: 2AABD | E147: 68 | F147: 2AABD 68 | G147: 3 | H147: 102633 | I147: Univ Conf & Non-Credit Programs | J147: Academic Affairs Direct | L147: 102633 Univ Conf & Non-Credit Programs Y A 19-JUL-2017 31-DEC-2099
A148: 102635 | B148: Org | C148: 2AAB | D148: 2AABD | E148: 69 | F148: 2AABD 69 | G148: 3 | H148: 102635 | I148: Community Education | J148: Academic Affairs Direct | L148: 102635 Community Education Y A 19-JUL-2017 31-DEC-2099
A149: 102636 | B149: Org | C149: 2AAB | D149: 2AABD | E149: 70 | F149: 2AABD 70 | G149: 3 | H149: 102636 | I149: Hughes Metropolitan Complex | J149: Academic Affairs Direct | L149: 102636 Hughes Metropolitan Complex Y A 19-JUL-2017 31-DEC-2099
A150: 102639 | B150: Org | C150: 2AAB | D150: 2AABD | E150: 71 | F150: 2AABD 71 | G150: 3 | H150: 102639 | I150: Workforce Development | J150: Academic Affairs Direct | L150: 102639 Workforce Development Y A 19-JUL-2017 31-DEC-2099
A151: 0 | B151: College | C151: 2AAB | D151: 2ANBD | E151: 0 | F151: FALSE | G151: 1 | H151: FALSE | I151: FALSE | J151: Adv Networking Research Institute | L151: 2ANBD Adv Networking Research Institute N A 25-AUG-2011 31-DEC-2099
A152: 0 | B152: College | C152: 2AAB | D152: 2APBD | E152: 0 | F152: FALSE | G152: 1 | H152: FALSE | I152: FALSE | J152: Academic Programs | L152: 2APBD Academic Programs N A 01-JUL-2017 31-DEC-2099
A153: 0 | B153: College2 | C153: 2AAB | D153: 2APBD | E153: 0 | F153: FALSE | G153: 2 | H153: FALSE | I153: FALSE | J153: Academic Programs | L153: 2APBDA Academic Programs N A 01-JUL-2017 31-DEC-2099
A154: 0 | B154: College3 | C154: 2AAB | D154: 2APBD | E154: 0 | F154: FALSE | G154: 3 | H154: FALSE | I154: FALSE | J154: Academic Programs | L154: 2APBD5 WSU West N A 01-JUL-2017 31-DEC-2099
A155: 102602 | B155: Org | C155: 2AAB | D155: 2APBD | E155: 1 | F155: 2APBD 1 | G155: 3 | H155: 102602 | I155: WSU West | J155: Academic Programs | L155: 102602 WSU West Y A 19-JUL-2017 31-DEC-2099
A156: =H156*1 -> 0 | B156: =IF(ISNUMBER(MID(L156,3,1)*1)=TRUE,"Division",IF(ISNUMBER(MID(L156,5,1)*1)=TRUE,"College",IF(ISNUMBER(MID(L156,7,1)*1)=TRUE,"College2",IF(ISNUMBER(MID(L156,9,6)*1)=TRUE,"Org",IF(ISNUMBER(MID(L156,9,1)*1)=TRUE,"College3","No"))))) -> College3 | C156: =IF(B156="Division",MID(L156,3,4),C155) -> 2AAB | D156: =IF(B156="Division",MID(L156,3,4),IF(B156="College",MID(L156,5,5),D155)) -> 2APBD | E156: =IF(B156="Division",0,IF(B156="College",0,IF(B156="College2",E155,IF(B156="College3",E155,IF(B156="No",E155,IF(B156="Org",E155+1)))))) -> 1 | F156: =IF(E156>0,D156&" "&E156) -> 2APBD 1 | G156: =IF(B156="Division",0,IF(B156="College3",3,IF(B156="College2",2,IF(B156="College",1,IF(B156="No",G155,IF(B156="Org",G155)))))) -> 3 | H156: =IF(B156="Org",IF(G156=1,MID(L156,7,6),IF(G156=2,MID(L156,9,6),IF(G156=3,MID(L156,11,6))))) -> FALSE | I156: =IF(B156="Org",IF(G156=1,MID(L156,29,42),IF(G156=2,MID(L156,30,40),IF(G156=3,MID(L156,32,40))))) -> FALSE | J156: =IF(B156="Division",MID(L156,24,45),IF(B156="College",MID(L156,26,45),J155)) -> Academic Programs | L156: 2APBD6 WSU South N A 01-JUL-2017 31-DEC-2099
A157: 102607 | B157: Org | C157: 2AAB | D157: 2APBD | E157: 2 | F157: 2APBD 2 | G157: 3 | H157: 102607 | I157: WSU Old Town | J157: Academic Programs | L157: 102607 WSU Old Town Y A 02-AUG-2023 31-DEC-2099
A158: 0 | B158: College3 | C158: 2AAB | D158: 2APBD | E158: 2 | F158: 2APBD 2 | G158: 3 | H158: FALSE | I158: FALSE | J158: Academic Programs | L158: 2APBD8 WSU Haysville N A 01-MAR-2018 31-DEC-2099
A159: 102407 | B159: Org | C159: 2AAB | D159: 2APBD | E159: 3 | F159: 2APBD 3 | G159: 3 | H159: 102407 | I159: WSU Haysville | J159: Academic Programs | L159: 102407 WSU Haysville Y A 01-MAR-2018 31-DEC-2099
A160: 0 | B160: College3 | C160: 2AAB | D160: 2APBD | E160: 3 | F160: 2APBD 3 | G160: 3 | H160: FALSE | I160: FALSE | J160: Academic Programs | L160: 2APBD9 WSU McConnell N A 01-AUG-2018 31-DEC-2099
A161: 102412 | B161: Org | C161: 2AAB | D161: 2APBD | E161: 4 | F161: 2APBD 4 | G161: 3 | H161: 102412 | I161: McConnell | J161: Academic Programs | L161: 102412 McConnell Y A 02-AUG-2018 31-DEC-2099
A162: 0 | B162: College | C162: 2AAB | D162: 2BABD | E162: 0 | F162: FALSE | G162: 1 | H162: FALSE | I162: FALSE | J162: Barton School of Business | L162: 2BABD Barton School of Business N A 24-OCT-2005 31-DEC-2099
A163: 0 | B163: College2 | C163: 2AAB | D163: 2BABD | E163: 0 | F163: FALSE | G163: 2 | H163: FALSE | I163: FALSE | J163: Barton School of Business | L163: 2BABDA Barton School of Business N A 11-OCT-2006 31-DEC-2099
A164: 0 | B164: College3 | C164: 2AAB | D164: 2BABD | E164: 0 | F164: FALSE | G164: 3 | H164: FALSE | I164: FALSE | J164: Barton School of Business | L164: 2BABD5 Barton School of Business N A 01-APR-2012 31-DEC-2099
A165: 0 | B165: No | C165: 2AAB | D165: 2BABD | E165: 0 | F165: FALSE | G165: 3 | H165: FALSE | I165: FALSE | J165: Barton School of Business
A166: 0 | B166: No | C166: 2AAB | D166: 2BABD | E166: 0 | F166: FALSE | G166: 3 | H166: FALSE | I166: FALSE | J166: Barton School of Business | L166: REPORT FGRORGH Wichita State University RUN DATE: 10/02/2024
A167: 0 | B167: No | C167: 2AAB | D167: 2BABD | E167: 0 | F167: FALSE | G167: 3 | H167: FALSE | I167: FALSE | J167: Barton School of Business | L167: CHART: 1 Organization Hierarchy Report TIME: 01:22 PM
A168: 0 | B168: No | C168: 2AAB | D168: 2BABD | E168: 0 | F168: FALSE | G168: 3 | H168: FALSE | I168: FALSE | J168: Barton School of Business | L168: AS OF 02-OCT-2024 PAGE: 4
A169: 0 | B169: No | C169: 2AAB | D169: 2BABD | E169: 0 | F169: FALSE | G169: 3 | H169: FALSE | I169: FALSE | J169: Barton School of Business
A170: 0 | B170: No | C170: 2AAB | D170: 2BABD | E170: 0 | F170: FALSE | G170: 3 | H170: FALSE | I170: FALSE | J170: Barton School of Business | L170: DATA CNTL ********* DATES *********
A171: 0 | B171: No | C171: 2AAB | D171: 2BABD | E171: 0 | F171: FALSE | G171: 3 | H171: FALSE | I171: FALSE | J171: Barton School of Business | L171: ORGANIZATION DESCRIPTION ENTRY STATUS ORGN CMB EFF TERM NEXT CHANGE
A172: 101562 | B172: Org | C172: 2AAB | D172: 2BABD | E172: 1 | F172: 2BABD 1 | G172: 3 | H172: 101562 | I172: Barton School - Shrinkage Res Rel | J172: Barton School of Business | L172: 101562 Barton School - Shrinkage Res Rel Y A 21-OCT-2019 31-DEC-2099
A173: 101570 | B173: Org | C173: 2AAB | D173: 2BABD | E173: 2 | F173: 2BABD 2 | G173: 3 | H173: 101570 | I173: Shrinkage - Barton School | J173: Barton School of Business | L173: 101570 Shrinkage - Barton School Y A 08-JUL-2015 31-DEC-2099
A174: 102000 | B174: Org | C174: 2AAB | D174: 2BABD | E174: 3 | F174: 2BABD 3 | G174: 3 | H174: 102000 | I174: Barton School Dean's Office | J174: Barton School of Business | L174: 102000 Barton School Dean's Office Y A 01-APR-2012 31-DEC-2099
A175: 102001 | B175: Org | C175: 2AAB | D175: 2BABD | E175: 4 | F175: 2BABD 4 | G175: 3 | H175: 102001 | I175: School of Accountancy | J175: Barton School of Business | L175: 102001 School of Accountancy Y A 01-APR-2012 31-DEC-2099
A176: 102002 | B176: Org | C176: 2AAB | D176: 2BABD | E176: 5 | F176: 2BABD 5 | G176: 3 | H176: 102002 | I176: Marketing, Advertising and Promo | J176: Barton School of Business | L176: 102002 Marketing, Advertising and Promo Y A 18-AUG-2021 31-DEC-2099
A177: 102003 | B177: Org | C177: 2AAB | D177: 2BABD | E177: 6 | F177: 2BABD 6 | G177: 3 | H177: 102003 | I177: Barton School Contingency | J177: Barton School of Business | L177: 102003 Barton School Contingency Y I 30-JUN-2024 30-JUN-2024 31-DEC-2099
A178: 102004 | B178: Org | C178: 2AAB | D178: 2BABD | E178: 7 | F178: 2BABD 7 | G178: 3 | H178: 102004 | I178: Economics | J178: Barton School of Business | L178: 102004 Economics Y A 01-APR-2012 31-DEC-2099
A179: 102005 | B179: Org | C179: 2AAB | D179: 2BABD | E179: 8 | F179: 2BABD 8 | G179: 3 | H179: 102005 | I179: Barton Sch Student Success Center | J179: Barton School of Business | L179: 102005 Barton Sch Student Success Center Y A 11-JUN-2020 31-DEC-2099
A180: 102006 | B180: Org | C180: 2AAB | D180: 2BABD | E180: 9 | F180: 2BABD 9 | G180: 3 | H180: 102006 | I180: Center for Economic Education | J180: Barton School of Business | L180: 102006 Center for Economic Education Y A 01-APR-2012 31-DEC-2099
A181: 102007 | B181: Org | C181: 2AAB | D181: 2BABD | E181: 10 | F181: 2BABD 10 | G181: 3 | H181: 102007 | I181: Barton School Graduate Assistants | J181: Barton School of Business | L181: 102007 Barton School Graduate Assistants Y I 30-JUN-2024 30-JUN-2024 31-DEC-2099
A182: 102008 | B182: Org | C182: 2AAB | D182: 2BABD | E182: 11 | F182: 2BABD 11 | G182: 3 | H182: 102008 | I182: Barton School Graduate Programs | J182: Barton School of Business | L182: 102008 Barton School Graduate Programs Y A 15-JUN-2020 31-DEC-2099
A183: 102090 | B183: Org | C183: 2AAB | D183: 2BABD | E183: 12 | F183: 2BABD 12 | G183: 3 | H183: 102090 | I183: Center for Econ Dev & Business Res | J183: Barton School of Business | L183: 102090 Center for Econ Dev & Business Res Y A 01-APR-2012 31-DEC-2099
A184: 102092 | B184: Org | C184: 2AAB | D184: 2BABD | E184: 13 | F184: 2BABD 13 | G184: 3 | H184: 102092 | I184: Marketing | J184: Barton School of Business | L184: 102092 Marketing Y A 01-APR-2012 31-DEC-2099
A185: 102093 | B185: Org | C185: 2AAB | D185: 2BABD | E185: 14 | F185: 2BABD 14 | G185: 3 | H185: 102093 | I185: Management | J185: Barton School of Business | L185: 102093 Management Y A 01-APR-2012 31-DEC-2099
A186: 102094 | B186: Org | C186: 2AAB | D186: 2BABD | E186: 15 | F186: 2BABD 15 | G186: 3 | H186: 102094 | I186: Finance Real Estate & Decision Sci | J186: Barton School of Business | L186: 102094 Finance Real Estate & Decision Sci Y A 01-APR-2012 31-DEC-2099
A187: 102096 | B187: Org | C187: 2AAB | D187: 2BABD | E187: 16 | F187: 2BABD 16 | G187: 3 | H187: 102096 | I187: Barton School Operations | J187: Barton School of Business | L187: 102096 Barton School Operations Y A 24-MAR-2014 31-DEC-2099
A188: 102180 | B188: Org | C188: 2AAB | D188: 2BABD | E188: 17 | F188: 2BABD 17 | G188: 3 | H188: 102180 | I188: Barton School Lecturers | J188: Barton School of Business | L188: 102180 Barton School Lecturers Y A 01-APR-2012 31-DEC-2099
A189: 102182 | B189: Org | C189: 2AAB | D189: 2BABD | E189: 18 | F189: 2BABD 18 | G189: 3 | H189: 102182 | I189: Center for Real Estate | J189: Barton School of Business | L189: 102182 Center for Real Estate Y A 01-APR-2012 31-DEC-2099
A190: 102210 | B190: Org | C190: 2AAB | D190: 2BABD | E190: 19 | F190: 2BABD 19 | G190: 3 | H190: 102210 | I190: Inst for Study of Economic Growth | J190: Barton School of Business | L190: 102210 Inst for Study of Economic Growth Y A 01-AUG-2018 31-DEC-2099
A191: 102218 | B191: Org | C191: 2AAB | D191: 2BABD | E191: 20 | F191: 2BABD 20 | G191: 3 | H191: 102218 | I191: Barton School Undergrad Recruiting | J191: Barton School of Business | L191: 102218 Barton School Undergrad Recruiting Y A 16-AUG-2021 31-DEC-2099
A192: 102256 | B192: Org | C192: 2AAB | D192: 2BABD | E192: 21 | F192: 2BABD 21 | G192: 3 | H192: 102256 | I192: BartonCareer&ProfessionDevelpOffice | J192: Barton School of Business | L192: 102256 BartonCareer&ProfessionDevelpOffice Y A 01-JUL-2024 31-DEC-2099
A193: 102308 | B193: Org | C193: 2AAB | D193: 2BABD | E193: 22 | F193: 2BABD 22 | G193: 3 | H193: 102308 | I193: Kansas Council on Economic Ed | J193: Barton School of Business | L193: 102308 Kansas Council on Economic Ed Y A 01-APR-2012 31-DEC-2099
A194: 102322 | B194: Org | C194: 2AAB | D194: 2BABD | E194: 23 | F194: 2BABD 23 | G194: 3 | H194: 102322 | I194: Barton School Faculty Development | J194: Barton School of Business | L194: 102322 Barton School Faculty Development Y A 15-JUN-2017 31-DEC-2099
A195: 102371 | B195: Org | C195: 2AAB | D195: 2BABD | E195: 24 | F195: 2BABD 24 | G195: 3 | H195: 102371 | I195: Business Oper and Analytics Lab | J195: Barton School of Business | L195: 102371 Business Oper and Analytics Lab Y A 20-NOV-2015 31-DEC-2099
A196: 102507 | B196: Org | C196: 2AAB | D196: 2BABD | E196: 25 | F196: 2BABD 25 | G196: 3 | H196: 102507 | I196: Summer Workshop-Barton School | J196: Barton School of Business | L196: 102507 Summer Workshop-Barton School Y A 01-APR-2012 30-MAR-2011 31-DEC-2099
A197: 102526 | B197: Org | C197: 2AAB | D197: 2BABD | E197: 26 | F197: 2BABD 26 | G197: 3 | H197: 102526 | I197: Barton School Summer Session | J197: Barton School of Business | L197: 102526 Barton School Summer Session Y A 01-APR-2012 31-DEC-2099
A198: 102603 | B198: Org | C198: 2AAB | D198: 2BABD | E198: 27 | F198: 2BABD 27 | G198: 3 | H198: 102603 | I198: Barton School Acctg & Auditing Conf | J198: Barton School of Business | L198: 102603 Barton School Acctg & Auditing Conf Y A 25-MAR-2013 31-DEC-2099
A199: 102606 | B199: Org | C199: 2AAB | D199: 2BABD | E199: 28 | F199: 2BABD 28 | G199: 3 | H199: 102606 | I199: Center for Management Development | J199: Barton School of Business | L199: 102606 Center for Management Development Y A 01-APR-2012 31-DEC-2099
A200: 102619 | B200: Org | C200: 2AAB | D200: 2BABD | E200: 29 | F200: 2BABD 29 | G200: 3 | H200: 102619 | I200: Executive MBA | J200: Barton School of Business | L200: 102619 Executive MBA Y A 01-APR-2012 31-DEC-2099
A201: 0 | B201: College | C201: 2AAB | D201: 2CCBD | E201: 0 | F201: FALSE | G201: 1 | H201: FALSE | I201: FALSE | J201: Information Technology Services | L201: 2CCBD Information Technology Services N A 30-JUL-2014 31-DEC-2099
... 6029 more rows

Sheet Funds (hidden)
B1: FUND_LEVEL_2 | C1: FUND_DESC | H1: From DBVIS actuals & budget
B2: 1000AF | C2: General Fund Aviation Research
B3: 1000AI | C3: General Fund Aviation Infrastructur
B4: 1000GF | C4: General Fund
B5: 1000IF | C5: General Fund Misc
B6: 1000KF | C6: General Fund - Capital Renewal
B7: 1000RF | C7: General Fund - Cost Match
B8: 1000UR | C8: General Fund - University Research
B9: 1900AI | C9: SEDIF Aviation Infrastructure
B10: 1900IF | C10: State Economic Dev Initiative Fund
B11: 1PRBD1 | C11: RU President's (College)
B12: 1REBD1 | C12: RU Strategic Engagement & Planning
B13: 1REBD1 | C13: RU Regional Eng & Economic Dev
B14: 2052RF | C14: Aviation Research (KART)
B15: 2112FF | C15: General Fees Fund
B16: 2112IT | C16: General Fees Fund-Info Technology
B17: 2112RF | C17: General Fees Fund - Cost Match
B18: 2112RI | C18: General Fees Fund - R&I Maintenance
B19: 2112UR | C19: General Fees Fund - Univer Research
B20: 2112XX | C20: General Fees-Fed Grant State Match
B21: 2155RF | C21: Kan-Grow Engineering Fund
B22: 2477FD | C22: Faculty of Distinction Match Fund
B23: 2489RF | C23: KS Deferred Maint Support Fund
B24: 2536KW | C24: KS Career Work Study Program Fund
B25: 2558DF | C25: Restricted Fees Fund - Designated
B26: 2558DS | C26: Restricted Fees Fund-Designated Res
B27: 2558EF | C27: Restricted Fees Fund - External
B28: 2558RF | C28: Restricted Fees Fund
B29: 2750RF | C29: Ctr of Innov for Biomat in Orth Res
B30: 2849RF | C30: KS Infrastructure Maintenance Fund
B31: 2908SR | C31: SR Sponsored Research Overhead Fund
B32: 2927KA | C32: Scientific Res Dev Proj Facilities
B33: 2AABD1 | C33: RU Academic Affairs (College)
B34: 2ANBD1 | C34: RU ANRI
B35: 2BABD1 | C35: RU Barton School
B36: 2CCBD1 | C36: RU UCAT's College
B37: 2CCBD1 | C37: RU Information Technology Services
B38: 2CEBD1 | C38: RU Continuing Ed
B39: 2EDBD1 | C39: RU College of Education
B40: 2EDBD1 | C40: RU College of Applied Studies
B41: 2ENBD1 | C41: RU College of Engineering
B42: 2FABD1 | C42: RU College of Fine Arts
B43: 2GSBD1 | C43: RU Graduate School
B44: 2HPBD1 | C44: RU Health Professions
B45: 2HPEF1 | C45: RU T3 - External Source
B46: 2IABD1 | C46: RU NIAR
B47: 2ICBD1 | C47: RU Instit Interdisciplinary Creativ
B48: 2ITBD1 | C48: RU Information Technology
B49: 2LABD1 | C49: RU College of Liberal Arts
B50: 2LIBD1 | C50: RU Library
B51: 2MRBD1 | C51: RU Media Resources
B52: 2MVBD1 | C52: RU Military Vets & First Responders
B53: 2RABD1 | C53: RU Research Admin (College)
B54: 2USBD1 | C54: RU Undergraduate Studies
B55: 3119LP | C55: LEAP Leverage Educ Assist Partn-FED
B56: 3149FF | C56: University Federal Fund
B57: 3263FF | C57: Federal Grant Fund - ARRA
B58: 3265WS | C58: (Work Study) Econ Opport Act - Fed
B59: 3266SE | C59: SEOG Educational Opportunity Fund
B60: 3366PG | C60: Pell Grants Fund
B61: 3439RF | C61: Fed Higher Ed Fiscal Stabilization
B62: 3638FF | C62: Gov Emer Relief GEER
B63: 3753FF | C63: Coronavirus Relief Fund
B64: 3AFBD1 | C64: RU Administration Finance (College)
B65: 3ASBD1 | C65: RU Adminstrative Services
B66: 3COBD1 | C66: RU Controller's Office
B67: 3CREV1 | C67: RU General Fees Department
B68: 3CSTU1 | C68: RU Controller's Office Student Fund
B69: 3CWSU1 | C69: RU Controller Office Clearing Funds
B70: 3FPBD1 | C70: RU Facilities Planning
B71: 3HRBD1 | C71: RU Human Resources
B72: 3ICBD1 | C72: RU Innovation Campus Administration
B73: 3ISBD1 | C73: RU Information Security
B74: 3ITBD1 | C74: RU Information Technology Services
B75: 3PDBD1 | C75: RU WSU Police Dept
B76: 3PPBD1 | C76: RU Physical Plant
B77: 4ANBD1 | C77: RU ANRI
B78: 4ANEF1 | C78: RU ANRI - External Source
B79: 4ANEF1 | C79: RU ENNOVAR - External Source
B80: 4IABD1 | C80: RU NIAR
B81: 4IAEF1 | C81: RU NIAR - External Source
B82: 4IDBD1 | C82: RU Industry & Defense
B83: 4IDEF1 | C83: RU I&D - Other - External Source
B84: 4PRBD1 | C84: RU President's Office (College)
B85: 4RABD1 | C85: RU Research Admin (College)
B86: 4RABD1 | C86: RU Research & Tech Transfer (Coll)
B87: 4RABD2 | C87: RU Research & Tech Transfer (Coll)
B88: 4RABD2 | C88: RU Research & Tech Transfer -Other
B89: 4RABD3 | C89: RU Research & Tech Trans -Projects
B90: 4RAEF1 | C90: RU RTT - External Source
B91: 4RAEF2 | C91: RU RTT - Other - External Source
B92: 4RAEF3 | C92: RU Other External Research Awards
B93: 4RAEF4 | C93: RU RTT - Training & Tech Team T3
B94: 5006HB | C94: Housing Sys Ren KFA 2010D Proj Acct
B95: 5006HS | C95: Housing System Funds
B96: 5100HR | C96: WSU Housing System Revenue Fund
B97: 5140HF | C97: 1976 Dorm. Maint. Reserve Fund
B98: 5148PR | C98: Parking System Revenue Fund
B99: 5151PS | C99: Parking System Funds
B100: 5159PS | C100: Parking System Maint & Const Fund
B101: 5620HS | C101: WSU Housing System Surplus Fund
B102: 5634HS | C102: 1976 Dorm. Maint. Reserve Fund
B103: 5705DS | C103: Dormitory Suspense Fund
B104: 5800HS | C104: WSU Housing System Deprec & Replac
B105: 5ESBD1 | C105: RU Enrollment Services
B106: 5ESBD1 | C106: RU Student Engagement/Enroll Mgmt
B107: 5ESBD1 | C107: RU Campus Life/Univ Relations-Other
B108: 5ESBD1 | C108: RU Student Engagement/Enroll Serv
B109: 5SABD1 | C109: RU Student Affairs (College)
B110: 5SABD1 | C110: RU Campus Life & Univ Rel (College)
B111: 5SABD1 | C111: RU Student Engagement (General)
B112: 5SABD1 | C112: RU Student Affairs (General)
B113: 5SALG1 | C113: RURES Student Affairs (College)
B114: 5SLBD1 | C114: RU Student Life
B115: 5SLBD1 | C115: RU Student Engagement
B116: 5SLBD1 | C116: RU Student Engagement-Dean of Stude
B117: 5SLBD1 | C117: RU Student Engagmnt-Dean of Student
B118: 5TRBD1 | C118: RU Disability Services & Trio Prgs
B119: 6008AF | C119: Clearing Funds
B120: 6UABD1 | C120: RU University Advancement (College)
B121: 6URBD1 | C121: RU University Relations
B122: 6URBD1 | C122: RU Strategic Communications
B123: 700923 | C123: GU Uncovering lost work of the West
B124: 7211SF | C124: Scholarship Funds
B125: 7519PL | C125: Federal Perkins Loan Fund
B126: 7520HP | C126: Health Prof - Student Loan Fund
B127: 7700PC | C127: State Payroll Liability Clear Fund
B128: 7717PC | C128: Nine Months Payroll Clearing Fund
B129: 7730SL | C129: State Sick Leave Reserve Fund
B130: 7AALG1 | C130: RURES Academic Affairs (College)
B131: 7AOLG1 | C131: RURES Academic Outreach
B132: 7BALG1 | C132: RURES Barton School
B133: 7CCLG1 | C133: RURES Computing Center
B134: 7EDLG1 | C134: RURES College of Education
B135: 7ENLG1 | C135: RURES College of Engineering
B136: 7FALG1 | C136: Edwin A. Ulrich Museum of Art
B137: 7HPLG1 | C137: RURES College of Health Professions
B138: 7IALG1 | C138: RURES NIAR
B139: 7LALG1 | C139: RURES College of Liberal Arts
B140: 7LALR1 | C140: RU College of Liberal Arts
B141: 7MRLG1 | C141: RURES Media Resources Center
B142: 7RALG1 | C142: RURES Research Administration
B143: 7SALG1 | C143: RURES Student Affairs (College)
B144: 8001RR | C144: RR Prj-Disabl Act/Fire Compli/Imp
B145: 8246DK | C145: KDFA Funds
B146: 8246KA | C146: KDFA Funds
B147: 8258DK | C147: KDFA Funds
B148: 8258KA | C148: KDFA Funds
B149: 8265DK | C149: KDFA 2021L Projects
B150: 8265KA | C150: KDFA 2021L Projects
B151: 8280DK | C151: KDFA 2022G Projects
B152: 8280KA | C152: KDFA 2022G Projects
B153: 8322RR | C153: RR KDFA Proj 2004F Salina
B154: 8408DK | C154: KDFA Funds
B155: 8408KA | C155: KDFA Funds
B156: 8412DK | C156: KDFA Funds
B157: 8412KA | C157: KDFA Funds
B158: 8GCBD1 | C158: RU General Counsel (College)
B159: 9059TD | C159: Temporary Deposit Account
B160: 9077SF | C160: Suspense Fund
B161: 9144MR | C161: Mand Retirement Annuity Clear Fund
B162: 9169RA | C162: Vol Retirement Annuity Clear Fund
B163: 9226PT | C163: Pre-Tax Parking Deduction
B164: 9650 | C164: ICAA
B165: 965000 | C165: ICAA
B166: 9657 | C166: Revolving Fund
B167: 965700 | C167: Revolving Fund
B168: 965710 | C168: Cessna Stadium Rentals
B169: 965721 | C169: All Amerian Club Rentals
B170: 965722 | C170: Eck Stadium Rentals
B171: 965731 | C171: Champions Club Rentals
B172: 965732 | C172: SASO Room Rental
B173: 965733 | C173: Multi Purpose Center Rental
B174: 965734 | C174: Charles Koch Arena Rentals-Other
B175: 965750 | C175: Wilkins Stadium Rentals
B176: 965760 | C176: Coleman Tennis Pro Shop
B177: 965791 | C177: Other Revolving
B178: 9657A | C178: Revolving Fund
B179: 9657B | C179: Cessna Stadium Rentals
B180: 9657C | C180: Eck Stadium Rentals
B181: 9657D | C181: Charles Koch Arena Rentals
B182: 9657E | C182: Wilkins Stadium Rentals
B183: 9657F | C183: Coleman Tennis Pro Shop
B184: 9657G | C184: Other Revolving
B185: 9665 | C185: Roundhouse Renaissance
B186: 966500 | C186: Roundhouse Renaissance
B187: 9700SF | C187: Student And Faculty Service Fund
B188: 9701EA | C188: WSU Employees Association
B189: 9702WS | C189: WSU Imprest Fund
B190: 9703PC | C190: Petty Cash Fund
B191: 9710SP | C191: Student Publications - Sunflower
B192: 9712SE | C192: Sunflower Equipment Reserve Fund
B193: 9721PF | C193: Plant Fund
B194: 9753SL | C194: Student Loan Fund
B195: 9756FS | C195: Suspense Fund
B196: 9765CC | C196: Campus Credit Union Payroll Fund
B197: 9900 | C197: Bank Fund
B198: 9901 | C198: Bank Fund
B199: 9CCBD1 | C199: RU UCAT's College
B200: 9ISBD1 | C200: RU Chief Information Officer
... 12170 more rows

Sheet Account (hidden)
K1: REPORT FGRACTH Wichita State University RUN DATE: 05/03/2021
K2: CHART: 1 Account Hierarchy Report TIME: 08:13 AM
A3: =IFERROR(IF(LEFT(K3,1)="C","",IF(ISNUMBER(MID(K3,109,1)*1)=TRUE,"",IF(ISNUMBER(MID(K3,1,1)*1)=TRUE,1,IF(ISNUMBER(MID(K3,3,1)*1)=TRUE,2,IF(ISNUMBER(MID(K3,8,1)*1)=TRUE,3,IF(ISNUMBER(MID(K3,10,1)*1)=TRUE,4,IF(ISNUMBER(MID(K3,12,1)*1)=TRUE,"5EXP",IF(MID(K3,12,1)="R","5REV","")))))))),"") ->  | B3: =IFERROR(IF(A3=1,MID(K3,1,2),IF(A3=2,MID(K3,3,2),IF(A3=3,MID(K3,8,3),IF(A3=4,MID(K3,10,6),IF(A3="5REV",MID(K3,12,6),IF(A3="5EXP",MID(K3,12,4)*1,"")))))),"") ->  | C3: =TRIM(B3)&" - "&G3 -> - | D3: =IF(A3=1,I3,D2) -> 0 | E3: =IF(A3=2,B3&"-"&G3,E2) -> 0 | F3: =IF(A3=3,B3& "-"&G3,F2) -> 0 | G3: =TRIM(H3) ->  | H3: =IFERROR(IF(A3=1,MID(K3,23,20),IF(A3=2," "&MID(K3,25,40),IF(A3=3," "&MID(K3,27,40),IF(A3=4," "&MID(K3,29,40),IF(A3="5REV"," "&MID(K3,31,40),IF(A3="5EXP"," "&MID(K3,31,40),"")))))),"") ->  | I3: VLOOKUP(B3*1,'Z:\Pivot Summary\Data\[YTDDATA.xlsb]AccountCodes'!B:C,2,FALSE) | K3: AS OF 03-MAY-2021 PAGE: 1
K5: DATA POOL ********* DATES *********
A6: Level | B6: Account | C6: Acct & Title | D6: RollUpAccount1 | E6: RollUpAccount2 | F6: RollUpAccount3 | G6: Title Trim | H6: Title | I6: Rollup1titls | K6: TYP ACCOUNT DESCRIPTION ENTRY STATUS ACCT EFF TERM NEXT CHANGE
A7: 1 | B7: 10 | C7: 10 - Assets | D7: 10-Assets | E7: RollUpAccount2 | F7: RollUpAccount3 | G7: Assets | H7: Assets | I7: 10-Assets | K7: 10 Assets 01-OCT-1988 31-DEC-2099
A8: 2 | B8: 1B | C8: 1B - Cash and Cash Equivalents | D8: 10-Assets | E8: 1B-Cash and Cash Equivalents | F8: RollUpAccount3 | G8: Cash and Cash Equivalents | H8: Cash and Cash Equivalents | K8: 1B Cash and Cash Equivalents 01-OCT-1988 31-DEC-2099
A9: 3 | B9: 1BA | C9: 1BA - Cash | D9: 10-Assets | E9: 1B-Cash and Cash Equivalents | F9: 1BA-Cash | G9: Cash | H9: Cash | K9: 1BA Cash N A 01-OCT-1988 31-DEC-2099
A10: 5EXP | C10: 1BA - sh | D10: 10-Assets | E10: 1B-Cash and Cash Equivalents | F10: 1BA-Cash | G10: sh | H10: sh | K10: BS1BA Cash N A 01-OCT-1988 31-DEC-2099
C11: - | D11: 10-Assets | E11: 1B-Cash and Cash Equivalents | F11: 1BA-Cash | K11: A10010 Petty Cash Y A 01-OCT-1988 31-DEC-2099
C12: - | D12: 10-Assets | E12: 1B-Cash and Cash Equivalents | F12: 1BA-Cash | K12: A10020 Cash On Hand Y A 01-OCT-1988 31-DEC-2099
A13: 3 | B13: 1BD | C13: 1BD - Cash In Bank | D13: 10-Assets | E13: 1B-Cash and Cash Equivalents | F13: 1BD-Cash In Bank | G13: Cash In Bank | H13: Cash In Bank | K13: 1BD Cash In Bank N A 01-OCT-1988 31-DEC-2099
A14: 5EXP | C14: 1BD - sh In Bank | D14: 10-Assets | E14: 1B-Cash and Cash Equivalents | F14: 1BD-Cash In Bank | G14: sh In Bank | H14: sh In Bank | K14: BS1BD Cash In Bank N A 01-OCT-1988 31-DEC-2099
C15: - | D15: 10-Assets | E15: 1B-Cash and Cash Equivalents | F15: 1BD-Cash In Bank | K15: A10100 Cash In Bank - WSU Y A 01-OCT-1988 31-DEC-2099
C16: - | D16: 10-Assets | E16: 1B-Cash and Cash Equivalents | F16: 1BD-Cash In Bank | K16: A10105 Cash In Bank - Student Funds Y A 01-OCT-1988 31-DEC-2099
C17: - | D17: 10-Assets | E17: 1B-Cash and Cash Equivalents | F17: 1BD-Cash In Bank | K17: A10110 Cash-Payroll Assn Agency Fund Y A 01-OCT-1988 31-DEC-2099
C18: - | D18: 10-Assets | E18: 1B-Cash and Cash Equivalents | F18: 1BD-Cash In Bank | K18: A10115 Cash In Bank - Imprest Fund Y A 01-OCT-1988 31-DEC-2099
C19: - | D19: 10-Assets | E19: 1B-Cash and Cash Equivalents | F19: 1BD-Cash In Bank | K19: A10120 Cash - Student Loan Fund STL Y A 01-OCT-1988 31-DEC-2099
C20: - | D20: 10-Assets | E20: 1B-Cash and Cash Equivalents | F20: 1BD-Cash In Bank | K20: A10125 Cash In Bank BOT Advances Fund Y A 01-OCT-1988 31-DEC-2099
C21: - | D21: 10-Assets | E21: 1B-Cash and Cash Equivalents | F21: 1BD-Cash In Bank | K21: A10140 Returned Checks Y A 01-OCT-1988 31-DEC-2099
C22: - | D22: 10-Assets | E22: 1B-Cash and Cash Equivalents | F22: 1BD-Cash In Bank | K22: A10160 Cash in Bank - WebCheck Y A 26-JUN-2006 31-DEC-2099
C23: - | D23: 10-Assets | E23: 1B-Cash and Cash Equivalents | F23: 1BD-Cash In Bank | K23: A10170 Memo Bank - SOK Sick Leave Y A 01-OCT-1988 31-DEC-2099
C24: - | D24: 10-Assets | E24: 1B-Cash and Cash Equivalents | F24: 1BD-Cash In Bank | K24: A10190 Memo Cash Account for 1099 Bank MM Y A 01-JUL-2011 31-DEC-2099
C25: - | D25: 10-Assets | E25: 1B-Cash and Cash Equivalents | F25: 1BD-Cash In Bank | K25: A10200 Claim On Cash Y A 08-JUN-2017 31-DEC-2099
A26: 3 | B26: 1BH | C26: 1BH - Cash & Cash Equivalents | D26: 10-Assets | E26: 1B-Cash and Cash Equivalents | F26: 1BH-Cash & Cash Equivalents | G26: Cash & Cash Equivalents | H26: Cash & Cash Equivalents | K26: 1BH Cash & Cash Equivalents N A 01-OCT-1988 31-DEC-2099
A27: 5EXP | C27: 1BH - sh & Cash Equivalents | D27: 10-Assets | E27: 1B-Cash and Cash Equivalents | F27: 1BH-Cash & Cash Equivalents | G27: sh & Cash Equivalents | H27: sh & Cash Equivalents | K27: BS1BH Cash & Cash Equivalents N A 01-OCT-1988 31-DEC-2099
C28: - | D28: 10-Assets | E28: 1B-Cash and Cash Equivalents | F28: 1BH-Cash & Cash Equivalents | K28: A10410 Cash Equivalent Investments <90 Day Y A 07-AUG-2013 07-AUG-2013 31-DEC-2099
C29: - | D29: 10-Assets | E29: 1B-Cash and Cash Equivalents | F29: 1BH-Cash & Cash Equivalents | K29: A1041A Cash Equivalent Inv (A) <90 Day Y A 01-JUL-2011 31-DEC-2099
C30: - | D30: 10-Assets | E30: 1B-Cash and Cash Equivalents | F30: 1BH-Cash & Cash Equivalents | K30: A1041B Cash Equivalent Inv (B) <90 Day Y A 01-JUL-2011 31-DEC-2099
C31: - | D31: 10-Assets | E31: 1B-Cash and Cash Equivalents | F31: 1BH-Cash & Cash Equivalents | K31: A1041C Cash Equivalent Inv (C) <90 Day Y A 01-JUL-2011 31-DEC-2099
C32: - | D32: 10-Assets | E32: 1B-Cash and Cash Equivalents | F32: 1BH-Cash & Cash Equivalents | K32: A1041D Cash Equivalent Inv (D) <90 Day Y A 01-JUL-2011 31-DEC-2099
A33: 3 | B33: 1BI | C33: 1BI - Cash & Cash Equivalents Agency | D33: 10-Assets | E33: 1B-Cash and Cash Equivalents | F33: 1BI-Cash & Cash Equivalents Agency | G33: Cash & Cash Equivalents Agency | H33: Cash & Cash Equivalents Agency | K33: 1BI Cash & Cash Equivalents Agency N A 01-OCT-1988 31-DEC-2099
A34: 5EXP | C34: 1BI - sh & Cash Equivalents Agency | D34: 10-Assets | E34: 1B-Cash and Cash Equivalents | F34: 1BI-Cash & Cash Equivalents Agency | G34: sh & Cash Equivalents Agency | H34: sh & Cash Equivalents Agency | K34: BS1BI Cash & Cash Equivalents Agency N A 01-OCT-1988 31-DEC-2099
C35: - | D35: 10-Assets | E35: 1B-Cash and Cash Equivalents | F35: 1BI-Cash & Cash Equivalents Agency | K35: A10413 Cash Equiv Invest Agency < 90 Days Y A 07-AUG-2013 07-AUG-2013 31-DEC-2099
C36: - | D36: 10-Assets | E36: 1B-Cash and Cash Equivalents | F36: 1BI-Cash & Cash Equivalents Agency | K36: A10423 Cash Equiv Invest Agency < 90 Days Y A 17-NOV-2008 31-DEC-2099
C37: - | D37: 10-Assets | E37: 1B-Cash and Cash Equivalents | F37: 1BI-Cash & Cash Equivalents Agency | K37: A1042A Cash Equiv Inv Agency (A) < 90 Days Y A 01-JUL-2011 31-DEC-2099
C38: - | D38: 10-Assets | E38: 1B-Cash and Cash Equivalents | F38: 1BI-Cash & Cash Equivalents Agency | K38: A1042B Cash Equiv Inv Agency (B) < 90 Days Y A 01-JUL-2011 31-DEC-2099
C39: - | D39: 10-Assets | E39: 1B-Cash and Cash Equivalents | F39: 1BI-Cash & Cash Equivalents Agency | K39: A1042C Cash Equiv Inv Agency (C) < 90 Days Y A 01-JUL-2011 31-DEC-2099
C40: - | D40: 10-Assets | E40: 1B-Cash and Cash Equivalents | F40: 1BI-Cash & Cash Equivalents Agency | K40: A1042D Cash Equiv Inv Agency (D) < 90 Days Y A 01-JUL-2011 31-DEC-2099
A41: 3 | B41: 1BT | C41: 1BT - Cash With State Treasurer | D41: 10-Assets | E41: 1B-Cash and Cash Equivalents | F41: 1BT-Cash With State Treasurer | G41: Cash With State Treasurer | H41: Cash With State Treasurer | K41: 1BT Cash With State Treasurer N A 01-OCT-1988 31-DEC-2099
A42: 5EXP | C42: 1BT - sh With State Treasurer | D42: 10-Assets | E42: 1B-Cash and Cash Equivalents | F42: 1BT-Cash With State Treasurer | G42: sh With State Treasurer | H42: sh With State Treasurer | K42: BS1BT Cash With State Treasurer N A 01-OCT-1988 31-DEC-2099
C43: - | D43: 10-Assets | E43: 1B-Cash and Cash Equivalents | F43: 1BT-Cash With State Treasurer | K43: A10510 Cash With State Treasurer Y A 01-OCT-1988 31-DEC-2099
A44: 2 | B44: 1D | C44: 1D - Interest Receivable | D44: 10-Assets | E44: 1D-Interest Receivable | F44: 1BT-Cash With State Treasurer | G44: Interest Receivable | H44: Interest Receivable | K44: 1D Interest Receivable 01-OCT-1988 31-DEC-2099
A45: 2 | B45: 1F | C45: 1F - Short Term Investments | D45: 10-Assets | E45: 1F-Short Term Investments | F45: 1BT-Cash With State Treasurer | G45: Short Term Investments | H45: Short Term Investments | K45: 1F Short Term Investments 01-OCT-1988 31-DEC-2099
A46: 3 | B46: 1FA | C46: 1FA - Short Term Investments | D46: 10-Assets | E46: 1F-Short Term Investments | F46: 1FA-Short Term Investments | G46: Short Term Investments | H46: Short Term Investments | K46: 1FA Short Term Investments N A 01-OCT-1988 31-DEC-2099
A47: 5EXP | C47: 1FA - ort Term Investments | D47: 10-Assets | E47: 1F-Short Term Investments | F47: 1FA-Short Term Investments | G47: ort Term Investments | H47: ort Term Investments | K47: BS1FA Short Term Investments N A 01-OCT-1988 31-DEC-2099
C48: - | D48: 10-Assets | E48: 1F-Short Term Investments | F48: 1FA-Short Term Investments | K48: A10700 Short Term Investments 90-365 Days N A 07-AUG-2013 31-DEC-2099
C49: - | D49: 10-Assets | E49: 1F-Short Term Investments | F49: 1FA-Short Term Investments | K49: A1070A Short Term Inv (A) 90-365 Days Y A 01-JUL-2011 31-DEC-2099
C50: - | D50: 10-Assets | E50: 1F-Short Term Investments | F50: 1FA-Short Term Investments | K50: A1070B Short Term Inv (B) 90-365 Days Y A 01-JUL-2011 31-DEC-2099
C51: - | D51: 10-Assets | E51: 1F-Short Term Investments | F51: 1FA-Short Term Investments | K51: A1070C Short Term Inv (C) 90-365 Days Y A 01-JUL-2011 31-DEC-2099
C52: - | D52: 10-Assets | E52: 1F-Short Term Investments | F52: 1FA-Short Term Investments | K52: A1070D Short Term Inv (D) 90-365 Days Y A 01-JUL-2011 31-DEC-2099
C53: - | D53: 10-Assets | E53: 1F-Short Term Investments | F53: 1FA-Short Term Investments | K53: A10710 Short Term Invest-Agency 90-365 Day N A 07-AUG-2013 31-DEC-2099
C54: - | D54: 10-Assets | E54: 1F-Short Term Investments | F54: 1FA-Short Term Investments | K54: A1071A Short Term Inv - Agy (A) 90-365 Day Y A 01-JUL-2011 31-DEC-2099
C55: - | D55: 10-Assets | E55: 1F-Short Term Investments | F55: 1FA-Short Term Investments
C56: - | D56: 10-Assets | E56: 1F-Short Term Investments | F56: 1FA-Short Term Investments | K56: REPORT FGRACTH Wichita State University RUN DATE: 05/03/2021
C57: - | D57: 10-Assets | E57: 1F-Short Term Investments | F57: 1FA-Short Term Investments | K57: CHART: 1 Account Hierarchy Report TIME: 08:13 AM
C58: - | D58: 10-Assets | E58: 1F-Short Term Investments | F58: 1FA-Short Term Investments | K58: AS OF 03-MAY-2021 PAGE: 2
C59: - | D59: 10-Assets | E59: 1F-Short Term Investments | F59: 1FA-Short Term Investments
C60: - | D60: 10-Assets | E60: 1F-Short Term Investments | F60: 1FA-Short Term Investments | K60: DATA POOL ********* DATES *********
C61: - | D61: 10-Assets | E61: 1F-Short Term Investments | F61: 1FA-Short Term Investments | K61: TYP ACCOUNT DESCRIPTION ENTRY STATUS ACCT EFF TERM NEXT CHANGE
C62: - | D62: 10-Assets | E62: 1F-Short Term Investments | F62: 1FA-Short Term Investments | K62: A1071B Short Term Inv - Agy (B) 90-365 Day Y A 01-JUL-2011 31-DEC-2099
C63: - | D63: 10-Assets | E63: 1F-Short Term Investments | F63: 1FA-Short Term Investments | K63: A1071C Short Term Inv - Agy (C) 90-365 Day Y A 01-JUL-2011 31-DEC-2099
C64: - | D64: 10-Assets | E64: 1F-Short Term Investments | F64: 1FA-Short Term Investments | K64: A1071D Short Term Inv - Agy (D) 90-365 Day Y A 01-JUL-2011 31-DEC-2099
A65: 2 | B65: 1J | C65: 1J - Accounts Receivable | D65: 10-Assets | E65: 1J-Accounts Receivable | F65: 1FA-Short Term Investments | G65: Accounts Receivable | H65: Accounts Receivable | K65: 1J Accounts Receivable 01-OCT-1988 31-DEC-2099
A66: 3 | B66: 1BV | C66: 1BV - Clearing - Fed State Priv Grnt Cnt | D66: 10-Assets | E66: 1J-Accounts Receivable | F66: 1BV-Clearing - Fed State Priv Grnt Cnt | G66: Clearing - Fed State Priv Grnt Cnt | H66: Clearing - Fed State Priv Grnt Cnt | K66: 1BV Clearing - Fed State Priv Grnt Cnt N A 24-JUN-2016 31-DEC-2099
A67: 5EXP | C67: 1BV - earing | D67: 10-Assets | E67: 1J-Accounts Receivable | F67: 1BV-Clearing - Fed State Priv Grnt Cnt | G67: earing | H67: earing | K67: BS1BV Clearing N A 19-AUG-2015 31-DEC-2099
C68: - | D68: 10-Assets | E68: 1J-Accounts Receivable | F68: 1BV-Clearing - Fed State Priv Grnt Cnt | K68: A10610 Grants Cash Clearing Y A 01-OCT-1988 31-DEC-2099
C69: - | D69: 10-Assets | E69: 1J-Accounts Receivable | F69: 1BV-Clearing - Fed State Priv Grnt Cnt | K69: A10611 AR Cash Clearing Y A 19-AUG-2015 19-AUG-2015 31-DEC-2099
C70: - | D70: 10-Assets | E70: 1J-Accounts Receivable | F70: 1BV-Clearing - Fed State Priv Grnt Cnt | K70: A10612 Loan Return Clearing Y A 19-AUG-2015 19-AUG-2015 31-DEC-2099
A71: 3 | B71: 1JA | C71: 1JA - Accounts Rec-Fed State Priv Grnt Ct | D71: 10-Assets | E71: 1J-Accounts Receivable | F71: 1JA-Accounts Rec-Fed State Priv Grnt Ct | G71: Accounts Rec-Fed State Priv Grnt Ct | H71: Accounts Rec-Fed State Priv Grnt Ct | K71: 1JA Accounts Rec-Fed State Priv Grnt Ct N A 24-JUN-2016 31-DEC-2099
C72: - | D72: 10-Assets | E72: 1J-Accounts Receivable | F72: 1JA-Accounts Rec-Fed State Priv Grnt Ct | K72: 4050RG Accounts Receivable Grant Payments N A 02-JUL-2010 30-JUN-2010 31-DEC-2099
C73: - | D73: 10-Assets | E73: 1J-Accounts Receivable | F73: 1JA-Accounts Rec-Fed State Priv Grnt Ct | K73: 4100RG Accounts Receivable Grant Payments N A 02-JUL-2010 30-JUN-2010 31-DEC-2099
A74: 4 | B74: 62400G | C74: 62400G - Accounts Receivable Grant Payments | D74: 10-Assets | E74: 1J-Accounts Receivable | F74: 1JA-Accounts Rec-Fed State Priv Grnt Ct | G74: Accounts Receivable Grant Payments | H74: Accounts Receivable Grant Payments | K74: 62400G Accounts Receivable Grant Payments N A 30-JUN-2010 31-DEC-2099
C75: - | D75: 10-Assets | E75: 1J-Accounts Receivable | F75: 1JA-Accounts Rec-Fed State Priv Grnt Ct | K75: 6240RG Accounts Receivable Grant Payments N A 02-JUL-2010 30-JUN-2010 31-DEC-2099
A76: 5EXP | C76: 1JA - counts Receivable | D76: 10-Assets | E76: 1J-Accounts Receivable | F76: 1JA-Accounts Rec-Fed State Priv Grnt Ct | G76: counts Receivable | H76: counts Receivable | K76: BS1JA Accounts Receivable N A 01-OCT-1988 31-DEC-2099
C77: - | D77: 10-Assets | E77: 1J-Accounts Receivable | F77: 1JA-Accounts Rec-Fed State Priv Grnt Ct | K77: A11110 Accts Receivable Unbilled Federal Y A 01-OCT-1988 31-DEC-2099
C78: - | D78: 10-Assets | E78: 1J-Accounts Receivable | F78: 1JA-Accounts Rec-Fed State Priv Grnt Ct | K78: A11120 Accts Receivable Unbilled Other Y A 01-OCT-1988 31-DEC-2099
C79: - | D79: 10-Assets | E79: 1J-Accounts Receivable | F79: 1JA-Accounts Rec-Fed State Priv Grnt Ct | K79: A11130 Accts Receivable Billed Federal Y A 01-OCT-1988 31-DEC-2099
C80: - | D80: 10-Assets | E80: 1J-Accounts Receivable | F80: 1JA-Accounts Rec-Fed State Priv Grnt Ct | K80: A11140 Accts Receivable Billed Other Y A 01-OCT-1988 31-DEC-2099
A81: 3 | B81: 1JG | C81: 1JG - Grant Holding - Fed State Priv Grnt | D81: 10-Assets | E81: 1J-Accounts Receivable | F81: 1JG-Grant Holding - Fed State Priv Grnt | G81: Grant Holding - Fed State Priv Grnt | H81: Grant Holding - Fed State Priv Grnt | K81: 1JG Grant Holding - Fed State Priv Grnt N A 24-JUN-2016 31-DEC-2099
A82: 5EXP | C82: 1JG - ant Holding | D82: 10-Assets | E82: 1J-Accounts Receivable | F82: 1JG-Grant Holding - Fed State Priv Grnt | G82: ant Holding | H82: ant Holding | K82: BS1JG Grant Holding N A 01-OCT-1988 31-DEC-2099
C83: - | D83: 10-Assets | E83: 1J-Accounts Receivable | F83: 1JG-Grant Holding - Fed State Priv Grnt | K83: A11210 Grant Payment Holding Y A 01-OCT-1988 31-DEC-2099
A84: 3 | B84: 1JH | C84: 1JH - Advances | D84: 10-Assets | E84: 1J-Accounts Receivable | F84: 1JH-Advances | G84: Advances | H84: Advances | K84: 1JH Advances N A 01-OCT-1988 31-DEC-2099
A85: 5EXP | C85: 1JH - vances | D85: 10-Assets | E85: 1J-Accounts Receivable | F85: 1JH-Advances | G85: vances | H85: vances | K85: BS1JH Advances N A 01-OCT-1988 31-DEC-2099
C86: - | D86: 10-Assets | E86: 1J-Accounts Receivable | F86: 1JH-Advances | K86: A11310 Advances Y A 01-OCT-1988 31-DEC-2099
C87: - | D87: 10-Assets | E87: 1J-Accounts Receivable | F87: 1JH-Advances | K87: A11320 Advances-Payroll Y A 01-OCT-1988 31-DEC-2099
A88: 3 | B88: 1JJ | C88: 1JJ - Accounts Receivable | D88: 10-Assets | E88: 1J-Accounts Receivable | F88: 1JJ-Accounts Receivable | G88: Accounts Receivable | H88: Accounts Receivable | K88: 1JJ Accounts Receivable N A 01-OCT-1988 31-DEC-2099
A89: 4 | B89: 20500A | C89: 20500A - Charges For Education & Libraries | D89: 10-Assets | E89: 1J-Accounts Receivable | F89: 1JJ-Accounts Receivable | G89: Charges For Education & Libraries | H89: Charges For Education & Libraries | K89: 20500A Charges For Education & Libraries N A 30-JUN-2010 31-DEC-2099
C90: - | D90: 10-Assets | E90: 1J-Accounts Receivable | F90: 1JJ-Accounts Receivable | K90: A11430 Accounts Receivable - Summer Y A 01-JUL-2010 31-DEC-2099
C91: - | D91: 10-Assets | E91: 1J-Accounts Receivable | F91: 1JJ-Accounts Receivable | K91: A11435 Undistributed Fees Summer Y A 01-JUL-2010 31-DEC-2099
C92: - | D92: 10-Assets | E92: 1J-Accounts Receivable | F92: 1JJ-Accounts Receivable | K92: A11440 Accounts Receivable - Fall Y A 01-JUL-2010 31-DEC-2099
C93: - | D93: 10-Assets | E93: 1J-Accounts Receivable | F93: 1JJ-Accounts Receivable | K93: A11441 Undistributed Fees Fall Y A 01-JUL-2010 31-DEC-2099
C94: - | D94: 10-Assets | E94: 1J-Accounts Receivable | F94: 1JJ-Accounts Receivable | K94: A11443 Accounts Receivable - Spring Y A 01-JUL-2010 31-DEC-2099
C95: - | D95: 10-Assets | E95: 1J-Accounts Receivable | F95: 1JJ-Accounts Receivable | K95: A11445 Undistributed Fees Spring Y A 01-JUL-2010 31-DEC-2099
C96: - | D96: 10-Assets | E96: 1J-Accounts Receivable | F96: 1JJ-Accounts Receivable | K96: A11449 Delinquent Tuition Y A 01-JUL-2010 31-DEC-2099
C97: - | D97: 10-Assets | E97: 1J-Accounts Receivable | F97: 1JJ-Accounts Receivable | K97: 2050RA Charges For Education & Libraries N A 02-JUL-2010 30-JUN-2010 31-DEC-2099
C98: - | D98: 10-Assets | E98: 1J-Accounts Receivable | F98: 1JJ-Accounts Receivable | K98: 2050RE Installment Plans N A 02-JUL-2010 30-JUN-2010 31-DEC-2099
C99: - | D99: 10-Assets | E99: 1J-Accounts Receivable | F99: 1JJ-Accounts Receivable | K99: 3130RD Accounts Receivable - Housing N A 02-JUL-2010 30-JUN-2010 31-DEC-2099
C100: - | D100: 10-Assets | E100: 1J-Accounts Receivable | F100: 1JJ-Accounts Receivable | K100: 6700RA Suspense Revenue N A 02-JUL-2010 30-JUN-2010 31-DEC-2099
C101: - | D101: 10-Assets | E101: 1J-Accounts Receivable | F101: 1JJ-Accounts Receivable | K101: 67010A Suspense Revenue N A 15-FEB-2011 15-FEB-2011 31-DEC-2099
C102: - | D102: 10-Assets | E102: 1J-Accounts Receivable | F102: 1JJ-Accounts Receivable | K102: A11490 Suspense Funds Contra Account Y A 15-FEB-2011 15-FEB-2011 31-DEC-2099
A103: 3 | B103: 1JK | C103: 1JK - Year End Accts Rec - Tuition Fees | D103: 10-Assets | E103: 1J-Accounts Receivable | F103: 1JK-Year End Accts Rec - Tuition Fees | G103: Year End Accts Rec - Tuition Fees | H103: Year End Accts Rec - Tuition Fees | K103: 1JK Year End Accts Rec - Tuition Fees N A 24-JUN-2016 31-DEC-2099
C104: - | D104: 10-Assets | E104: 1J-Accounts Receivable | F104: 1JK-Year End Accts Rec - Tuition Fees | K104: 2020RW Year End Accounts Receivable N A 02-JUL-2010 30-JUN-2010 31-DEC-2099
C105: - | D105: 10-Assets | E105: 1J-Accounts Receivable | F105: 1JK-Year End Accts Rec - Tuition Fees | K105: 2050RW Year End Accounts Receivable N A 02-JUL-2010 30-JUN-2010 31-DEC-2099
A106: 5EXP | C106: 1JK - ar End Accounts Rec-Tuition | D106: 10-Assets | E106: 1J-Accounts Receivable | F106: 1JK-Year End Accts Rec - Tuition Fees | G106: ar End Accounts Rec-Tuition | H106: ar End Accounts Rec-Tuition | K106: BS1JK Year End Accounts Rec-Tuition N A 24-JUN-2016 31-DEC-2099
C107: - | D107: 10-Assets | E107: 1J-Accounts Receivable | F107: 1JK-Year End Accts Rec - Tuition Fees | K107: Y10613 YE Contract Clearing Y A 01-OCT-1988 31-DEC-2099
C108: - | D108: 10-Assets | E108: 1J-Accounts Receivable | F108: 1JK-Year End Accts Rec - Tuition Fees | K108: Y10614 YE AR Installment Clearing -Tuition Y A 01-OCT-1988 31-DEC-2099
C109: - | D109: 10-Assets | E109: 1J-Accounts Receivable | F109: 1JK-Year End Accts Rec - Tuition Fees | K109: Y10615 YE Loan Return Clearing Title IV Y A 01-OCT-1988 31-DEC-2099
C110: - | D110: 10-Assets | E110: 1J-Accounts Receivable | F110: 1JK-Year End Accts Rec - Tuition Fees
C111: - | D111: 10-Assets | E111: 1J-Accounts Receivable | F111: 1JK-Year End Accts Rec - Tuition Fees | K111: REPORT FGRACTH Wichita State University RUN DATE: 05/03/2021
C112: - | D112: 10-Assets | E112: 1J-Accounts Receivable | F112: 1JK-Year End Accts Rec - Tuition Fees | K112: CHART: 1 Account Hierarchy Report TIME: 08:13 AM
C113: - | D113: 10-Assets | E113: 1J-Accounts Receivable | F113: 1JK-Year End Accts Rec - Tuition Fees | K113: AS OF 03-MAY-2021 PAGE: 3
C114: - | D114: 10-Assets | E114: 1J-Accounts Receivable | F114: 1JK-Year End Accts Rec - Tuition Fees
C115: - | D115: 10-Assets | E115: 1J-Accounts Receivable | F115: 1JK-Year End Accts Rec - Tuition Fees | K115: DATA POOL ********* DATES *********
C116: - | D116: 10-Assets | E116: 1J-Accounts Receivable | F116: 1JK-Year End Accts Rec - Tuition Fees | K116: TYP ACCOUNT DESCRIPTION ENTRY STATUS ACCT EFF TERM NEXT CHANGE
C117: - | D117: 10-Assets | E117: 1J-Accounts Receivable | F117: 1JK-Year End Accts Rec - Tuition Fees | K117: Y10685 YE AR Plus Loan Clearing Parent Y A 01-JUN-2009 31-DEC-2099
C118: - | D118: 10-Assets | E118: 1J-Accounts Receivable | F118: 1JK-Year End Accts Rec - Tuition Fees | K118: Y11530 YE Accounts Receivable - Fall Y A 01-OCT-1988 31-DEC-2099
C119: - | D119: 10-Assets | E119: 1J-Accounts Receivable | F119: 1JK-Year End Accts Rec - Tuition Fees | K119: Y11531 YE Accounts Receivable - Spring Y A 01-OCT-1988 31-DEC-2099
C120: - | D120: 10-Assets | E120: 1J-Accounts Receivable | F120: 1JK-Year End Accts Rec - Tuition Fees | K120: Y11532 YE Accounts Receivable - Summer Y A 01-OCT-1988 31-DEC-2099
C121: - | D121: 10-Assets | E121: 1J-Accounts Receivable | F121: 1JK-Year End Accts Rec - Tuition Fees | K121: Y11533 YE Accounts Receivable - Mrkt Based Y A 01-JUL-2015 31-DEC-2099
C122: - | D122: 10-Assets | E122: 1J-Accounts Receivable | F122: 1JK-Year End Accts Rec - Tuition Fees | K122: Y11534 YE Accounts Receivable - Badges Y A 25-JUN-2016 31-DEC-2099
C123: - | D123: 10-Assets | E123: 1J-Accounts Receivable | F123: 1JK-Year End Accts Rec - Tuition Fees | K123: Y11535 YE AR-Installment Plans IPRN - Fall Y A 10-JUL-2009 31-DEC-2099
C124: - | D124: 10-Assets | E124: 1J-Accounts Receivable | F124: 1JK-Year End Accts Rec - Tuition Fees | K124: Y11540 YE Accounts Receivable - TAP Y A 01-JUN-2017 31-DEC-2099
C125: - | D125: 10-Assets | E125: 1J-Accounts Receivable | F125: 1JK-Year End Accts Rec - Tuition Fees | K125: Y11549 YE Accounts Rec Tuition -Prior Term Y A 01-OCT-1988 31-DEC-2099
C126: - | D126: 10-Assets | E126: 1J-Accounts Receivable | F126: 1JK-Year End Accts Rec - Tuition Fees | K126: Y11550 YE Accounts Receivable-Return Chks Y A 01-OCT-1988 31-DEC-2099
C127: - | D127: 10-Assets | E127: 1J-Accounts Receivable | F127: 1JK-Year End Accts Rec - Tuition Fees | K127: Y11560 YE Accounts Rec Tuition - Emer Loan Y A 01-OCT-1988 31-DEC-2099
C128: - | D128: 10-Assets | E128: 1J-Accounts Receivable | F128: 1JK-Year End Accts Rec - Tuition Fees | K128: Y11562 YE Corporation Permits - Accts Rec Y A 05-JUL-2011 31-DEC-2099
C129: - | D129: 10-Assets | E129: 1J-Accounts Receivable | F129: 1JK-Year End Accts Rec - Tuition Fees | K129: Y11565 YE Accts Rec Accelerated Nursing Y A 01-OCT-1988 31-DEC-2099
C130: - | D130: 10-Assets | E130: 1J-Accounts Receivable | F130: 1JK-Year End Accts Rec - Tuition Fees | K130: Y11568 YE Accts Rec Exec EMBA Y A 01-OCT-1988 31-DEC-2099
C131: - | D131: 10-Assets | E131: 1J-Accounts Receivable | F131: 1JK-Year End Accts Rec - Tuition Fees | K131: Y11570 YE Contracts Accounts Receivable Y A 03-JUL-2008 31-DEC-2099
C132: - | D132: 10-Assets | E132: 1J-Accounts Receivable | F132: 1JK-Year End Accts Rec - Tuition Fees | K132: Y11571 YE Contracts Accounts Rec - Spring Y A 01-OCT-1988 31-DEC-2099
C133: - | D133: 10-Assets | E133: 1J-Accounts Receivable | F133: 1JK-Year End Accts Rec - Tuition Fees | K133: Y11572 YE Contracts Accounts Rec - Summer Y A 01-OCT-1988 31-DEC-2099
C134: - | D134: 10-Assets | E134: 1J-Accounts Receivable | F134: 1JK-Year End Accts Rec - Tuition Fees | K134: Y11580 YE Accts Rec Loan Return Title IV Y A 01-OCT-1988 31-DEC-2099
C135: - | D135: 10-Assets | E135: 1J-Accounts Receivable | F135: 1JK-Year End Accts Rec - Tuition Fees | K135: Y11585 YE Accounts Receivable - Plus Loans Y A 01-JUL-2010 31-DEC-2099
C136: - | D136: 10-Assets | E136: 1J-Accounts Receivable | F136: 1JK-Year End Accts Rec - Tuition Fees | K136: Y11586 YE Accounts Rec -Outside Scholarshp Y A 10-JUL-2009 31-DEC-2099
C137: - | D137: 10-Assets | E137: 1J-Accounts Receivable | F137: 1JK-Year End Accts Rec - Tuition Fees | K137: Y11587 YE AR Student Refunds Y A 01-OCT-1988 31-DEC-2099
C138: - | D138: 10-Assets | E138: 1J-Accounts Receivable | F138: 1JK-Year End Accts Rec - Tuition Fees | K138: Y11588 YE Accounts Rec - Collection Agency Y A 10-JUL-2009 31-DEC-2099
C139: - | D139: 10-Assets | E139: 1J-Accounts Receivable | F139: 1JK-Year End Accts Rec - Tuition Fees | K139: Y11590 YE Accounts Rec - CC Chargeback Y A 01-OCT-1988 31-DEC-2099
C140: - | D140: 10-Assets | E140: 1J-Accounts Receivable | F140: 1JK-Year End Accts Rec - Tuition Fees | K140: Y11591 YE AR - Registration Fees Y A 01-JUL-2014 31-DEC-2099
C141: - | D141: 10-Assets | E141: 1J-Accounts Receivable | F141: 1JK-Year End Accts Rec - Tuition Fees | K141: Y11594 YE Accounts Rec - Student Fees Y A 01-JUL-2014 31-DEC-2099
C142: - | D142: 10-Assets | E142: 1J-Accounts Receivable | F142: 1JK-Year End Accts Rec - Tuition Fees | K142: Y26709 YE Unapplied Holding 1042 Y A 01-OCT-1988 31-DEC-2099
C143: - | D143: 10-Assets | E143: 1J-Accounts Receivable | F143: 1JK-Year End Accts Rec - Tuition Fees | K143: Y26710 YE Unapplied Payments Y A 01-OCT-1988 31-DEC-2099
C144: - | D144: 10-Assets | E144: 1J-Accounts Receivable | F144: 1JK-Year End Accts Rec - Tuition Fees | K144: Y26720 YE Unapplied Financial Aid Y A 01-OCT-1988 31-DEC-2099
C145: - | D145: 10-Assets | E145: 1J-Accounts Receivable | F145: 1JK-Year End Accts Rec - Tuition Fees | K145: Y26730 YE Unapplied Refunds AR Y A 01-OCT-1988 31-DEC-2099
C146: - | D146: 10-Assets | E146: 1J-Accounts Receivable | F146: 1JK-Year End Accts Rec - Tuition Fees | K146: Y26740 YE Unapplied Exemptions Waivers Y A 01-OCT-1988 31-DEC-2099
C147: - | D147: 10-Assets | E147: 1J-Accounts Receivable | F147: 1JK-Year End Accts Rec - Tuition Fees | K147: Y26741 YE Unapplied Departmt Scholarships Y A 01-OCT-1988 31-DEC-2099
C148: - | D148: 10-Assets | E148: 1J-Accounts Receivable | F148: 1JK-Year End Accts Rec - Tuition Fees | K148: Y26751 YE Unapplied Install - Emerg Loans Y A 01-OCT-1988 31-DEC-2099
C149: - | D149: 10-Assets | E149: 1J-Accounts Receivable | F149: 1JK-Year End Accts Rec - Tuition Fees | K149: Y26760 YE Unapplied Contracts Y A 01-OCT-1988 31-DEC-2099
C150: - | D150: 10-Assets | E150: 1J-Accounts Receivable | F150: 1JK-Year End Accts Rec - Tuition Fees | K150: Y26761 YE Unapplied VA CH33 Educ Deposit Y A 02-JUL-2010 31-DEC-2099
C151: - | D151: 10-Assets | E151: 1J-Accounts Receivable | F151: 1JK-Year End Accts Rec - Tuition Fees | K151: Y26769 YE Unapplied Deposits Phys Therapy Y A 10-JUL-2009 31-DEC-2099
C152: - | D152: 10-Assets | E152: 1J-Accounts Receivable | F152: 1JK-Year End Accts Rec - Tuition Fees | K152: Y26770 YE Unapplied Deposits Other Y A 01-OCT-1988 31-DEC-2099
C153: - | D153: 10-Assets | E153: 1J-Accounts Receivable | F153: 1JK-Year End Accts Rec - Tuition Fees | K153: Y26771 YE Unapplied Gift Certificates Y A 01-OCT-1988 31-DEC-2099
C154: - | D154: 10-Assets | E154: 1J-Accounts Receivable | F154: 1JK-Year End Accts Rec - Tuition Fees | K154: Y26772 YE Unapplied Bureau Indian Aff Depo Y A 01-OCT-1988 31-DEC-2099
C155: - | D155: 10-Assets | E155: 1J-Accounts Receivable | F155: 1JK-Year End Accts Rec - Tuition Fees | K155: Y26773 YE Unapplied Outside Scholarshp Dep Y A 10-JUL-2009 31-DEC-2099
C156: - | D156: 10-Assets | E156: 1J-Accounts Receivable | F156: 1JK-Year End Accts Rec - Tuition Fees | K156: Y26776 YE Unapplied Deposits Dent Hyg Y A 10-JUL-2009 31-DEC-2099
C157: - | D157: 10-Assets | E157: 1J-Accounts Receivable | F157: 1JK-Year End Accts Rec - Tuition Fees | K157: Y26779 YE Unapplied Deposits Adv Tuition Y A 01-OCT-1988 31-DEC-2099
C158: - | D158: 10-Assets | E158: 1J-Accounts Receivable | F158: 1JK-Year End Accts Rec - Tuition Fees | K158: Y26782 YE Unapplied Depo Phys Asst Accept Y A 01-JAN-2009 31-DEC-2099
C159: - | D159: 10-Assets | E159: 1J-Accounts Receivable | F159: 1JK-Year End Accts Rec - Tuition Fees | K159: Y26784 YE Unapplied Direct Loan Payments Y A 01-JAN-2009 31-DEC-2099
C160: - | D160: 10-Assets | E160: 1J-Accounts Receivable | F160: 1JK-Year End Accts Rec - Tuition Fees | K160: Y26789 YE Unapplied Out Schol Trans- Donor Y A 01-OCT-1988 31-DEC-2099
C161: - | D161: 10-Assets | E161: 1J-Accounts Receivable | F161: 1JK-Year End Accts Rec - Tuition Fees | K161: Y26792 YE Unapplied Stafford Loan Payments Y A 01-OCT-1988 31-DEC-2099
C162: - | D162: 10-Assets | E162: 1J-Accounts Receivable | F162: 1JK-Year End Accts Rec - Tuition Fees | K162: Y26794 YE Unapplied Pell Loan Payments Y A 01-OCT-1988 31-DEC-2099
C163: - | D163: 10-Assets | E163: 1J-Accounts Receivable | F163: 1JK-Year End Accts Rec - Tuition Fees | K163: Y26795 YE Unapplied SEOG Loan Payments Y A 01-OCT-1988 31-DEC-2099
C164: - | D164: 10-Assets | E164: 1J-Accounts Receivable | F164: 1JK-Year End Accts Rec - Tuition Fees | K164: Y26796 YE Unapplied KS Comp Grant Pymts Y A 01-OCT-1988 31-DEC-2099
C165: - | D165: 10-Assets | E165: 1J-Accounts Receivable | F165: 1JK-Year End Accts Rec - Tuition Fees
C166: - | D166: 10-Assets | E166: 1J-Accounts Receivable | F166: 1JK-Year End Accts Rec - Tuition Fees | K166: REPORT FGRACTH Wichita State University RUN DATE: 05/03/2021
C167: - | D167: 10-Assets | E167: 1J-Accounts Receivable | F167: 1JK-Year End Accts Rec - Tuition Fees | K167: CHART: 1 Account Hierarchy Report TIME: 08:13 AM
C168: - | D168: 10-Assets | E168: 1J-Accounts Receivable | F168: 1JK-Year End Accts Rec - Tuition Fees | K168: AS OF 03-MAY-2021 PAGE: 4
C169: - | D169: 10-Assets | E169: 1J-Accounts Receivable | F169: 1JK-Year End Accts Rec - Tuition Fees
C170: - | D170: 10-Assets | E170: 1J-Accounts Receivable | F170: 1JK-Year End Accts Rec - Tuition Fees | K170: DATA POOL ********* DATES *********
C171: - | D171: 10-Assets | E171: 1J-Accounts Receivable | F171: 1JK-Year End Accts Rec - Tuition Fees | K171: TYP ACCOUNT DESCRIPTION ENTRY STATUS ACCT EFF TERM NEXT CHANGE
C172: - | D172: 10-Assets | E172: 1J-Accounts Receivable | F172: 1JK-Year End Accts Rec - Tuition Fees | K172: Y26797 YE Unapplied Perkins Loan Payments Y A 01-OCT-1988 31-DEC-2099
C173: - | D173: 10-Assets | E173: 1J-Accounts Receivable | F173: 1JK-Year End Accts Rec - Tuition Fees | K173: Y31535 YE AR-Installment Plans IPRN - Fall Y A 100PAA 01-OCT-1988 31-DEC-2099
C174: - | D174: 10-Assets | E174: 1J-Accounts Receivable | F174: 1JK-Year End Accts Rec - Tuition Fees | K174: Y31586 YE Accounts Rec -Outside Scholarshp Y A 100PAA 05-OCT-2006 31-DEC-2099
C175: - | D175: 10-Assets | E175: 1J-Accounts Receivable | F175: 1JK-Year End Accts Rec - Tuition Fees | K175: Y31588 YE Accounts Rec - Collection Agency Y A 01-JUL-2008 31-DEC-2099
C176: - | D176: 10-Assets | E176: 1J-Accounts Receivable | F176: 1JK-Year End Accts Rec - Tuition Fees | K176: Y36769 YE Unapplied Deposits Phys Therapy Y A 100PAA 03-JUL-2007 31-DEC-2099
C177: - | D177: 10-Assets | E177: 1J-Accounts Receivable | F177: 1JK-Year End Accts Rec - Tuition Fees | K177: Y36773 YE Unapplied Outside Scholarshp Dep Y A 100PAA 06-JUL-2008 31-DEC-2099
C178: - | D178: 10-Assets | E178: 1J-Accounts Receivable | F178: 1JK-Year End Accts Rec - Tuition Fees | K178: Y36776 YE Unapplied Deposits Dent Hyg Y A 100PAA 03-JUL-2007 31-DEC-2099
A179: 3 | B179: 1JL | C179: 1JL - Year End Accts Rec-Housing | D179: 10-Assets | E179: 1J-Accounts Receivable | F179: 1JL-Year End Accts Rec-Housing | G179: Year End Accts Rec-Housing | H179: Year End Accts Rec-Housing | K179: 1JL Year End Accts Rec-Housing N A 24-JUN-2016 31-DEC-2099
A180: 4 | B180: 22700E | C180: 22700E - Year End Accounts Rec-Housing | D180: 10-Assets | E180: 1J-Accounts Receivable | F180: 1JL-Year End Accts Rec-Housing | G180: Year End Accounts Rec-Housing | H180: Year End Accounts Rec-Housing | K180: 22700E Year End Accounts Rec-Housing N A 24-JUN-2016 31-DEC-2099
C181: - | D181: 10-Assets | E181: 1J-Accounts Receivable | F181: 1JL-Year End Accts Rec-Housing | K181: AR1222 Accounts Rec Food Service Y A 15-JUN-2019 31-DEC-2099
C182: - | D182: 10-Assets | E182: 1J-Accounts Receivable | F182: 1JL-Year End Accts Rec-Housing | K182: AR1224 Accounts Rec Food Service Fairmount Y A 15-JUN-2019 31-DEC-2099
C183: - | D183: 10-Assets | E183: 1J-Accounts Receivable | F183: 1JL-Year End Accts Rec-Housing | K183: Y11676 YE Accounts Rec - Food Summer Camp Y A 30-JUN-2011 31-DEC-2099
A184: 4 | B184: 31300D | C184: 31300D - Accounts Receivable - Housing | D184: 10-Assets | E184: 1J-Accounts Receivable | F184: 1JL-Year End Accts Rec-Housing | G184: Accounts Receivable - Housing | H184: Accounts Receivable - Housing | K184: 31300D Accounts Receivable - Housing N A 24-JUN-2016 31-DEC-2099
C185: - | D185: 10-Assets | E185: 1J-Accounts Receivable | F185: 1JL-Year End Accts Rec-Housing | K185: A11420 Acct Receivable Housing Y A 01-JUL-2010 31-DEC-2099
C186: - | D186: 10-Assets | E186: 1J-Accounts Receivable | F186: 1JL-Year End Accts Rec-Housing | K186: AR1010 Accts Rec -Housing Conf Rooms&Camps Y A 20-AUG-2018 31-DEC-2099
C187: - | D187: 10-Assets | E187: 1J-Accounts Receivable | F187: 1JL-Year End Accts Rec-Housing | K187: AR1220 Accounts Rec Housing Fairmount Y A 15-JUN-2019 31-DEC-2099
C188: - | D188: 10-Assets | E188: 1J-Accounts Receivable | F188: 1JL-Year End Accts Rec-Housing | K188: AR1221 Accounts Rec Housing Wheatshocker Y A 15-JUN-2019 31-DEC-2099
C189: - | D189: 10-Assets | E189: 1J-Accounts Receivable | F189: 1JL-Year End Accts Rec-Housing | K189: AR1223 Accounts Rec Housing Y A 15-JUN-2019 31-DEC-2099
A190: 4 | B190: 31300G | C190: 31300G - Year End Accounts Rec-Housing | D190: 10-Assets | E190: 1J-Accounts Receivable | F190: 1JL-Year End Accts Rec-Housing | G190: Year End Accounts Rec-Housing | H190: Year End Accounts Rec-Housing | K190: 31300G Year End Accounts Rec-Housing N A 24-JUN-2016 31-DEC-2099
C191: - | D191: 10-Assets | E191: 1J-Accounts Receivable | F191: 1JL-Year End Accts Rec-Housing | K191: Y11675 YE Accounts Rec - Conf Rm Camps HRL Y A 30-JUN-2011 31-DEC-2099
A192: 5EXP | C192: 1JL - ar End Accounts Rec-Housing | D192: 10-Assets | E192: 1J-Accounts Receivable | F192: 1JL-Year End Accts Rec-Housing | G192: ar End Accounts Rec-Housing | H192: ar End Accounts Rec-Housing | K192: BS1JL Year End Accounts Rec-Housing N A 24-JUN-2016 31-DEC-2099
C193: - | D193: 10-Assets | E193: 1J-Accounts Receivable | F193: 1JL-Year End Accts Rec-Housing | K193: Y10618 YE AR Installment Clearing - Dorm Y A 24-JUN-2016 31-DEC-2099
C194: - | D194: 10-Assets | E194: 1J-Accounts Receivable | F194: 1JL-Year End Accts Rec-Housing | K194: Y10619 YE AR Installment Clear-Wheatshock Y A 24-JUN-2016 31-DEC-2099
C195: - | D195: 10-Assets | E195: 1J-Accounts Receivable | F195: 1JL-Year End Accts Rec-Housing | K195: Y10620 YE AR Installment Clear - Food Serv Y A 24-JUN-2016 31-DEC-2099
C196: - | D196: 10-Assets | E196: 1J-Accounts Receivable | F196: 1JL-Year End Accts Rec-Housing | K196: Y11520 YE Accounts Rec Housing Fairmount Y A 06-DEC-2018 31-DEC-2099
C197: - | D197: 10-Assets | E197: 1J-Accounts Receivable | F197: 1JL-Year End Accts Rec-Housing | K197: Y11521 YE Accounts Rec Housing Wheatshock Y A 24-JUN-2016 31-DEC-2099
C198: - | D198: 10-Assets | E198: 1J-Accounts Receivable | F198: 1JL-Year End Accts Rec-Housing | K198: Y11522 YE Accounts Rec Food Service Y A 24-JUN-2016 31-DEC-2099
C199: - | D199: 10-Assets | E199: 1J-Accounts Receivable | F199: 1JL-Year End Accts Rec-Housing | K199: Y11523 YE Accounts Rec Housing Shocker Y A 24-JUN-2016 31-DEC-2099
C200: - | D200: 10-Assets | E200: 1J-Accounts Receivable | F200: 1JL-Year End Accts Rec-Housing | K200: Y11524 YE Accounts Rec Food Serv Fairmount Y A 06-DEC-2018 31-DEC-2099
C201: - | D201: 10-Assets | E201: 1J-Accounts Receivable | F201: 1JL-Year End Accts Rec-Housing | K201: Y26715 YE Unapplied Prepayments - Housing Y A 24-JUN-2016 31-DEC-2099
... 3095 more rows

Sheet CommonAccountData (hidden)
A1: Common Account List - Select | B1: Account Level 1 | C1: Account Level 2 | D1: Account Level 3 | E1: Account Code | F1: Account Code Name | G1: Description of items coded to this category
A2: Revenue - Tuition and Fees | B2: Revenue | C2: Tuition and Fees | D2: Incidental Fees Regular Term | E2: R80218 | F2: Direct Loans Drawdown
A3: Revenue - Tuition and Fees | B3: Revenue | C3: Tuition and Fees | D3: Incidental Fees Regular Term | E3: R80220 | F3: United Student Aid Fund Spr-Sallie
A4: Revenue - Tuition and Fees | B4: Revenue | C4: Tuition and Fees | D4: Incidental Fees Regular Term | E4: R80222 | F4: United Student Aid Fund Sum-Sallie
A5: Revenue - Tuition and Fees | B5: Revenue | C5: Tuition and Fees | D5: Incidental Fees Regular Term | E5: R80269 | F5: Paper Loan Check Susp Rev
A6: Revenue - Tuition and Fees | B6: Revenue | C6: Tuition and Fees | D6: Incidental Fees Regular Term | E6: R80316 | F6: Direct Loans
A7: Revenue - Tuition and Fees | B7: Revenue | C7: Tuition and Fees | D7: Incidental Fees Regular Term | E7: R80268 | F7: Plus Loans
A8: Revenue - Tuition and Fees | B8: Revenue | C8: Tuition and Fees | D8: Incidental Fees Regular Term | E8: R80294 | F8: Plus Loans - Graduate Students
A9: Revenue - Tuition and Fees | B9: Revenue | C9: Tuition and Fees | D9: Incidental Fees Regular Term | E9: R80000 | F9: Tuition - TAP Teacher Appr Program
A10: Revenue - Tuition and Fees | B10: Revenue | C10: Tuition and Fees | D10: Incidental Fees Regular Term | E10: R80001 | F10: Fall Semester Tuition
A11: Revenue - Tuition and Fees | B11: Revenue | C11: Tuition and Fees | D11: Incidental Fees Regular Term | E11: R80002 | F11: Spring Semester Tuition
A12: Revenue - Tuition and Fees | B12: Revenue | C12: Tuition and Fees | D12: Incidental Fees Regular Term | E12: R80003 | F12: Tuition - Market Based Rates-CATIA
A13: Revenue - Tuition and Fees | B13: Revenue | C13: Tuition and Fees | D13: Incidental Fees Regular Term | E13: R80004 | F13: Tuition - Badges
A14: Revenue - Tuition and Fees | B14: Revenue | C14: Tuition and Fees | D14: Incidental Fees Regular Term | E14: R80005 | F14: Prior Term Tuition
A15: Revenue - Tuition and Fees | B15: Revenue | C15: Tuition and Fees | D15: Incidental Fees Regular Term | E15: R80006 | F15: Tuition - Market Based Rates
A16: Revenue - Tuition and Fees | B16: Revenue | C16: Tuition and Fees | D16: Incidental Fees Regular Term | E16: R80008 | F16: Tuition - EMBA
A17: Revenue - Tuition and Fees | B17: Revenue | C17: Tuition and Fees | D17: Incidental Fees Regular Term | E17: R8000W | F17: Collected Written Off Tuition
A18: Revenue - Tuition and Fees | B18: Revenue | C18: Tuition and Fees | D18: Incidental Fees Regular Term | E18: R81001 | F18: Fall Semester Tuition-Fed Stimulus
A19: Revenue - Tuition and Fees | B19: Revenue | C19: Tuition and Fees | D19: Incidental Fees Regular Term | E19: R81002 | F19: Spring Semester Tuit - Fed Stimulus
A20: Revenue - Tuition and Fees | B20: Revenue | C20: Tuition and Fees | D20: Incidental Fees Regular Term | E20: R81005 | F20: Prior Term Tuition - Fed Stimulus
A21: Revenue - Tuition and Fees | B21: Revenue | C21: Tuition and Fees | D21: Incidental Fees Regular Term | E21: R8100S | F21: Tuition Refund Reimb SPARK
A22: Revenue - Tuition and Fees | B22: Revenue | C22: Tuition and Fees | D22: Incidental Fees Summer Term | E22: R80007 | F22: Summer School Tuition
A23: Revenue - Tuition and Fees | B23: Revenue | C23: Tuition and Fees | D23: Incidental Fees Summer Term | E23: R81007 | F23: Summer School Tuition-Fed Stimulus
A24: Revenue - Tuition and Fees | B24: Revenue | C24: Tuition and Fees | D24: Student Fees | E24: R80009 | F24: External Credit
A25: Revenue - Tuition and Fees | B25: Revenue | C25: Tuition and Fees | D25: Student Fees | E25: R80010 | F25: Student Fees
A26: Revenue - Tuition and Fees | B26: Revenue | C26: Tuition and Fees | D26: Student Fees | E26: R80011 | F26: Intensive English Fees
A27: Revenue - Tuition and Fees | B27: Revenue | C27: Tuition and Fees | D27: Student Fees | E27: R80014 | F27: Registration Fee
A28: Revenue - Tuition and Fees | B28: Revenue | C28: Tuition and Fees | D28: Student Fees | E28: R80276 | F28: Student Fees for Capital Projects
A29: Revenue - Tuition and Fees | B29: Revenue | C29: Tuition and Fees | D29: Student Fees | E29: R80334 | F29: Prior Year Student Fees
A30: Revenue - Tuition and Fees | B30: Revenue | C30: Tuition and Fees | D30: Student Fees | E30: R80380 | F30: SGA Realloc of Student Fees
A31: Revenue - Tuition and Fees | B31: Revenue | C31: Tuition and Fees | D31: Student Fees | E31: R80400 | F31: Campus Infrastructure Fee
A32: Revenue - Tuition and Fees | B32: Revenue | C32: Tuition and Fees | D32: Student Fees | E32: R80401 | F32: Student Fees - ICAA
A33: Revenue - Tuition and Fees | B33: Revenue | C33: Tuition and Fees | D33: Student Fees | E33: R80402 | F33: Online Learning Course Fee
A34: Revenue - Tuition and Fees | B34: Revenue | C34: Tuition and Fees | D34: Student Fees | E34: R80420 | F34: Campus Technology Fee
A35: Revenue - Tuition and Fees | B35: Revenue | C35: Tuition and Fees | D35: Student Fees | E35: R80421 | F35: Campus Transportation Fee
A36: Revenue - Tuition and Fees | B36: Revenue | C36: Tuition and Fees | D36: Student Fees | E36: R80515 | F36: LAS Course Fee
A37: Revenue - Tuition and Fees | B37: Revenue | C37: Tuition and Fees | D37: Student Fees | E37: R80516 | F37: HPS Course Fee
A38: Revenue - Tuition and Fees | B38: Revenue | C38: Tuition and Fees | D38: Student Fees | E38: R80517 | F38: SMGT & EDUC Course Fee
A39: Revenue - Tuition and Fees | B39: Revenue | C39: Tuition and Fees | D39: Student Fees | E39: R80518 | F39: ISLE Course Fee
A40: Revenue - Tuition and Fees | B40: Revenue | C40: Tuition and Fees | D40: Student Fees | E40: R80519 | F40: Public Health Sciences Course Fee
A41: Revenue - Tuition and Fees | B41: Revenue | C41: Tuition and Fees | D41: Late Registration Fees | E41: R80016 | F41: Late Registration Fee
A42: Revenue - Tuition and Fees | B42: Revenue | C42: Tuition and Fees | D42: Transaction Fees | E42: R80018 | F42: Transaction Fee
A43: Revenue - Tuition and Fees | B43: Revenue | C43: Tuition and Fees | D43: Special Course Fees | E43: R80020 | F43: Income from CCCC
A44: Revenue - Tuition and Fees | B44: Revenue | C44: Tuition and Fees | D44: Special Course Fees | E44: R80022 | F44: Workshop Distribution
A45: Revenue - Tuition and Fees | B45: Revenue | C45: Tuition and Fees | D45: Special Course Fees | E45: R80023 | F45: Personnel Effort
A46: Revenue - Tuition and Fees | B46: Revenue | C46: Tuition and Fees | D46: Special Course Fees | E46: R80024 | F46: USD Membership Fees
A47: Revenue - Tuition and Fees | B47: Revenue | C47: Tuition and Fees | D47: Special Course Fees | E47: R80025 | F47: Health Related WKSP
A48: Revenue - Tuition and Fees | B48: Revenue | C48: Tuition and Fees | D48: Special Course Fees | E48: R80026 | F48: Equivalency Testing
A49: Revenue - Tuition and Fees | B49: Revenue | C49: Tuition and Fees | D49: Special Course Fees | E49: R80027 | F49: Non-Credit Courses
A50: Revenue - Tuition and Fees | B50: Revenue | C50: Tuition and Fees | D50: Special Course Fees | E50: R80028 | F50: Printmaking Lab Fees
A51: Revenue - Tuition and Fees | B51: Revenue | C51: Tuition and Fees | D51: Special Course Fees | E51: R80029 | F51: Lab & Special Course Fees
A52: Revenue - Tuition and Fees | B52: Revenue | C52: Tuition and Fees | D52: Special Course Fees | E52: R80030 | F52: P.E. Bowling
A53: Revenue - Tuition and Fees | B53: Revenue | C53: Tuition and Fees | D53: Special Course Fees | E53: R80031 | F53: Ctr Physical Activities/Aging Fees
A54: Revenue - Tuition and Fees | B54: Revenue | C54: Tuition and Fees | D54: Special Course Fees | E54: R80032 | F54: Horseback Riding Fee
A55: Revenue - Tuition and Fees | B55: Revenue | C55: Tuition and Fees | D55: Special Course Fees | E55: R80033 | F55: Scuba Fees
A56: Revenue - Tuition and Fees | B56: Revenue | C56: Tuition and Fees | D56: Special Course Fees | E56: R80034 | F56: First Aid & CPR Charges
A57: Revenue - Tuition and Fees | B57: Revenue | C57: Tuition and Fees | D57: Special Course Fees | E57: R80035 | F57: AO Fee Distribution
A58: Revenue - Tuition and Fees | B58: Revenue | C58: Tuition and Fees | D58: Special Course Fees | E58: R80037 | F58: NLN Testing - Nursing - 102111
A59: Revenue - Tuition and Fees | B59: Revenue | C59: Tuition and Fees | D59: Special Course Fees | E59: R80039 | F59: P.E. Intro Phys Activities
A60: Revenue - Tuition and Fees | B60: Revenue | C60: Tuition and Fees | D60: Special Course Fees | E60: R80040 | F60: Pool/Billiards Fees
A61: Revenue - Tuition and Fees | B61: Revenue | C61: Tuition and Fees | D61: Special Course Fees | E61: R80041 | F61: Physician Assistant Program
A62: Revenue - Tuition and Fees | B62: Revenue | C62: Tuition and Fees | D62: Special Course Fees | E62: R80042 | F62: Dance Program Fee
A63: Revenue - Tuition and Fees | B63: Revenue | C63: Tuition and Fees | D63: Special Course Fees | E63: R80239 | F63: Music Course Fees
A64: Revenue - Tuition and Fees | B64: Revenue | C64: Tuition and Fees | D64: Special Course Fees | E64: R80240 | F64: Theater Course Fees
A65: Revenue - Tuition and Fees | B65: Revenue | C65: Tuition and Fees | D65: Special Course Fees | E65: R80255 | F65: Art History Fee
A66: Revenue - Tuition and Fees | B66: Revenue | C66: Tuition and Fees | D66: Special Course Fees | E66: R80256 | F66: Art Education Fee
A67: Revenue - Tuition and Fees | B67: Revenue | C67: Tuition and Fees | D67: Special Course Fees | E67: R80257 | F67: Music Applied Course Fee
A68: Revenue - Tuition and Fees | B68: Revenue | C68: Tuition and Fees | D68: Special Course Fees | E68: R80258 | F68: Class Piano Course Fee
A69: Revenue - Tuition and Fees | B69: Revenue | C69: Tuition and Fees | D69: Special Course Fees | E69: R80259 | F69: Musicology Course Fee
A70: Revenue - Tuition and Fees | B70: Revenue | C70: Tuition and Fees | D70: Special Course Fees | E70: R80260 | F70: Jazz Course Fee
A71: Revenue - Tuition and Fees | B71: Revenue | C71: Tuition and Fees | D71: Special Course Fees | E71: R80261 | F71: Music Education Course Fee
A72: Revenue - Tuition and Fees | B72: Revenue | C72: Tuition and Fees | D72: Special Course Fees | E72: R80262 | F72: Orchestra Course Fee
A73: Revenue - Tuition and Fees | B73: Revenue | C73: Tuition and Fees | D73: Special Course Fees | E73: R80263 | F73: Band Course Fee
A74: Revenue - Tuition and Fees | B74: Revenue | C74: Tuition and Fees | D74: Special Course Fees | E74: R80264 | F74: Acapella Madrigal Course Fee
A75: Revenue - Tuition and Fees | B75: Revenue | C75: Tuition and Fees | D75: Special Course Fees | E75: R80265 | F75: Concert Choral Course Fee
A76: Revenue - Tuition and Fees | B76: Revenue | C76: Tuition and Fees | D76: Special Course Fees | E76: R80266 | F76: Percussion Course Fee
A77: Revenue - Tuition and Fees | B77: Revenue | C77: Tuition and Fees | D77: Special Course Fees | E77: R80267 | F77: Recital Course Fee
A78: Revenue - Tuition and Fees | B78: Revenue | C78: Tuition and Fees | D78: Special Course Fees | E78: R80271 | F78: Day Care Related Workshop - C & I
A79: Revenue - Tuition and Fees | B79: Revenue | C79: Tuition and Fees | D79: Special Course Fees | E79: R80272 | F79: Student Teaching Supervision
A80: Revenue - Tuition and Fees | B80: Revenue | C80: Tuition and Fees | D80: Special Course Fees | E80: R80311 | F80: Dental Retail Sales
A81: Revenue - Tuition and Fees | B81: Revenue | C81: Tuition and Fees | D81: Special Course Fees | E81: R80396 | F81: Media Arts Tech Fee
A82: Revenue - Tuition and Fees | B82: Revenue | C82: Tuition and Fees | D82: Special Course Fees | E82: R80404 | F82: Action Sports Fee
A83: Revenue - Tuition and Fees | B83: Revenue | C83: Tuition and Fees | D83: Special Course Fees | E83: R80405 | F83: Swimming Fee
A84: Revenue - Tuition and Fees | B84: Revenue | C84: Tuition and Fees | D84: Special Course Fees | E84: R80406 | F84: Human Performance Studies Lab Fees
A85: Revenue - Tuition and Fees | B85: Revenue | C85: Tuition and Fees | D85: Special Course Fees | E85: R80111 | F85: Sale of Ceramic Clay
A86: Revenue - Tuition and Fees | B86: Revenue | C86: Tuition and Fees | D86: Special Course Fees | E86: R80112 | F86: Sale of Sculpture Materials
A87: Revenue - Tuition and Fees | B87: Revenue | C87: Tuition and Fees | D87: Special Course Fees | E87: R80015 | F87: Other Registration Fees
A88: Revenue - Tuition and Fees | B88: Revenue | C88: Tuition and Fees | D88: Special Course Fees | E88: R80244 | F88: Kansas College of Technology
A89: Revenue - Tuition and Fees | B89: Revenue | C89: Tuition and Fees | D89: Special Course Fees | E89: R80500 | F89: Outdoor Adventures Registration Fee
A90: Revenue - Tuition and Fees | B90: Revenue | C90: Tuition and Fees | D90: Special Course Fees | E90: R80506 | F90: Heskett Center Esports Revenue
A91: Revenue - Tuition and Fees | B91: Revenue | C91: Tuition and Fees | D91: Credit By Examination | E91: R80044 | F91: Credit by Examination
A92: Revenue - Tuition and Fees | B92: Revenue | C92: Tuition and Fees | D92: Credit By Examination | E92: R80306 | F92: MCLL - Retroactive Credit
A93: Revenue - Tuition and Fees | B93: Revenue | C93: Tuition and Fees | D93: Credit By Examination | E93: R80341 | F93: Retroactive Credit Fee
A94: Revenue - Tuition and Fees | B94: Revenue | C94: Tuition and Fees | D94: Summer School Workshop Fees | E94: R80045 | F94: Summer Workshops
A95: Revenue - Tuition and Fees | B95: Revenue | C95: Tuition and Fees | D95: Extension Fees | E95: R80050 | F95: Income from WATC
A96: Revenue - Tuition and Fees | B96: Revenue | C96: Tuition and Fees | D96: Extension Fees | E96: R80049 | F96: EMBA Income
A97: Revenue - Tuition and Fees | B97: Revenue | C97: Tuition and Fees | D97: Extension Fees | E97: R80310 | F97: Accelerated Nursing Prg Tuition Inc
A98: Revenue - Tuition and Fees | B98: Revenue | C98: Tuition and Fees | D98: Orientation Fees | E98: R80052 | F98: New Student Orientation
A99: Revenue - Tuition and Fees | B99: Revenue | C99: Tuition and Fees | D99: Other Student Fees | E99: R80021 | F99: Barton School Course Fee
A100: Revenue - Tuition and Fees | B100: Revenue | C100: Tuition and Fees | D100: Other Student Fees | E100: R80053 | F100: Instrument Usage Fees
A101: Revenue - Tuition and Fees | B101: Revenue | C101: Tuition and Fees | D101: Other Student Fees | E101: R80055 | F101: Testing Fees
A102: Revenue - Tuition and Fees | B102: Revenue | C102: Tuition and Fees | D102: Other Student Fees | E102: R80056 | F102: Engineering Equipment Fee
A103: Revenue - Tuition and Fees | B103: Revenue | C103: Tuition and Fees | D103: Other Student Fees | E103: R80057 | F103: Admissions Application Fee
A104: Revenue - Tuition and Fees | B104: Revenue | C104: Tuition and Fees | D104: Other Student Fees | E104: R80058 | F104: Internat'l Student Application Fee
A105: Revenue - Tuition and Fees | B105: Revenue | C105: Tuition and Fees | D105: Other Student Fees | E105: R80342 | F105: Liability Insurance Fee
A106: Revenue - Tuition and Fees | B106: Revenue | C106: Tuition and Fees | D106: Other Student Fees | E106: R80343 | F106: Fine Arts Instructional Fees
A107: Revenue - Tuition and Fees | B107: Revenue | C107: Tuition and Fees | D107: Other Student Fees | E107: R80344 | F107: Health Prof Instructional Fees
A108: Revenue - Tuition and Fees | B108: Revenue | C108: Tuition and Fees | D108: Other Student Fees | E108: R80346 | F108: Testing Exam Packet Fee
A109: Revenue - Tuition and Fees | B109: Revenue | C109: Tuition and Fees | D109: Other Student Fees | E109: R80371 | F109: Grad School Application for Degree
A110: Revenue - Tuition and Fees | B110: Revenue | C110: Tuition and Fees | D110: Other Student Fees | E110: R80389 | F110: CSD - Enrollment Fee
A111: Revenue - Tuition and Fees | B111: Revenue | C111: Tuition and Fees | D111: Other Student Fees | E111: R80390 | F111: CSD - Clinic Fee (program fee)
A112: Revenue - Tuition and Fees | B112: Revenue | C112: Tuition and Fees | D112: Other Student Fees | E112: R80391 | F112: Application Fee
A113: Revenue - Tuition and Fees | B113: Revenue | C113: Tuition and Fees | D113: Other Student Fees | E113: R80407 | F113: International Student Enrollmnt Fee
A114: Revenue - Tuition and Fees | B114: Revenue | C114: Tuition and Fees | D114: Other Student Fees | E114: R80408 | F114: Dental Hygiene Bd Review Course Fee
A115: Revenue - Tuition and Fees | B115: Revenue | C115: Tuition and Fees | D115: Other Student Fees | E115: R80429 | F115: HPS MEdLab Course Fees
A116: Revenue - Tuition and Fees | B116: Revenue | C116: Tuition and Fees | D116: Other Student Fees | E116: R80430 | F116: HPS Field Experience Course Fees
A117: Revenue - Tuition and Fees | B117: Revenue | C117: Tuition and Fees | D117: Other Student Fees | E117: R80431 | F117: HPS Lab Course Fees
A118: Revenue - Tuition and Fees | B118: Revenue | C118: Tuition and Fees | D118: Other Student Fees | E118: R80432 | F118: Curriculum & Instruction Course Fee
A119: Revenue - Tuition and Fees | B119: Revenue | C119: Tuition and Fees | D119: Other Student Fees | E119: R80487 | F119: Public Health Science Course Fee
A120: Revenue - Tuition and Fees | B120: Revenue | C120: Tuition and Fees | D120: Other Student Fees | E120: R80488 | F120: Inst Interdisciplinary Creative Fee
A121: Revenue - Tuition and Fees | B121: Revenue | C121: Tuition and Fees | D121: Other Student Fees | E121: R80501 | F121: CHP Insurance Liability Fee
A122: Revenue - Tuition and Fees | B122: Revenue | C122: Tuition and Fees | D122: Other Student Fees | E122: R80013 | F122: Program Fees
A123: Revenue - Tuition and Fees | B123: Revenue | C123: Tuition and Fees | D123: Other Student Fees | E123: R80365 | F123: Program Fees - Study Abroad
A124: Revenue - Tuition and Fees | B124: Revenue | C124: Tuition and Fees | D124: Other Student Fees | E124: R80366 | F124: Program Fees - MBA German Prgm Fees
A125: Revenue - Tuition and Fees | B125: Revenue | C125: Tuition and Fees | D125: Other Student Fees | E125: R80422 | F125: Program Fees - CSD
A126: Revenue - Tuition and Fees | B126: Revenue | C126: Tuition and Fees | D126: Other Student Fees | E126: R80423 | F126: Program Fees - Nursing
A127: Revenue - Tuition and Fees | B127: Revenue | C127: Tuition and Fees | D127: Other Student Fees | E127: R80424 | F127: Program Fees - Dental Hygiene
A128: Revenue - Tuition and Fees | B128: Revenue | C128: Tuition and Fees | D128: Other Student Fees | E128: R80425 | F128: Program Fees - MLS
A129: Revenue - Tuition and Fees | B129: Revenue | C129: Tuition and Fees | D129: Other Student Fees | E129: R80426 | F129: Program Fees - Physician Assistant
A130: Revenue - Tuition and Fees | B130: Revenue | C130: Tuition and Fees | D130: Other Student Fees | E130: R80427 | F130: Program Fees - Physical Therapy
A131: Revenue - Tuition and Fees | B131: Revenue | C131: Tuition and Fees | D131: Other Student Fees | E131: R80428 | F131: Program Fees - Coll of Engineering
A132: Revenue - Tuition and Fees | B132: Revenue | C132: Tuition and Fees | D132: Other Student Fees | E132: R80444 | F132: Program Fees - Barton School
A133: Revenue - Tuition and Fees | B133: Revenue | C133: Tuition and Fees | D133: Other Student Fees | E133: R80446 | F133: Program Fees - Sport Management
A134: Revenue - Tuition and Fees | B134: Revenue | C134: Tuition and Fees | D134: Other Student Fees | E134: R80447 | F134: Program Fees - Counseling,Ldrshp,Ed
A135: Revenue - Tuition and Fees | B135: Revenue | C135: Tuition and Fees | D135: Other Student Fees | E135: R80448 | F135: Program Fees - AT Taping/Bandaging
A136: Revenue - Tuition and Fees | B136: Revenue | C136: Tuition and Fees | D136: Other Student Fees | E136: R80449 | F136: Program Fees - Communication Course
A137: Revenue - Tuition and Fees | B137: Revenue | C137: Tuition and Fees | D137: Other Student Fees | E137: R80471 | F137: Program Fees - Barton School UG
A138: Revenue - Tuition and Fees | B138: Revenue | C138: Tuition and Fees | D138: Other Student Fees | E138: R80472 | F138: Program Fees - Barton School GR
A139: Revenue - Tuition and Fees | B139: Revenue | C139: Tuition and Fees | D139: Other Student Fees | E139: R80502 | F139: Program Fees - Athletic Training
A140: Revenue - Tuition and Fees | B140: Revenue | C140: Tuition and Fees | D140: Other Student Fees | E140: R80171 | F140: Late Charges - Short Term Loans
A141: Revenue - State Appropriations | B141: Revenue | C141: State Appropriations | D141: Operating Expenditures | E141: R80059 | F141: WSU General Revenue
A142: Revenue - State Appropriations | B142: Revenue | C142: State Appropriations | D142: Operating Expenditures | E142: R80325 | F142: WSU State Budget Rescission
A143: Revenue - State Appropriations | B143: Revenue | C143: State Appropriations | D143: Operating Expenditures | E143: R80441 | F143: WSU State Lapse of Appropriation
A144: Revenue - State Appropriations | B144: Revenue | C144: State Appropriations | D144: Operating Expenditures Capital Appr | E144: R80277 | F144: WSU General Revenue Capital Appropr
A145: Revenue - Federal Contracts and Grants | B145: Revenue | C145: Federal Contracts and Grants | D145: Federal Sponsored Prgm Grants | E145: R80060 | F145: Federal Government Research
A146: Revenue - Federal Contracts and Grants | B146: Revenue | C146: Federal Contracts and Grants | D146: Workstudy Program | E146: R80061 | F146: Workstudy Program
A147: Revenue - Federal Contracts and Grants | B147: Revenue | C147: Federal Contracts and Grants | D147: Federal Research Grants | E147: R80062 | F147: Federal Government Research
A148: Revenue - Federal Contracts and Grants | B148: Revenue | C148: Federal Contracts and Grants | D148: Federal Research Grants | E148: R80304 | F148: PHEAA Federal Revenue for Tuition
A149: Revenue - Federal Contracts and Grants | B149: Revenue | C149: Federal Contracts and Grants | D149: SEOG Educational Opportunity Grant | E149: R80063 | F149: SEOG Educational Opportunity Grant
A150: Revenue - Federal Contracts and Grants | B150: Revenue | C150: Federal Contracts and Grants | D150: Pell Grants | E150: R80064 | F150: Pell Basic Educ Opportunity Grant
A151: Revenue - Federal Contracts and Grants | B151: Revenue | C151: Federal Contracts and Grants | D151: Pell Grants | E151: R80295 | F151: Federal ACG Grant Revenue
A152: Revenue - Federal Contracts and Grants | B152: Revenue | C152: Federal Contracts and Grants | D152: Pell Grants | E152: R80296 | F152: Federal SMART Grant Revenue
A153: Revenue - Federal Contracts and Grants | B153: Revenue | C153: Federal Contracts and Grants | D153: Pell Grants | E153: R80317 | F153: Federal TEACH Grant Revenue
A154: Revenue - Federal Contracts and Grants | B154: Revenue | C154: Federal Contracts and Grants | D154: Pell Grants | E154: R80455 | F154: Iraq/Afghan Service Grant Revenue
A155: Revenue - Federal Contracts and Grants | B155: Revenue | C155: Federal Contracts and Grants | D155: Pell Grants | E155: R80507 | F155: Federal CARES Act Revenue
A156: Revenue - Federal Contracts and Grants | B156: Revenue | C156: Federal Contracts and Grants | D156: Repayment on Pell & SEOG Grants | E156: R80065 | F156: Repayment of SEOG
A157: Revenue - Federal Contracts and Grants | B157: Revenue | C157: Federal Contracts and Grants | D157: Repayment on Pell & SEOG Grants | E157: R80066 | F157: PY Repayments
A158: Revenue - Federal Contracts and Grants | B158: Revenue | C158: Federal Contracts and Grants | D158: Repayment on Pell & SEOG Grants | E158: R80067 | F158: Prior-PY Repayments
A159: Revenue - Federal Contracts and Grants | B159: Revenue | C159: Federal Contracts and Grants | D159: Repayment on Pell & SEOG Grants | E159: R80068 | F159: Repayment of Pell
A160: Revenue - Federal Contracts and Grants | B160: Revenue | C160: Federal Contracts and Grants | D160: Repayment on Pell & SEOG Grants | E160: R80195 | F160: Perkins Loan Repayment
A161: Revenue - Federal Contracts and Grants | B161: Revenue | C161: Federal Contracts and Grants | D161: Federal HEERF Institutional Award | E161: R80510 | F161: Federal HEERF Institutional Award
A162: Revenue - Federal Contracts and Grants | B162: Revenue | C162: Federal Contracts and Grants | D162: Gifts For Education and General | E162: R80074 | F162: Federal SRS-Title 4A
A163: Revenue - Federal Contracts and Grants | B163: Revenue | C163: Federal Contracts and Grants | D163: Federal Pymt On Cancellations | E163: R80212 | F163: Government NDSL Grants
A164: Revenue - Federal Contracts and Grants | B164: Revenue | C164: Federal Contracts and Grants | D164: Federal Pymt On Cancellations | E164: R80213 | F164: Federal Pymt on Cancellations
A165: Revenue - State Grants and Contracts | B165: Revenue | C165: State Grants and Contracts | D165: Sponsored Programs from St Agencies | E165: R80069 | F165: Sponsored Programs
A166: Revenue - State Grants and Contracts | B166: Revenue | C166: State Grants and Contracts | D166: Sponsored Programs from St Agencies | E166: R80191 | F166: KS North Central Association
A167: Revenue - State Grants and Contracts | B167: Revenue | C167: State Grants and Contracts | D167: Sponsored Programs from St Agencies | E167: R80309 | F167: Mill Levy Funds Nursing Scholarship
A168: Revenue - State Grants and Contracts | B168: Revenue | C168: State Grants and Contracts | D168: Sponsored Programs from St Agencies | E168: R80347 | F168: Sponsored Prgms from State Agencies
A169: Revenue - State Grants and Contracts | B169: Revenue | C169: State Grants and Contracts | D169: Other Operating Grants | E169: R80075 | F169: KS Tech Enterprise Corporation
A170: Revenue - State Grants and Contracts | B170: Revenue | C170: State Grants and Contracts | D170: Other Operating Grants | E170: R80076 | F170: Industrial and Special Contract
A171: Revenue - State Grants and Contracts | B171: Revenue | C171: State Grants and Contracts | D171: Other Operating Grants | E171: R80509 | F171: State SPARKS Revenue
A172: Revenue - Private Gifts, Grants and Contracts | B172: Revenue | C172: Private Gifts, Grants and Contracts | D172: State of Kansas Tuition Awards | E172: R80280 | F172: KS Comp Grant Dep Fed Award
A173: Revenue - Private Gifts, Grants and Contracts | B173: Revenue | C173: Private Gifts, Grants and Contracts | D173: State of Kansas Tuition Awards | E173: R80281 | F173: KS Comp Grant Dependent Award
A174: Revenue - Private Gifts, Grants and Contracts | B174: Revenue | C174: Private Gifts, Grants and Contracts | D174: State of Kansas Tuition Awards | E174: R80282 | F174: KS Comp Grant Independent Award
A175: Revenue - Private Gifts, Grants and Contracts | B175: Revenue | C175: Private Gifts, Grants and Contracts | D175: State of Kansas Tuition Awards | E175: R80283 | F175: KS Comp Grant Independent Fed Award
A176: Revenue - Private Gifts, Grants and Contracts | B176: Revenue | C176: Private Gifts, Grants and Contracts | D176: State of Kansas Tuition Awards | E176: R80284 | F176: State of KS Scholarship Award
A177: Revenue - Private Gifts, Grants and Contracts | B177: Revenue | C177: Private Gifts, Grants and Contracts | D177: State of Kansas Tuition Awards | E177: R80285 | F177: State of KS Minority Schlshp Award
A178: Revenue - Private Gifts, Grants and Contracts | B178: Revenue | C178: Private Gifts, Grants and Contracts | D178: State of Kansas Tuition Awards | E178: R80286 | F178: State of KS Teacher Schlshp Award
A179: Revenue - Private Gifts, Grants and Contracts | B179: Revenue | C179: Private Gifts, Grants and Contracts | D179: State of Kansas Tuition Awards | E179: R80287 | F179: State of KS Nursing Schlshp Award
A180: Revenue - Private Gifts, Grants and Contracts | B180: Revenue | C180: Private Gifts, Grants and Contracts | D180: State of Kansas Tuition Awards | E180: R80288 | F180: KS Spec Educ Teacher Service Award
A181: Revenue - Private Gifts, Grants and Contracts | B181: Revenue | C181: Private Gifts, Grants and Contracts | D181: State of Kansas Tuition Awards | E181: R80289 | F181: KS Teacher Education Service Award
A182: Revenue - Private Gifts, Grants and Contracts | B182: Revenue | C182: Private Gifts, Grants and Contracts | D182: State of Kansas Tuition Awards | E182: R80305 | F182: KS Military Service Award
A183: Revenue - Private Gifts, Grants and Contracts | B183: Revenue | C183: Private Gifts, Grants and Contracts | D183: State of Kansas Tuition Awards | E183: R80208 | F183: Transfer from Board of Trustees
A184: Revenue - Private Gifts, Grants and Contracts | B184: Revenue | C184: Private Gifts, Grants and Contracts | D184: Other Operating Gifts | E184: R80071 | F184: Gifts
A185: Revenue - Private Gifts, Grants and Contracts | B185: Revenue | C185: Private Gifts, Grants and Contracts | D185: Other Operating Gifts | E185: R80072 | F185: Gifts - WSU Board of Trustees
A186: Revenue - Private Gifts, Grants and Contracts | B186: Revenue | C186: Private Gifts, Grants and Contracts | D186: Other Operating Gifts | E186: R80073 | F186: Gifts - WSU Foundation
A187: Revenue - Private Gifts, Grants and Contracts | B187: Revenue | C187: Private Gifts, Grants and Contracts | D187: Other Operating Gifts | E187: R80274 | F187: State Agency Tuition Gift
A188: Revenue - Private Gifts, Grants and Contracts | B188: Revenue | C188: Private Gifts, Grants and Contracts | D188: Other Operating Gifts | E188: R80291 | F188: Athletics Scholarships Gifts
A189: Revenue - Private Gifts, Grants and Contracts | B189: Revenue | C189: Private Gifts, Grants and Contracts | D189: Other Operating Gifts | E189: R80292 | F189: Foundation Scholarships Gifts
A190: Revenue - Private Gifts, Grants and Contracts | B190: Revenue | C190: Private Gifts, Grants and Contracts | D190: Other Operating Gifts | E190: R80300 | F190: Gifts - WSU Athletics
A191: Revenue - Private Gifts, Grants and Contracts | B191: Revenue | C191: Private Gifts, Grants and Contracts | D191: Other Operating Gifts | E191: R80374 | F191: Board of Trustees Scholarships
A192: Revenue - Private Gifts, Grants and Contracts | B192: Revenue | C192: Private Gifts, Grants and Contracts | D192: Other Operating Gifts | E192: R80337 | F192: General Dentistry-GME Funds
A193: Revenue - Private Gifts, Grants and Contracts | B193: Revenue | C193: Private Gifts, Grants and Contracts | D193: Other Operating Gifts | E193: R80338 | F193: General Dentistry-Grace Med Funds
A194: Revenue - Private Gifts, Grants and Contracts | B194: Revenue | C194: Private Gifts, Grants and Contracts | D194: Other Operating Gifts | E194: R80339 | F194: General Dentistry-Vet Admin Fund
A195: Revenue - Private Gifts, Grants and Contracts | B195: Revenue | C195: Private Gifts, Grants and Contracts | D195: Capital Gifts | E195: R80301 | F195: Capital Gifts-WSU Board of Trustees
A196: Revenue - Private Gifts, Grants and Contracts | B196: Revenue | C196: Private Gifts, Grants and Contracts | D196: Capital Gifts | E196: R80302 | F196: Capital Gifts-WSU Foundation
A197: Revenue - Private Gifts, Grants and Contracts | B197: Revenue | C197: Private Gifts, Grants and Contracts | D197: Capital Gifts | E197: R80303 | F197: Capital Gifts-WSU Athletics
A198: Revenue - Private Gifts, Grants and Contracts | B198: Revenue | C198: Private Gifts, Grants and Contracts | D198: Capital Gifts | E198: R80319 | F198: Capital Gifts-Ind State Tax Credits
A199: Revenue - Sales and Serv of Ed Activities | B199: Revenue | C199: Sales and Serv of Ed Activities | D199: Labor and Professional Charges | E199: R80077 | F199: Professional Charges and Fees
A200: Revenue - Sales and Serv of Ed Activities | B200: Revenue | C200: Sales and Serv of Ed Activities | D200: Labor and Professional Charges | E200: R80078 | F200: Business Office Accounting Services
... 745 more rows
